Workbook

Sheet CF (hidden)
B2: CONDITIONAL FORMATTING MAP
F3: =INDEX(dms_CF_3.6.5, MATCH(dms_TradingName,dms_CF_TradingName))="Y" | G3: =INDEX(dms_CF_3.6.6.1, MATCH(dms_TradingName,dms_CF_TradingName))="Y" | H3: =INDEX(dms_CF_3.6.6.2, MATCH(dms_TradingName,dms_CF_TradingName))="Y" | I3: =INDEX(dms_CF_3.6.6.3, MATCH(dms_TradingName,dms_CF_TradingName))="Y" | J3: =INDEX(dms_CF_3.6.7.1, MATCH(dms_TradingName,dms_CF_TradingName))="Y" | K3: =INDEX(dms_CF_3.6.7.2, MATCH(dms_TradingName,dms_CF_TradingName))="Y" | L3: =INDEX(dms_CF_3.6.7.3, MATCH(dms_TradingName,dms_CF_TradingName))="Y" | M3: =INDEX(dms_CF_3.6.7.4, MATCH(dms_TradingName,dms_CF_TradingName))="Y" | N3: =INDEX(dms_CF_6.6.1, MATCH(dms_TradingName,dms_CF_TradingName))="Y" | O3: =INDEX(dms_CF_6.6.2, MATCH(dms_TradingName,dms_CF_TradingName))="Y" | P3: =INDEX(dms_CF_6.6.3, MATCH(dms_TradingName,dms_CF_TradingName))="Y" | Q3: =INDEX(dms_CF_6.6.4, MATCH(dms_TradingName,dms_CF_TradingName))="Y" | R3: =INDEX(dms_CF_6.8, MATCH(dms_TradingName,dms_CF_TradingName))="Y" | S3: =INDEX(dms_CF_7.12, MATCH(dms_TradingName,dms_CF_TradingName))="Y" | T3: =INDEX(dms_CF_8.1_A, MATCH(dms_TradingName,dms_CF_TradingName))="Y" | U3: =INDEX(dms_CF_8.1_B, MATCH(dms_TradingName,dms_CF_TradingName))="Y" | V3: =INDEX(dms_CF_8.1_Neg, MATCH(dms_TradingName,dms_CF_TradingName))="Y"
B4: dms_CF_TradingName | C4: JurisdictionList | D4: Sector | E4: Segment | F4: dms_CF_3.6.5 | G4: dms_CF_3.6.6.1 | H4: dms_CF_3.6.6.2 | I4: dms_CF_3.6.6.3 | J4: dms_CF_3.6.7.1 | K4: dms_CF_3.6.7.2 | L4: dms_CF_3.6.7.3 | M4: dms_CF_3.6.7.4 | N4: dms_CF_6.6.1 | O4: dms_CF_6.6.2 | P4: dms_CF_6.6.3 | Q4: dms_CF_6.6.4 | R4: dms_CF_6.8 | S4: dms_CF_7.12 | T4: dms_CF_8.1_A | U4: dms_CF_8.1_B | V4: dms_CF_8.1_Neg | W4: Column1 | X4: Column3
B5: ActewAGL Distribution | C5: ACT | D5: Electricity | E5: Distribution | F5: Y | G5: N | H5: Y | I5: Y | J5: Y | K5: Y | L5: N | M5: Y | N5: N | O5: Y | P5: Y | Q5: Y | R5: Y | S5: Y | T5: N | U5: Y | V5: Y | W5: N
B6: Ausgrid | C6: NSW | D6: Electricity | E6: Distribution | F6: Y | G6: N | H6: Y | I6: Y | J6: N | K6: N | L6: N | M6: Y | N6: N | O6: Y | P6: Y | Q6: Y | R6: Y | S6: Y | T6: N | U6: Y | V6: Y | W6: N
B7: AusNet (D) | C7: Vic | D7: Electricity | E7: Distribution | F7: N | G7: N | H7: N | I7: N | J7: N | K7: N | L7: N | M7: N | N7: N | O7: Y | P7: Y | Q7: Y | R7: Y | S7: N | T7: N | U7: N | V7: Y | W7: N
B8: AusNet (T) | C8: Vic | D8: Electricity | E8: Transmission | F8: N | G8: N | H8: N | I8: N | J8: N | K8: N | L8: N | M8: N | N8: N | O8: N | P8: N | Q8: N | R8: Y | S8: N | T8: N | U8: N | V8: Y | W8: N
B9: CitiPower | C9: Vic | D9: Electricity | E9: Distribution | F9: N | G9: N | H9: N | I9: N | J9: N | K9: N | L9: N | M9: N | N9: N | O9: Y | P9: Y | Q9: Y | R9: Y | S9: N | T9: N | U9: N | V9: Y | W9: N
B10: Directlink | C10: Qld | D10: Electricity | E10: Transmission | F10: N | G10: N | H10: N | I10: N | J10: N | K10: N | L10: N | M10: N | N10: N | O10: N | P10: N | Q10: N | R10: Y | S10: N | T10: N | U10: Y | V10: Y | W10: N
B11: ElectraNet | C11: SA | D11: Electricity | E11: Transmission | F11: N | G11: N | H11: N | I11: N | J11: N | K11: N | L11: N | M11: N | N11: N | O11: N | P11: N | Q11: N | R11: Y | S11: N | T11: N | U11: Y | V11: Y | W11: N
B12: Endeavour Energy | C12: NSW | D12: Electricity | E12: Distribution | F12: Y | G12: N | H12: Y | I12: Y | J12: N | K12: N | L12: N | M12: Y | N12: N | O12: Y | P12: Y | Q12: Y | R12: Y | S12: Y | T12: N | U12: Y | V12: Y | W12: N
B13: Energex | C13: Qld | D13: Electricity | E13: Distribution | F13: Y | G13: N | H13: N | I13: N | J13: N | K13: N | L13: N | M13: N | N13: N | O13: Y | P13: Y | Q13: Y | R13: Y | S13: Y | T13: N | U13: Y | V13: Y | W13: N
B14: Ergon Energy | C14: Qld | D14: Electricity | E14: Distribution | F14: Y | G14: N | H14: Y | I14: Y | J14: N | K14: N | L14: N | M14: N | N14: N | O14: Y | P14: Y | Q14: Y | R14: Y | S14: Y | T14: N | U14: Y | V14: Y | W14: N
B15: Essential Energy | C15: NSW | D15: Electricity | E15: Distribution | F15: Y | G15: N | H15: Y | I15: Y | J15: N | K15: N | L15: N | M15: Y | N15: N | O15: Y | P15: Y | Q15: Y | R15: Y | S15: Y | T15: N | U15: Y | V15: Y | W15: N
B16: Jemena Electricity | C16: Vic | D16: Electricity | E16: Distribution | F16: N | G16: N | H16: N | I16: N | J16: N | K16: N | L16: N | M16: N | N16: N | O16: Y | P16: Y | Q16: Y | R16: Y | S16: N | T16: N | U16: N | V16: Y | W16: N
B17: Murraylink | C17: SA | D17: Electricity | E17: Transmission | F17: N | G17: N | H17: N | I17: N | J17: N | K17: N | L17: N | M17: N | N17: N | O17: N | P17: N | Q17: N | R17: Y | S17: N | T17: N | U17: Y | V17: Y | W17: N
B18: Power and Water | C18: NT | D18: Electricity | E18: Distribution | F18: N | G18: N | H18: N | I18: N | J18: N | K18: Y | L18: N | M18: N | N18: Y | O18: Y | P18: Y | Q18: Y | R18: Y | S18: Y | T18: N | U18: Y | V18: Y | W18: N
B19: Powercor Australia | C19: Vic | D19: Electricity | E19: Distribution | F19: N | G19: N | H19: N | I19: N | J19: N | K19: N | L19: N | M19: N | N19: N | O19: Y | P19: Y | Q19: Y | R19: Y | S19: N | T19: N | U19: N | V19: Y | W19: N
B20: Powerlink | C20: Qld | D20: Electricity | E20: Transmission | F20: N | G20: N | H20: N | I20: N | J20: N | K20: N | L20: N | M20: N | N20: N | O20: N | P20: N | Q20: N | R20: Y | S20: N | T20: N | U20: Y | V20: Y | W20: N
B21: SA Power Networks | C21: SA | D21: Electricity | E21: Distribution | F21: Y | G21: N | H21: N | I21: N | J21: N | K21: N | L21: N | M21: N | N21: N | O21: Y | P21: Y | Q21: Y | R21: Y | S21: Y | T21: Y | U21: Y | V21: N | W21: N
B22: TasNetworks (D) | C22: Tas | D22: Electricity | E22: Distribution | F22: Y | G22: N | H22: N | I22: N | J22: N | K22: N | L22: N | M22: N | N22: N | O22: Y | P22: Y | Q22: Y | R22: Y | S22: Y | T22: N | U22: Y | V22: Y | W22: N
B23: TasNetworks (T) | C23: Tas | D23: Electricity | E23: Transmission | F23: N | G23: N | H23: N | I23: N | J23: N | K23: N | L23: N | M23: N | N23: N | O23: N | P23: N | Q23: N | R23: Y | S23: N | T23: N | U23: Y | V23: Y | W23: N
B24: TransGrid | C24: NSW | D24: Electricity | E24: Transmission | F24: N | G24: N | H24: N | I24: N | J24: N | K24: N | L24: N | M24: N | N24: N | O24: N | P24: N | Q24: N | R24: Y | S24: N | T24: N | U24: Y | V24: Y | W24: N
B25: United Energy | C25: Vic | D25: Electricity | E25: Distribution | F25: N | G25: N | H25: N | I25: N | J25: N | K25: N | L25: N | M25: N | N25: N | O25: Y | P25: Y | Q25: Y | R25: Y | S25: N | T25: N | U25: N | V25: Y | W25: N

Sheet AER only (hidden)
B1: Data in these columns used for data validation and database purposes.
B2: Date last modified: | C2: 2017-01-16 | D2: added (Albury and Victora) for AGN
C3: 2016-10-17 | D3: updated TransGrid's correct legal name, corrected TasNetworks (T) to June financial year
C4: 2017-02-01 | D4: inserted Power and Water, added NRs (dms_FeederCat_1 and dms_FeederCat_2)
C5: 2017-03-03 | D5: inserted AEMO as a business | Y5: FOR ELECTRICITY BUSINESSES ONLY
C6: 2018-03-28 | D6: major changes to accommodate STPIS
C7: Template Version | D7: 5 | Y7: Feeder Types | AC7: TasNetworks (D) | AD7: MAIFI flag | AE7: Feeder Names
Y9: CBD | Z9: Urban | AA9: Short rural | AB9: long rural | AC9: EXTRA
B10: dms_TradingName_List | C10: dms_TradingNameFull_List | D10: dms_ABN_List | E10: dms_JurisdictionList | F10: dms_Sector_List | G10: dms_Segment_List | H10: dms_FormControl_List | I10: dms_RPT_List | J10: dms_RPTMonth_List | K10: dms_CRCPlength_List | L10: dms_FRCPlength_List | M10: dms_663_List | N10: dms_DeterminationRef_List | O10: dms_Addr1_List | P10: dms_Addr2_List | Q10: dms_Suburb_List | R10: dms_State_List | S10: dms_PostCode_List | T10: dms_PAddr1_List | U10: dms_PAddr2_List | V10: dms_PSuburb_List | W10: dms_PState_List | X10: dms_PPostCode_List | Y10: dms_CBD_flag | Z10: dms_Urban_flag | AA10: dms_ShortRural_flag | AB10: dms_LongRural_flag | AC10: dms_FeederType_5_flag | AD10: dms_MAIFI_flag_List | AE10: dms_FeederName_1 | AF10: dms_FeederName_2 | AG10: dms_FeederName_3 | AH10: dms_FeederName_4 | AI10: dms_FeederName_5 | AJ10: dms_Public_Lighting_List | AK10: Column1
B11: ActewAGL Distribution | C11: ActewAGL Distribution | D11: 76670568688 | E11: ACT | F11: Electricity | G11: Distribution | H11: Revenue cap | I11: Financial | J11: June | K11: 5 | L11: 5 | M11: 5 | N11: 2014-19 Distribution Determination | O11: 40 Bunda Street | Q11: CANBERRA | R11: ACT | S11: 2600 | T11: GPO BOX 366 | V11: CANBERRA | W11: ACT | X11: 2601 | Y11: NO | Z11: YES | AA11: YES | AB11: NO | AC11: NO | AD11: NO | AE11: CBD | AF11: Urban | AG11: Short rural | AH11: Long rural | AJ11: YES | AK11: ActewAGL Distribution
B12: ActewAGL Distribution (Tx Assets) | C12: ActewAGL Distribution (Tx Assets) | D12: 76670568688 | E12: ACT | F12: Electricity | G12: Distribution | H12: Revenue cap | I12: Financial | J12: June | K12: 5 | L12: 5 | M12: 5 | N12: distribution determination | O12: 40 Bunda Street | Q12: CANBERRA | R12: ACT | S12: 2600 | T12: GPO BOX 366 | V12: CANBERRA | W12: ACT | X12: 2601 | Y12: NO | Z12: YES | AA12: YES | AB12: NO | AC12: NO | AD12: NO | AE12: CBD | AF12: Urban | AG12: Short rural | AH12: Long rural | AJ12: NO | AK12: ActewAGL Distribution (Tx Assets)
B13: ActewAGL Gas | C13: ActewAGL Gas | D13: 76670568688 | E13: ACT | F13: Gas | G13: Distribution | H13: Weighted average price cap | I13: Financial | J13: June | K13: 5 | L13: 5 | M13: x | O13: 40 Bunda Street | Q13: CANBERRA | R13: ACT | S13: 2600 | T13: GPO BOX 366 | V13: CANBERRA | W13: ACT | X13: 2601 | Y13: NO | Z13: NO | AA13: NO | AB13: NO | AC13: NO | AE13: CBD | AF13: Urban | AG13: Short rural | AH13: Long rural | AJ13: NO | AK13: ActewAGL Gas
B14: AEMO | C14: Australian Energy Market Operator Ltd | D14: 94072010327 | E14: Vic | F14: Electricity | G14: Transmission | H14: - | I14: Financial | J14: March | K14: 5 | L14: 5 | M14: x | N14: - | O14: Level 22 | P14: 530 Collins Street | Q14: MELBOURNE | R14: VIC | S14: 3000 | T14: GPO Box 2008 | V14: MELBOURNE | W14: VIC | X14: 3001 | Y14: NO | Z14: NO | AA14: NO | AB14: NO | AC14: NO | AE14: CBD | AF14: Urban | AG14: Short rural | AH14: Long rural | AJ14: NO | AK14: AEMO
B15: AGN (Albury and Victoria) | C15: Australian Gas Networks Limited (reporting data for Albury and Victoria) | D15: 19078551685 | E15: Vic | F15: Gas | G15: Distribution | H15: Weighted average price cap | I15: Calendar | J15: December | K15: 5 | L15: 5 | M15: x | O15: Level 6 | P15: 400 King William Street | Q15: ADELAIDE | R15: SA | S15: 5000 | T15: PO Box 6468 | U15: Halifax Street | V15: ADELAIDE | W15: SA | X15: 5000 | Y15: NO | Z15: NO | AA15: NO | AB15: NO | AC15: NO | AE15: CBD | AF15: Urban | AG15: Short rural | AH15: Long rural | AJ15: NO | AK15: AGN (Albury)
B16: AGN (Albury) | C16: Australian Gas Networks Limited (reporting data for Albury) | D16: 19078551685 | E16: Vic | F16: Gas | G16: Distribution | H16: Weighted average price cap | I16: Calendar | J16: December | K16: 5 | L16: 5 | M16: x | O16: Level 6 | P16: 400 King William Street | Q16: ADELAIDE | R16: SA | S16: 5000 | T16: PO Box 6468 | U16: Halifax Street | V16: ADELAIDE | W16: SA | X16: 5000 | Y16: NO | Z16: NO | AA16: NO | AB16: NO | AC16: NO | AE16: CBD | AF16: Urban | AG16: Short rural | AH16: Long rural | AJ16: NO
B17: AGN (SA) | C17: Australian Gas Networks Limited (reporting data for SA) | D17: 19078551685 | E17: SA | F17: Gas | G17: Distribution | H17: Weighted average price cap | I17: Financial | J17: June | K17: 5 | L17: 5 | M17: 5 | N17: distribution determination | O17: Level 6 | P17: 400 King William Street | Q17: ADELAIDE | R17: SA | S17: 5000 | T17: PO Box 6468 | U17: Halifax Street | V17: ADELAIDE | W17: SA | X17: 5000 | Y17: NO | Z17: NO | AA17: NO | AB17: NO | AC17: NO | AE17: CBD | AF17: Urban | AG17: Short rural | AH17: Long rural | AJ17: NO | AK17: AGN (SA)
B18: AGN (Victoria) | C18: Australian Gas Networks Limited (reporting data for Victoria) | D18: 19078551685 | E18: Vic | F18: Gas | G18: Distribution | H18: Weighted average price cap | I18: Calendar | J18: December | K18: 5 | L18: 5 | M18: x | O18: Level 6 | P18: 400 King William Street | Q18: ADELAIDE | R18: SA | S18: 5000 | T18: PO Box 6468 | U18: Halifax Street | V18: ADELAIDE | W18: SA | X18: 5000 | Y18: NO | Z18: NO | AA18: NO | AB18: NO | AC18: NO | AE18: CBD | AF18: Urban | AG18: Short rural | AH18: Long rural | AJ18: NO | AK18: AGN (Victoria)
B19: Amadeus | C19: APT Pipelines (NT) Pty Ltd | D19: 39009737393 | E19: NT | F19: Gas | G19: Transmission | H19: Weighted average price cap | I19: Financial | J19: June | K19: 5 | L19: 5 | M19: x | N19: n/a | O19: Level 19, HSBC Building | P19: 580 George Street | Q19: SYDNEY | R19: NSW | S19: 2000 | T19: Level 19, HSBC Building | U19: 580 George Street | V19: SYDNEY | W19: NSW | X19: 2000 | Y19: NO | Z19: NO | AA19: NO | AB19: NO | AC19: NO | AE19: CBD | AF19: Urban | AG19: Short rural | AH19: Long rural | AJ19: NO | AK19: Amadeus
B20: APA GasNet | C20: APA GasNet Australia (Operations) Pty Ltd | D20: 065083009 | E20: Vic | F20: Gas | G20: Transmission | H20: Weighted average price cap | I20: Calendar | J20: December | K20: 5 | L20: 5 | M20: x | O20: Level 19, HSBC Building | P20: 580 George Street | Q20: SYDNEY | R20: NSW | S20: 2000 | T20: PO Box R41 | V20: ROYAL EXCHANGE | W20: NSW | X20: 1225 | Y20: NO | Z20: NO | AA20: NO | AB20: NO | AC20: NO | AE20: CBD | AF20: Urban | AG20: Short rural | AH20: Long rural | AJ20: NO | AK20: APA GasNet
B21: Ausgrid | C21: Ausgrid | D21: 78508211731 | E21: NSW | F21: Electricity | G21: Distribution | H21: Revenue cap | I21: Financial | J21: June | K21: 5 | L21: 5 | M21: 5 | N21: 2014-19 Distribution Determination | O21: 570 George St | Q21: SYDNEY | R21: NSW | S21: 2000 | T21: GPO Box 4009 | V21: SYDNEY | W21: NSW | X21: 2001 | Y21: YES | Z21: YES | AA21: YES | AB21: YES | AC21: NO | AD21: NO | AE21: CBD | AF21: Urban | AG21: Short rural | AH21: Long rural | AJ21: YES | AK21: Ausgrid
B22: Ausgrid (Tx Assets) | C22: Ausgrid (Tx Assets) | D22: 67505337385 | E22: NSW | F22: Electricity | G22: Distribution | H22: Revenue cap | I22: Financial | J22: June | K22: 5 | L22: 5 | M22: 5 | N22: distribution determination | O22: 570 George St | Q22: SYDNEY | R22: NSW | S22: 2000 | T22: GPO Box 4009 | V22: SYDNEY | W22: NSW | X22: 2001 | Y22: YES | Z22: YES | AA22: YES | AB22: YES | AC22: NO | AD22: NO | AE22: CBD | AF22: Urban | AG22: Short rural | AH22: Long rural | AJ22: NO | AK22: Ausgrid (Tx Assets)
B23: AusNet (D) | C23: AusNet Electricity Services Pty Ltd | D23: 91064651118 | E23: Vic | F23: Electricity | G23: Distribution | H23: Revenue cap | I23: Calendar | J23: December | K23: 5 | L23: 5 | M23: 2 | N23: 2016-20 Distribution Determination | O23: Level 32 | P23: 2 Southbank Boulevard | Q23: SOUTHBANK | R23: Vic | S23: 3006 | T23: Locked Bag 14051 | V23: MELBOURNE CITY MAIL CENTRE | W23: VIC | X23: 8001 | Y23: NO | Z23: YES | AA23: YES | AB23: YES | AC23: NO | AE23: CBD | AF23: Urban | AG23: Short rural | AH23: Long rural | AJ23: YES | AK23: AusNet (D)
B24: AusNet (Gas) | C24: AusNet Gas Services | D24: 086015036 | E24: Vic | F24: Gas | G24: Distribution | H24: Weighted average price cap | I24: Calendar | J24: December | K24: 5 | L24: 5 | M24: X | O24: Level 19, HSBC Building | P24: 580 George Street | Q24: SYDNEY | R24: NSW | S24: 2000 | T24: PO Box R41 | V24: ROYAL EXCHANGE | W24: NSW | X24: 1225 | Y24: NO | Z24: NO | AA24: NO | AB24: NO | AC24: NO | AE24: CBD | AF24: Urban | AG24: Short rural | AH24: Long rural | AJ24: NO | AK24: AusNet (Gas)
B25: AusNet (T) | C25: Ausnet Services (Transmission) Ltd | D25: 48116124362 | E25: Vic | F25: Electricity | G25: Transmission | H25: Revenue cap | I25: Financial | J25: March | K25: 5 | L25: 5 | M25: 2 | N25: transmission determination | O25: Level 32 | P25: 2 Southbank Boulevard | Q25: SOUTHBANK | R25: Vic | S25: 3006 | T25: Locked Bag 14051 | V25: MELBOURNE CITY MAIL CENTRE | W25: Vic | X25: 8001 | Y25: NO | Z25: NO | AA25: NO | AB25: NO | AC25: NO | AE25: CBD | AF25: Urban | AG25: Short rural | AH25: Long rural | AJ25: NO | AK25: AusNet (T)
B26: Australian Distribution Co. | C26: Australian Distribution Co. | D26: 11222333444 | E26: - | F26: Electricity | G26: Distribution | H26: Revenue cap | I26: Financial | J26: June | K26: 5 | L26: 5 | M26: 2 | N26: distribution determination | O26: 123 Straight Street | Q26: SYDNEY | R26: NSW | S26: 2000 | T26: PO Box 123 | V26: SYDNEY | W26: NSW | X26: 2000 | Y26: YES | Z26: YES | AA26: YES | AB26: YES | AC26: NO | AE26: CBD | AF26: Urban | AG26: Short rural | AH26: Long rural | AJ26: YES | AK26: Australian Distribution Co.
B27: Australian Distribution Co. (Vic) | C27: Australian Distribution Co. (Victoria) | D27: 11222333444 | E27: Vic | F27: Electricity | G27: Distribution | H27: Revenue cap | I27: Calendar | J27: December | K27: 5 | L27: 5 | M27: 2 | N27: distribution determination | O27: 123 Straight Street | Q27: MELBOURNE | R27: Vic | S27: 3000 | T27: PO Box 123 | V27: MELBOURNE | W27: VIC | X27: 3000 | Y27: NO | Z27: NO | AA27: NO | AB27: NO | AC27: NO | AE27: CBD | AF27: Urban | AG27: Short rural | AH27: Long rural | AJ27: YES | AK27: Australian Distribution Co. (Vic)
B28: Australian Distribution Co. (Gas) | C28: Australian Gas Distribution Co. | D28: 11222333444 | E28: NSW | F28: Gas | G28: Distribution | H28: Weighted average price cap | I28: Financial | J28: June | K28: 5 | L28: 5 | O28: 123 Straight Street | Q28: SYDNEY | R28: NSW | S28: 2000 | T28: PO Box 123 | V28: SYDNEY | W28: NSW | X28: 2000 | Y28: NO | Z28: NO | AA28: NO | AB28: NO | AC28: NO | AE28: CBD | AF28: Urban | AG28: Short rural | AH28: Long rural | AJ28: NO | AK28: Australian Distribution Co. (Vic)
B29: Australian Transmission Co. | C29: Australian Transmission Co. | D29: 11222333444 | E29: - | F29: Electricity | G29: Transmission | H29: Revenue cap | I29: Financial | J29: June | K29: 5 | L29: 5 | M29: 5 | N29: transmission determination | O29: 123 Straight Street | Q29: SYDNEY | R29: NSW | S29: 2000 | T29: PO Box 123 | V29: SYDNEY | W29: NSW | X29: 2000 | Y29: NO | Z29: NO | AA29: NO | AB29: NO | AC29: NO | AE29: CBD | AF29: Urban | AG29: Short rural | AH29: Long rural | AJ29: NO | AK29: Australian Transmission Co.
B30: Central Ranges Pipeline (D) | C30: Central Ranges Pipeline Pty Ltd | D30: 108218355 | E30: NSW | F30: Gas | G30: Distribution | H30: Weighted average price cap | I30: Financial | J30: June | K30: 15 | L30: 5 | M30: 5 | N30: distribution determination | O30: Level 19 | P30: 580 George Street | Q30: SYDNEY | R30: NSW | S30: 2000 | T30: PO Box R41 | V30: ROYAL EXCHANGE | W30: NSW | X30: 1225 | Y30: NO | Z30: NO | AA30: NO | AB30: NO | AC30: NO | AE30: CBD | AF30: Urban | AG30: Short rural | AH30: Long rural | AJ30: NO
B31: Central Ranges Pipeline (T) | C31: Central Ranges Pipeline Pty Ltd | D31: 108218355 | E31: NSW | F31: Gas | G31: Distribution | H31: Weighted average price cap | I31: Financial | J31: June | K31: 14 | L31: 5 | M31: 5 | N31: transmission determination | O31: Level 19 | P31: 580 George Street | Q31: SYDNEY | R31: NSW | S31: 2000 | T31: PO Box R41 | V31: ROYAL EXCHANGE | W31: NSW | X31: 1225 | Y31: NO | Z31: NO | AA31: NO | AB31: NO | AC31: NO | AE31: CBD | AF31: Urban | AG31: Short rural | AH31: Long rural | AJ31: NO
B32: CitiPower | C32: CitiPower | D32: 76064651056 | E32: Vic | F32: Electricity | G32: Distribution | H32: Revenue cap | I32: Calendar | J32: December | K32: 5 | L32: 5 | M32: 2 | N32: 2016-20 Distribution Determination | O32: 40 Market Street | Q32: MELBOURNE | R32: Vic | S32: 3000 | T32: Locked Bag 14090 | V32: MELBOURNE | W32: VIC | X32: 8001 | Y32: YES | Z32: YES | AA32: NO | AB32: NO | AC32: NO | AE32: CBD | AF32: Urban | AG32: Short rural | AH32: Long rural | AJ32: YES | AK32: CitiPower
B33: Directlink | C33: Directlink | D33: 16779340889 | E33: Qld | F33: Electricity | G33: Transmission | H33: Revenue cap | I33: Financial | J33: June | K33: 9 | L33: 5 | M33: 5 | N33: transmission determination | O33: Level 19, HSBC Building | P33: 580 George Street | Q33: SYDNEY | R33: NSW | S33: 2000 | T33: PO Box R41 | V33: ROYAL EXCHANGE | W33: NSW | X33: 1225 | Y33: NO | Z33: NO | AA33: NO | AB33: NO | AC33: NO | AE33: CBD | AF33: Urban | AG33: Short rural | AH33: Long rural | AJ33: NO | AK33: Directlink
B34: ElectraNet | C34: ElectraNet | D34: 41094482416 | E34: SA | F34: Electricity | G34: Transmission | H34: Revenue cap | I34: Financial | J34: June | K34: 5 | L34: 5 | M34: 5 | N34: transmission determination | O34: 52-55 East Terrace | P34: Rymill Park | Q34: ADELAIDE | R34: SA | S34: 5000 | T34: PO Box 7096 | U34: Hutt Street Post Office | V34: ADELAIDE | W34: SA | X34: 5000 | Y34: NO | Z34: NO | AA34: NO | AB34: NO | AC34: NO | AE34: CBD | AF34: Urban | AG34: Short rural | AH34: Long rural | AJ34: NO | AK34: ElectraNet
B35: Endeavour Energy | C35: Endeavour Energy | D35: 11247365823 | E35: NSW | F35: Electricity | G35: Distribution | H35: Revenue cap | I35: Financial | J35: June | K35: 5 | L35: 5 | M35: 5 | N35: 2014-19 Distribution Determination | O35: 51 Huntingwood Drive | Q35: HUNTINGWOOD | R35: NSW | S35: 2148 | T35: PO Box 811 | V35: SEVEN HILLS | W35: NSW | X35: 1730 | Y35: NO | Z35: YES | AA35: YES | AB35: YES | AC35: NO | AD35: NO | AE35: CBD | AF35: Urban | AG35: Short rural | AH35: Long rural | AJ35: YES | AK35: Endeavour Energy
B36: Energex | C36: Energex | D36: 40078849055 | E36: Qld | F36: Electricity | G36: Distribution | H36: Revenue cap | I36: Financial | J36: June | K36: 5 | L36: 5 | M36: 5 | N36: 2015-20 Distribution Determination | O36: 26 Reddacliff Street | Q36: NEWSTEAD | R36: Qld | S36: 4006 | T36: 26 Reddacliff Street | V36: NEWSTEAD | W36: QLD | X36: 4006 | Y36: YES | Z36: YES | AA36: YES | AB36: NO | AC36: NO | AD36: NO | AE36: CBD | AF36: Urban | AG36: Short rural | AH36: Long rural | AJ36: YES | AK36: Energex
B37: Ergon Energy | C37: Ergon Energy | D37: 50087646062 | E37: Qld | F37: Electricity | G37: Distribution | H37: Revenue cap | I37: Financial | J37: June | K37: 5 | L37: 5 | M37: 5 | N37: 2015-20 Distribution Determination | O37: 22 Walker Street | Q37: TOWNSVILLE | R37: Qld | S37: 4810 | T37: Po Box 264 | V37: FORTITUDE VALLEY | W37: QLD | X37: 4006 | Y37: NO | Z37: YES | AA37: YES | AB37: YES | AC37: NO | AD37: NO | AE37: CBD | AF37: Urban | AG37: Short rural | AH37: Long rural | AJ37: YES | AK37: Ergon Energy
B38: Essential Energy | C38: Essential Energy | D38: 37428185226 | E38: NSW | F38: Electricity | G38: Distribution | H38: Revenue cap | I38: Financial | J38: June | K38: 5 | L38: 5 | M38: 5 | N38: 2014-19 Distribution Determination | O38: 8 Buller Street | Q38: PORT MACQUARIE | R38: NSW | S38: 2444 | T38: PO Box 5730 | V38: PORT MACQUARIE | W38: NSW | X38: 2444 | Y38: NO | Z38: NO | AA38: YES | AB38: YES | AC38: NO | AD38: NO | AE38: CBD | AF38: Urban | AG38: Short rural | AH38: Long rural | AJ38: YES | AK38: Essential Energy
B39: Jemena Electricity | C39: Jemena Electricity | D39: 82064651083 | E39: Vic | F39: Electricity | G39: Distribution | H39: Revenue cap | I39: Calendar | J39: December | K39: 5 | L39: 5 | M39: 2 | N39: 2016-20 Distribution Determination | O39: Level 16 | P39: 567 Collins Street | Q39: MELBOURNE | R39: VIC | S39: 3000 | T39: PO Box 16182 | V39: MELBOURNE | W39: VIC | X39: 8001 | Y39: NO | Z39: YES | AA39: YES | AB39: NO | AC39: NO | AE39: CBD | AF39: Urban | AG39: Short rural | AH39: Long rural | AJ39: YES | AK39: Jemena Electricity
B40: JGN | C40: Jemena Gas Networks (NSW) Ltd | D40: 003 004 322 | E40: NSW | F40: Gas | G40: Distribution | H40: Weighted average price cap | I40: Financial | J40: June | K40: 5 | L40: 5 | Y40: NO | Z40: NO | AA40: NO | AB40: NO | AC40: NO | AE40: CBD | AF40: Urban | AG40: Short rural | AH40: Long rural | AJ40: NO | AK40: JGN
B41: Multinet Gas | C41: Multinet Gas (DB No.1) Pty Ltd (ACN 086 026 986), Multinet Gas (DB No.2) Pty Ltd (ACN 086 230 122) | D41: 086026986 | E41: Vic | F41: Gas | G41: Distribution | H41: Weighted average price cap | I41: Calendar | J41: December | K41: 5 | L41: 5 | M41: x | O41: 43-45 Centreway | Q41: MT WAVERLEY | R41: Vic | S41: 3149 | Y41: NO | Z41: NO | AA41: NO | AB41: NO | AC41: NO | AE41: CBD | AF41: Urban | AG41: Short rural | AH41: Long rural | AJ41: NO | AK41: Multinet Gas
B42: Murraylink | C42: Murraylink | D42: 79181207909 | E42: SA | F42: Electricity | G42: Transmission | H42: Revenue cap | I42: Financial | J42: June | K42: 5 | L42: 5 | M42: 5 | N42: transmission determination | O42: Level 19 | P42: 580 George Street | Q42: SYDNEY | R42: NSW | S42: 2000 | T42: PO Box R41 | V42: ROYAL EXCHANGE | W42: NSW | X42: 1225 | Y42: NO | Z42: NO | AA42: NO | AB42: NO | AC42: NO | AE42: CBD | AF42: Urban | AG42: Short rural | AH42: Long rural | AJ42: NO | AK42: Murraylink
B43: Power and Water | C43: Power and Water Corporation | D43: 15947352360 | E43: NT | F43: Electricity | G43: Distribution | H43: Revenue cap | I43: Financial | J43: June | K43: 5 | L43: 5 | M43: x | N43: distribution determination | O43: GPO Box 1921 | Q43: DARWIN | R43: NT | S43: 801 | T43: GPO Box 1921 | V43: DARWIN | W43: NT | X43: 801 | Y43: YES | Z43: YES | AA43: YES | AB43: YES | AC43: NO | AE43: CBD | AF43: Urban | AG43: Short rural | AH43: Long rural | AJ43: NO | AK43: Power and Water
B44: Powercor Australia | C44: Powercor Australia | D44: 89064651109 | E44: Vic | F44: Electricity | G44: Distribution | H44: Revenue cap | I44: Calendar | J44: December | K44: 5 | L44: 5 | M44: 2 | N44: 2016-20 Distribution Determination | O44: 40 Market Street | Q44: MELBOURNE | R44: Vic | S44: 3000 | T44: Locked bag 14090 | V44: MELBOURNE | W44: VIC | X44: 8001 | Y44: NO | Z44: NO | AA44: YES | AB44: YES | AC44: NO | AE44: CBD | AF44: Urban | AG44: Short rural | AH44: Long rural | AJ44: YES | AK44: Powercor Australia
B45: Powerlink | C45: Queensland Electricity Transmission Corporation Limited trading as Powerlink Queensland | D45: 82078849233 | E45: Qld | F45: Electricity | G45: Transmission | H45: Revenue cap | I45: Financial | J45: June | K45: 5 | L45: 5 | M45: 5 | N45: transmission determination | O45: 33 Harold St | Q45: VIRGINIA | R45: Qld | S45: 4014 | T45: PO Box 1193 | V45: VIRGINIA | W45: QLD | X45: 4014 | Y45: NO | Z45: NO | AA45: NO | AB45: NO | AC45: NO | AE45: CBD | AF45: Urban | AG45: Short rural | AH45: Long rural | AJ45: NO | AK45: Powerlink
B46: Roma to Brisbane Pipeline | C46: APT Petroleum Pipelines Limited t/a Roma to Brisbane Pipeline | D46: 009 737 393 | E46: Qld | F46: Gas | G46: Transmission | H46: Weighted average price cap | I46: Financial | J46: June | K46: 5 | L46: 5 | M46: x | N46: n/a | O46: 580 George Street | Q46: SYDNEY | R46: NSW | S46: 2000 | T46: PO Box R41 | V46: ROYAL EXCHANGE | W46: NSW | X46: 1225 | Y46: NO | Z46: NO | AA46: NO | AB46: NO | AC46: NO | AE46: CBD | AF46: Urban | AG46: Short rural | AH46: Long rural | AJ46: NO | AK46: Roma to Brisbane Pipeline
B47: SA Power Networks | C47: SA Power Networks | D47: 13332330749 | E47: SA | F47: Electricity | G47: Distribution | H47: Revenue cap | I47: Financial | J47: June | K47: 5 | L47: 5 | M47: 5 | N47: 2015-20 Distribution Determination | O47: 1 Anzac Highway | Q47: KESWICK | R47: SA | S47: 5035 | T47: GPO Box 77 | V47: ADELAIDE | W47: SA | X47: 5000 | Y47: YES | Z47: YES | AA47: YES | AB47: YES | AC47: NO | AD47: NO | AE47: CBD | AF47: Urban | AG47: Short rural | AH47: Long rural | AJ47: NO | AK47: SA Power Networks
B48: TasNetworks (D) | C48: TasNetworks (D) | D48: 24167357299 | E48: Tas | F48: Electricity | G48: Distribution | H48: Revenue cap | I48: Financial | J48: June | K48: 5 | L48: 5 | M48: 5 | N48: distribution determination | O48: 1-7 Maria Street | Q48: LENAH VALLEY | R48: Tas | S48: 7008 | T48: PO Box 606 | V48: MOONAH | W48: Tas | X48: 7009 | Y48: YES | Z48: YES | AA48: YES | AB48: YES | AC48: YES | AD48: NO | AE48: Critical Infrastructure | AF48: High density commercial | AG48: Urban | AH48: High density rural | AI48: Low density rural | AJ48: YES | AK48: TasNetworks (D)
B49: TasNetworks (T) | C49: TasNetworks (T) | D49: 24167357299 | E49: Tas | F49: Electricity | G49: Transmission | H49: Revenue cap | I49: Financial | J49: June | K49: 5 | L49: 5 | M49: 5 | N49: transmission determination | O49: 1-7 Maria Street | Q49: LENAH VALLEY | R49: Tas | S49: 7008 | T49: PO Box 606 | V49: MOONAH | W49: Tas | X49: 7009 | Y49: NO | Z49: NO | AA49: NO | AB49: NO | AC49: NO | AE49: CBD | AF49: Urban | AG49: Short rural | AH49: Long rural | AJ49: NO | AK49: TasNetworks (T)
B50: TransGrid | C50: NSW Electricity Networks Operations Pty Ltd trading as TransGrid | D50: 70 250 995 390 | E50: NSW | F50: Electricity | G50: Transmission | H50: Revenue cap | I50: Financial | J50: June | K50: 4 | L50: 5 | M50: 5 | N50: transmission determination | O50: 180 Thomas Street | Q50: SYDNEY | R50: NSW | S50: 2000 | T50: PO Box A1000 | V50: SYDNEY SOUTH | W50: NSW | X50: 1235 | Y50: NO | Z50: NO | AA50: NO | AB50: NO | AC50: NO | AE50: CBD | AF50: Urban | AG50: Short rural | AH50: Long rural | AJ50: NO | AK50: TransGrid
B51: United Energy | C51: United Energy | D51: 70064651029 | E51: Vic | F51: Electricity | G51: Distribution | H51: Revenue cap | I51: Calendar | J51: December | K51: 5 | L51: 5 | M51: 2 | N51: 2016-20 Distribution Determination | O51: Level 3 | P51: 6 Nexus Court | Q51: MULGRAVE | R51: Vic | S51: 3149 | T51: PO Box 449 | V51: MOUNT WAVERLEY | W51: VIC | X51: 3170 | Y51: NO | Z51: NO | AA51: YES | AB51: NO | AC51: NO | AE51: CBD | AF51: Urban | AG51: Short rural | AH51: Long rural | AJ51: YES | AK51: United Energy
Z54: For EB & Reset RINs only | AE54: For AARs only
B55: The Reg Year Ending (dms_RYE) must be set to the last year of the regulatory period. For forecast data is is usually (FRCP_y5) for actual it is a single year (CRY). For historical actual data the RYE will need to be set manually in the business details sheet by setting the dms_Multiyear_flag to 1 and putting the correct value in 'dms_Specified_FinalYear. See cells C67:C68 | N55: Drop down selector box for CA & Reset RINs. | O55: For CA & Reset RINs only | Z55: for DNSP only | AE55: For DNSPs only
B56: dms_Model_List | C56: dms_Worksheet_List | E56: dms_RYE_Formula_Result | N56: dms_0203_ProjectType | O56: dms_020303_01_UOM | P56: dms_020501_01_UOM | Q56: dms_020501_02_UOM | R56: dms_020501_03_UOM | S56: dms_020501_04_UOM | T56: dms_020603_01_UOM | U56: dms_020701_01_UOM | V56: dms_020701_02_UOM | W56: dms_020701_01_Rows | X56: dms_040102_01_UOM | Y56: dms_040102_04_UOM | Z56: dms_030601_01_UOM | AA56: dms_030601_02_UOM | AB56: dms_030701_01_UOM | AC56: dms_030702_01_UOM | AD56: dms_030703_01_UOM | AE56: dms_030605_UOM | AF56: dms_03060703_UOM
B57: ARR | C57: ANNUAL REPORTING STATEMENT | E57: =LEFT(dms_SingleYear_FinalYear_Result,2)&RIGHT(dms_SingleYear_FinalYear_Result,2) -> 2018 | F57: =LEFT(dms_SingleYear_FinalYear_Result,2)&RIGHT(dms_SingleYear_FinalYear_Result,2) | H57: Formula errors are OK | N57: New line on new route - single circuit | O57: Circuit line length in km | P57: 0's | Q57: 0's | R57: 0's | S57: 0's | T57: 0's | U57: km | V57: km | W57: Route line length within zone | X57: 0's | Y57: days | Z57: minutes/customer | AA57: minutes/customer | AB57: Customer / km | AC57: % | AD57: km | AE57: number | AF57: number
B58: CA | C58: CATEGORY ANALYSIS | E58: =LEFT(dms_SingleYear_FinalYear_Result,2)&RIGHT(dms_SingleYear_FinalYear_Result,2) -> 2018 | F58: =LEFT(dms_SingleYear_FinalYear_Result,2)&RIGHT(dms_SingleYear_FinalYear_Result,2) | H58: Formula errors are OK | N58: New line on new route - dual circuit | O58: Circuit line length in km | P58: 0's | Q58: 0's | R58: 0's | S58: 0's | T58: 0's | U58: 0's | V58: 0's | W58: Number of maintenance spans | X58: 0's | Y58: 0's | Z58: minutes/customer | AA58: minutes/customer | AB58: MWh/customer | AC58: Number of spans | AE58: number | AF58: number
B59: CESS | C59: CAPITLAL EXPENDITURE SHARING SCHEMING | E59: 2016 | F59: =LEFT(dms_SingleYear_FinalYear_Result,2)&RIGHT(dms_SingleYear_FinalYear_Result,2) | N59: New line on new route - other | O59: Circuit line length in km | P59: MVA added | Q59: MVA added | R59: MVA added | S59: MVA added | T59: 0's | U59: km | V59: km | W59: Total length of maintenance spans | X59: 0's | Y59: $0s | Z59: interruptions/customer | AA59: interruptions/customer | AB59: kVA / customer | AC59: Number of spans | AE59: number | AF59: number
B60: CPI | C60: CPI | N60: Line rebuild over existing route - single circuit | O60: Circuit line length in km | P60: 0's | Q60: 0's | R60: 0's | S60: 0's | T60: 0's | U60: km | V60: km | W60: Length of vegetation corridors | X60: $0s | Y60: 0's | Z60: interruptions/customer | AA60: interruptions/customer | AC60: Number of spans | AE60: number | AF60: number
B61: EB | C61: ECONOMIC BENCHMARKING | E61: =LEFT(dms_SingleYear_FinalYear_Result,2)&RIGHT(dms_SingleYear_FinalYear_Result,2) -> 2018 | F61: =LEFT(dms_SingleYear_FinalYear_Result,2)&RIGHT(dms_SingleYear_FinalYear_Result,2) | H61: Formula errors are OK | N61: Line rebuild over existing route - dual circuit | O61: Number | P61: total spend $0s | Q61: total spend $0s | R61: total spend $0s | S61: total spend $0s | T61: (per cent) | U61: 0's | V61: 0's | W61: Average number of trees per maintenance span | AC61: Number of spans | AE61: number | AF61: (per cent)
B62: PTRM | C62: POST TAX REVENUE MODEL | E62: =LEFT(dms_MultiYear_FinalYear_Result,2)&RIGHT(dms_MultiYear_FinalYear_Result,2) -> 2025 | F62: =LEFT(dms_MultiYear_FinalYear_Result,2)&RIGHT(dms_MultiYear_FinalYear_Result,2) | N62: Reconductor - Single circuit | O62: Number | P62: net circuit km added | Q62: net circuit km added | R62: net circuit km added | S62: net circuit km added | U62: years | V62: years | W62: Average frequency of cutting cycle | AC62: Years | AE62: number
B63: Reset | C63: REGULATORY REPORTING STATEMENT | E63: =LEFT(dms_MultiYear_FinalYear_Result,2)&RIGHT(dms_MultiYear_FinalYear_Result,2) -> 2025 | F63: =LEFT(dms_MultiYear_FinalYear_Result,2)&RIGHT(dms_MultiYear_FinalYear_Result,2) | H63: Formula errors are OK | N63: Reconductor - Dual circuit | O63: Number | P63: total spend $0s | Q63: total spend $0s | R63: total spend $0s | S63: total spend $0s | AC63: Years | AE63: number
B64: RFM | C64: ROLL FORWARD MODEL | E64: =LEFT(dms_CRCP_FinalYear_Result,2)&RIGHT(dms_CRCP_FinalYear_Result,2) -> 2018 | F64: =LEFT(dms_CRCP_FinalYear_Result,2)&RIGHT(dms_CRCP_FinalYear_Result,2) | N64: Other | P64: net circuit km added | Q64: net circuit km added | R64: net circuit km added | S64: net circuit km added | AC64: Trees | AE64: number
B65: WACC | C65: WEIGHTED AVERAGE COST OF CAPITAL | E65: =LEFT(dms_MultiYear_FinalYear_Result,2)&RIGHT(dms_MultiYear_FinalYear_Result,2) -> 2025 | F65: =LEFT(dms_MultiYear_FinalYear_Result,2)&RIGHT(dms_MultiYear_FinalYear_Result,2) | P65: total spend $0s | Q65: total spend $0s | R65: total spend $0s | S65: total spend $0s | AC65: Trees | AE65: number
P66: 0's | R66: $0s | AC66: Defects | AE66: number
B67: dms_DataQuality_List | P67: 0's | AC67: Defects | AE67: number
B68: Actual | P68: 0's | AC68: Spans | AE68: number
B69: Estimate | P69: $0s | AC69: km | AE69: (per cent)
B70: Consolidated | AC70: Spans | AE70: (per cent)
B71: Recast
B72: Public
O73: For PTRM files - this field set the text for the named range "DMS_Xfactor" which in all cases is simply the text "x factors" - this saves putting in each old gas PTRM file | Z73: for TNSP only
B74: For all files either AER or business needs to be able to specify the type of submission | C74: For PTRM & RFM templates we must provide a choice in case they change their form of control - otherwise it is drawn from the business specific lookup table above. | O74: DMS_Xfactor | Z74: dms_030601_01_UOM | AB74: dms_030701_01_UOM | AC74: dms_030702_01_UOM
B75: dms_SourceList | C75: dms_FormControl_Choices | O75: x factors | Z75: % | AB75: Number of spans | AC75: km
B76: After appeal | C76: Revenue cap | Z76: number | AB76: Years | AC76: %
B77: Draft decision | C77: Revenue yield | Z77: number | AB77: Trees | AC77: km
B78: Final decision | C78: Weighted average price cap | Z78: % | AB78: Defects | AC78: number
B79: PTRM update 1 | Z79: number | AB79: Number of spans
B80: PTRM update 2 | Z80: number | AB80: km
B81: PTRM update 3 | Z81: % | AB81: km
B82: PTRM update 4 | Z82: number | AB82: Number of spans
B83: PTRM update 5 | Z83: number
B84: PTRM update 6 | Z84: %
B85: PTRM update 7 | Z85: number
B86: Regulatory proposal | Z86: %
B87: Reporting | Z87: number
B88: Revised regulatory proposal | Z88: %
Z89: number
B93: Reason for interruption | C93: dms_Reason_Interruption_Detailed | D93: dms_Reason_Interruption | E93: dms_STPIS_Exclusion_List | F93: dms_020301_ProjectType_List | G93: dms_020302_ProjectType_List
B94: Animal | C94: Animal impact | D94: Animal | E94: Weather | F94: New substation establishment | G94: New line on new route - single circuit
C95: Animal nesting/burrowing, etc and other | D95: Asset failure | E95: Equipment failure | F95: Capacity upgrade | G95: New line on new route - dual circuit
C96: Other | D96: Other | E96: Operational error | F96: Voltage upgrade | G96: New line on new route - other
B97: Asset failure | C97: LV | D97: Overloads | E97: Vegetation | F97: Other | G97: Line rebuild over existing route - single circuit
C98: Distribution substation | D98: Planned | E98: Animals | G98: Line rebuild over existing route - dual circuit
C99: HV | D99: Network business | E99: Third party impacts | G99: Reconductor - Single circuit
C100: Zone substation | D100: Third party | E100: Transmission failure | G100: Reconductor - Dual circuit
C101: Subtransmission | D101: Unknown | E101: Load shedding | G101: Reconductor - Other
B102: Other | C102: insert description of 'other' | D102: Vegetation | E102: Inter-distributor connection failure | G102: Line upgrade - raising/retensoring
B103: Overloads | C103: - | D103: Weather | E103: Other | G103: Line upgrade - voltage upgrade
B104: Planned | C104: - | D104: 2 - STPIS Exclusion (3.3)(a) | G104: Line upgrade - capacity
B105: Network business | C105: Network error | D105: 3 - STPIS Exclusion (3.3)(a) | G105: String spare circuit
C106: Switching and protection error | D106: 4 - STPIS Exclusion (3.3)(a) | G106: Other
B107: Third party | C107: Fire | D107: 5 - STPIS Exclusion (3.3)(a)
C108: Other | D108: 6 - STPIS Exclusion (3.3)(a)
C109: Dig-in | D109: 7 - STPIS Exclusion (3.3)(a)
C110: Unauthorised access
C111: Vehicle impact
B112: Unknown | C112: Unknown
B113: Vegetation | C113: Blow-in/Fall-in - NSP responsibility
C114: Grow-in - NSP responsibility
C115: Blow-in/Fall-in - Other responsible party
C116: Grow-in - Other responsible party
B117: Weather
B118: 2 - STPIS Exclusion (3.3)(a)
B119: 3 - STPIS Exclusion (3.3)(a)
B120: 4 - STPIS Exclusion (3.3)(a)
B121: 5 - STPIS Exclusion (3.3)(a)
B122: 6 - STPIS Exclusion (3.3)(a)
B123: 7 - STPIS Exclusion (3.3)(a)
B131: These are indeces and lookup values for various dates. All step from the value placed in FRCP_y1 on the business and other details worksheet | C131: =IF(dms_FifthFeeder_flag_NSP="NO","This NSP has only 4 feeder categories","This NSP has 5 feeder categories") -> This NSP has only 4 feeder categories | O131: These date tables are currently used in the Recast templates to provide column headings and conditional formatting
B132: dms_FRCPlength_Num_List | C132: dms_FinalYear_List | D132: dms_CRCPlength_Num_List | E132: dms_CFinalYear_List | F132: dms_FRCP_years | H132: dms_CRCP_years | J132: dms_CRCP_index | L132: dms_Financial_Years | M132: dms_Calendar_Years | O132: CRY from input cell on business sheet | P132: CRY - financial | Q132: dms_FinYears | R132: CRY calendar | S132: dms_CalYears
B133: 1 | C133: dms_FRCP_y1 | D133: 1 | E133: CRCP_y1 | F133: =FRCP_y1 -> 2020-21 | G133: dms_FRCP_y1 | H133: =IF(dms_RPT="financial",VALUE(LEFT(dms_FRCP_y1,4)-1)&"-"&TEXT(VALUE(MID(dms_FRCP_y1,3,2)),"00"),VALUE(LEFT(dms_FRCP_y1,4)-1)) -> 2019-20 | I133: dms_CRCP_yZ | J133: 1 | L133: 2005-06 | M133: 2006 | O133: =CRY -> 2017-18 | P133: =VALUE(LEFT(CRY,4))&"-"&TEXT(MID(CRY,3,2)+1,"00") -> 2017-18 | Q133: dms_CRYf_y1 | R133: =VALUE(LEFT(CRY,4)+1) -> 2018 | S133: dms_CRYc_y1
B134: 2 | C134: dms_FRCP_y2 | D134: 2 | E134: CRCP_y2 | F134: =IF(dms_RPT="financial",VALUE(LEFT(dms_FRCP_y1,4)+1)&"-"&TEXT(VALUE(RIGHT(dms_FRCP_y1,2)+1),"00"),VALUE(LEFT(dms_FRCP_y1,4)+1)) -> 2021-22 | G134: dms_FRCP_y2 | H134: =IF(dms_RPT="financial",VALUE(LEFT(dms_CRCP_yZ,4)-1)&"-"&TEXT(VALUE(MID(dms_CRCP_yZ,3,2)),"00"),VALUE(LEFT(dms_CRCP_yZ,4)-1)) -> 2018-19 | I134: dms_CRCP_yY | J134: 2 | L134: 2006-07 | M134: 2007 | P134: =VALUE(LEFT(dms_CRYf_y1,4)+1)&"-"&TEXT(MID(dms_CRYf_y1,3,2)+2,"00") -> 2018-19 | Q134: dms_CRYf_y2 | R134: =VALUE(LEFT(dms_CRYc_y1,4)+1) -> 2019 | S134: dms_CRYc_y2
B135: 3 | C135: dms_FRCP_y3 | D135: 3 | E135: CRCP_y3 | F135: =IF(dms_RPT="financial",VALUE(LEFT(dms_FRCP_y2,4)+1)&"-"&TEXT(VALUE(RIGHT(dms_FRCP_y2,2)+1),"00"),VALUE(LEFT(dms_FRCP_y2,4)+1)) -> 2022-23 | G135: dms_FRCP_y3 | H135: =IF(dms_RPT="financial",VALUE(LEFT(dms_CRCP_yY,4)-1)&"-"&TEXT(VALUE(MID(dms_CRCP_yY,3,2)),"00"),VALUE(LEFT(dms_CRCP_yY,4)-1)) -> 2017-18 | I135: dms_CRCP_yX | J135: 3 | L135: 2007-08 | M135: 2008 | P135: =VALUE(LEFT(dms_CRYf_y2,4)+1)&"-"&TEXT(MID(dms_CRYf_y2,3,2)+2,"00") -> 2019-20 | Q135: dms_CRYf_y3 | R135: =VALUE(LEFT(dms_CRYc_y2,4)+1) -> 2020 | S135: dms_CRYc_y3
B136: 4 | C136: dms_FRCP_y4 | D136: 4 | E136: CRCP_y4 | F136: =IF(dms_RPT="financial",VALUE(LEFT(dms_FRCP_y3,4)+1)&"-"&TEXT(VALUE(RIGHT(dms_FRCP_y3,2)+1),"00"),VALUE(LEFT(dms_FRCP_y3,4)+1)) -> 2023-24 | G136: dms_FRCP_y4 | H136: =IF(dms_RPT="financial",VALUE(LEFT(dms_CRCP_yX,4)-1)&"-"&TEXT(VALUE(MID(dms_CRCP_yX,3,2)),"00"),VALUE(LEFT(dms_CRCP_yX,4)-1)) -> 2016-17 | I136: dms_CRCP_yW | J136: 4 | L136: 2008-09 | M136: 2009 | P136: =VALUE(LEFT(dms_CRYf_y3,4)+1)&"-"&TEXT(MID(dms_CRYf_y3,3,2)+2,"00") -> 2020-21 | Q136: dms_CRYf_y4 | R136: =VALUE(LEFT(dms_CRYc_y3,4)+1) -> 2021 | S136: dms_CRYc_y4
B137: 5 | C137: dms_FRCP_y5 | D137: 5 | E137: CRCP_y5 | F137: =IF(dms_RPT="financial",VALUE(LEFT(dms_FRCP_y4,4)+1)&"-"&TEXT(VALUE(RIGHT(dms_FRCP_y4,2)+1),"00"),VALUE(LEFT(dms_FRCP_y4,4)+1)) -> 2024-25 | G137: dms_FRCP_y5 | H137: =IF(dms_RPT="financial",VALUE(LEFT(dms_CRCP_yW,4)-1)&"-"&TEXT(VALUE(MID(dms_CRCP_yW,3,2)),"00"),VALUE(LEFT(dms_CRCP_yW,4)-1)) -> 2015-16 | I137: dms_CRCP_yV | J137: 5 | L137: 2009-10 | M137: 2010 | P137: =VALUE(LEFT(dms_CRYf_y4,4)+1)&"-"&TEXT(MID(dms_CRYf_y4,3,2)+2,"00") -> 2021-22 | Q137: dms_CRYf_y5 | R137: =VALUE(LEFT(dms_CRYc_y4,4)+1) -> 2022 | S137: dms_CRYc_y5
B138: 6 | C138: dms_FRCP_y6 | D138: 6 | E138: CRCP_y6 | F138: =IF(dms_RPT="financial",VALUE(LEFT(dms_FRCP_y5,4)+1)&"-"&TEXT(VALUE(RIGHT(dms_FRCP_y5,2)+1),"00"),VALUE(LEFT(dms_FRCP_y5,4)+1)) -> 2025-26 | G138: dms_FRCP_y6 | H138: =IF(dms_RPT="financial",VALUE(LEFT(dms_CRCP_yV,4)-1)&"-"&TEXT(VALUE(MID(dms_CRCP_yV,3,2)),"00"),VALUE(LEFT(dms_CRCP_yV,4)-1)) -> 2014-15 | I138: dms_CRCP_yU | J138: 6 | L138: 2010-11 | M138: 2011 | P138: =VALUE(LEFT(dms_CRYf_y5,4)+1)&"-"&TEXT(MID(dms_CRYf_y5,3,2)+2,"00") -> 2022-23 | Q138: dms_CRYf_y6 | R138: =VALUE(LEFT(dms_CRYc_y5,4)+1) -> 2023 | S138: dms_CRYc_y6
B139: 7 | C139: dms_FRCP_y7 | D139: 7 | E139: CRCP_y7 | F139: =IF(dms_RPT="financial",VALUE(LEFT(dms_FRCP_y6,4)+1)&"-"&TEXT(VALUE(RIGHT(dms_FRCP_y6,2)+1),"00"),VALUE(LEFT(dms_FRCP_y6,4)+1)) -> 2026-27 | G139: dms_FRCP_y7 | H139: =IF(dms_RPT="financial",VALUE(LEFT(dms_CRCP_yU,4)-1)&"-"&TEXT(VALUE(MID(dms_CRCP_yU,3,2)),"00"),VALUE(LEFT(dms_CRCP_yU,4)-1)) -> 2013-14 | I139: dms_CRCP_yT | J139: 7 | L139: 2011-12 | M139: 2012 | P139: =VALUE(LEFT(dms_CRYf_y6,4)+1)&"-"&TEXT(MID(dms_CRYf_y6,3,2)+2,"00") -> 2023-24 | Q139: dms_CRYf_y7 | R139: =VALUE(LEFT(dms_CRYc_y6,4)+1) -> 2024 | S139: dms_CRYc_y7
B140: 8 | C140: dms_FRCP_y8 | D140: 8 | E140: CRCP_y8 | F140: =IF(dms_RPT="financial",VALUE(LEFT(dms_FRCP_y7,4)+1)&"-"&TEXT(VALUE(RIGHT(dms_FRCP_y7,2)+1),"00"),VALUE(LEFT(dms_FRCP_y7,4)+1)) -> 2027-28 | G140: dms_FRCP_y8 | H140: =IF(dms_RPT="financial",VALUE(LEFT(dms_CRCP_yT,4)-1)&"-"&TEXT(VALUE(MID(dms_CRCP_yT,3,2)),"00"),VALUE(LEFT(dms_CRCP_yT,4)-1)) -> 2012-13 | I140: dms_CRCP_yS | J140: 8 | L140: 2012-13 | M140: 2013 | P140: =VALUE(LEFT(dms_CRYf_y7,4)+1)&"-"&TEXT(MID(dms_CRYf_y7,3,2)+2,"00") -> 2024-25 | Q140: dms_CRYf_y8 | R140: =VALUE(LEFT(dms_CRYc_y7,4)+1) -> 2025 | S140: dms_CRYc_y8
B141: 9 | C141: dms_FRCP_y9 | D141: 9 | E141: CRCP_y9 | F141: =IF(dms_RPT="financial",VALUE(LEFT(dms_FRCP_y8,4)+1)&"-"&TEXT(VALUE(RIGHT(dms_FRCP_y8,2)+1),"00"),VALUE(LEFT(dms_FRCP_y8,4)+1)) -> 2028-29 | G141: dms_FRCP_y9 | H141: =IF(dms_RPT="financial",VALUE(LEFT(dms_CRCP_yS,4)-1)&"-"&TEXT(VALUE(MID(dms_CRCP_yS,3,2)),"00"),VALUE(LEFT(dms_CRCP_yS,4)-1)) -> 2011-12 | I141: dms_CRCP_yR | J141: 9 | L141: 2013-14 | M141: 2014 | P141: =VALUE(LEFT(dms_CRYf_y8,4)+1)&"-"&TEXT(MID(dms_CRYf_y8,3,2)+2,"00") -> 2025-26 | Q141: dms_CRYf_y9 | R141: =VALUE(LEFT(dms_CRYc_y8,4)+1) -> 2026 | S141: dms_CRYc_y9
B142: 10 | C142: dms_FRCP_y10 | D142: 10 | E142: CRCP_y10 | F142: =IF(dms_RPT="financial",VALUE(LEFT(dms_FRCP_y9,4)+1)&"-"&TEXT(VALUE(RIGHT(dms_FRCP_y9,2)+1),"00"),VALUE(LEFT(dms_FRCP_y9,4)+1)) -> 2029-30 | G142: dms_FRCP_y10 | H142: =IF(dms_RPT="financial",VALUE(LEFT(dms_CRCP_yR,4)-1)&"-"&TEXT(VALUE(MID(dms_CRCP_yR,3,2)),"00"),VALUE(LEFT(dms_CRCP_yR,4)-1)) -> 2010-11 | I142: dms_CRCP_yQ | J142: 10 | L142: 2014-15 | M142: 2015 | P142: =VALUE(LEFT(dms_CRYf_y9,4)+1)&"-"&TEXT(MID(dms_CRYf_y9,3,2)+2,"00") -> 2026-27 | Q142: dms_CRYf_y10 | R142: =VALUE(LEFT(dms_CRYc_y9,4)+1) -> 2027 | S142: dms_CRYc_y10
B143: 11 | C143: dms_FRCP_y11 | D143: 11 | E143: CRCP_y11 | F143: =IF(dms_RPT="financial",VALUE(LEFT(dms_FRCP_y10,4)+1)&"-"&TEXT(VALUE(RIGHT(dms_FRCP_y10,2)+1),"00"),VALUE(LEFT(dms_FRCP_y10,4)+1)) -> 2030-31 | G143: dms_FRCP_y11 | H143: =IF(dms_RPT="financial",VALUE(LEFT(dms_CRCP_yQ,4)-1)&"-"&TEXT(VALUE(MID(dms_CRCP_yQ,3,2)),"00"),VALUE(LEFT(dms_CRCP_yQ,4)-1)) -> 2009-10 | I143: dms_CRCP_yP | J143: 11 | L143: 2015-16 | M143: 2016 | P143: =VALUE(LEFT(dms_CRYf_y10,4)+1)&"-"&TEXT(MID(dms_CRYf_y10,3,2)+2,"00") -> 2027-28 | Q143: dms_CRYf_y11 | R143: =VALUE(LEFT(dms_CRYc_y10,4)+1) -> 2028 | S143: dms_CRYc_y11
B144: 12 | C144: dms_FRCP_y12 | D144: 12 | E144: CRCP_y12 | F144: =IF(dms_RPT="financial",VALUE(LEFT(dms_FRCP_y11,4)+1)&"-"&TEXT(VALUE(RIGHT(dms_FRCP_y11,2)+1),"00"),VALUE(LEFT(dms_FRCP_y11,4)+1)) -> 2031-32 | G144: dms_FRCP_y12 | H144: =IF(dms_RPT="financial",VALUE(LEFT(dms_CRCP_yP,4)-1)&"-"&TEXT(VALUE(MID(dms_CRCP_yP,3,2)),"00"),VALUE(LEFT(dms_CRCP_yP,4)-1)) -> 2008-09 | I144: dms_CRCP_yO | J144: 12 | L144: 2016-17 | M144: 2017 | P144: =VALUE(LEFT(dms_CRYf_y11,4)+1)&"-"&TEXT(MID(dms_CRYf_y11,3,2)+2,"00") -> 2028-29 | Q144: dms_CRYf_y12 | R144: =VALUE(LEFT(dms_CRYc_y11,4)+1) -> 2029 | S144: dms_CRYc_y12
B145: 13 | C145: dms_FRCP_y13 | D145: 13 | E145: CRCP_y13 | F145: =IF(dms_RPT="financial",VALUE(LEFT(dms_FRCP_y12,4)+1)&"-"&TEXT(VALUE(RIGHT(dms_FRCP_y12,2)+1),"00"),VALUE(LEFT(dms_FRCP_y12,4)+1)) -> 2032-33 | G145: dms_FRCP_y13 | H145: =IF(dms_RPT="financial",VALUE(LEFT(dms_CRCP_yO,4)-1)&"-"&TEXT(VALUE(MID(dms_CRCP_yO,3,2)),"00"),VALUE(LEFT(dms_CRCP_yO,4)-1)) -> 2007-08 | I145: dms_CRCP_yN | J145: 13 | L145: 2017-18 | M145: 2018 | P145: =VALUE(LEFT(dms_CRYf_y12,4)+1)&"-"&TEXT(MID(dms_CRYf_y12,3,2)+2,"00") -> 2029-30 | Q145: dms_CRYf_y13 | R145: =VALUE(LEFT(dms_CRYc_y12,4)+1) -> 2030 | S145: dms_CRYc_y13
B146: 14 | C146: dms_FRCP_y14 | D146: 14 | E146: CRCP_y14 | F146: =IF(dms_RPT="financial",VALUE(LEFT(dms_FRCP_y13,4)+1)&"-"&TEXT(VALUE(RIGHT(dms_FRCP_y13,2)+1),"00"),VALUE(LEFT(dms_FRCP_y13,4)+1)) -> 2033-34 | G146: dms_FRCP_y14 | H146: =IF(dms_RPT="financial",VALUE(LEFT(dms_CRCP_yN,4)-1)&"-"&TEXT(VALUE(MID(dms_CRCP_yN,3,2)),"00"),VALUE(LEFT(dms_CRCP_yN,4)-1)) -> 2006-07 | I146: dms_CRCP_yM | J146: 14 | L146: 2018-19 | M146: 2019 | P146: =VALUE(LEFT(dms_CRYf_y13,4)+1)&"-"&TEXT(MID(dms_CRYf_y13,3,2)+2,"00") -> 2030-31 | Q146: dms_CRYf_y14 | R146: =VALUE(LEFT(dms_CRYc_y13,4)+1) -> 2031 | S146: dms_CRYc_y14
B147: 15 | C147: dms_FRCP_y15 | D147: 15 | E147: CRCP_y15 | F147: =IF(dms_RPT="financial",VALUE(LEFT(dms_FRCP_y14,4)+1)&"-"&TEXT(VALUE(RIGHT(dms_FRCP_y14,2)+1),"00"),VALUE(LEFT(dms_FRCP_y14,4)+1)) -> 2034-35 | G147: dms_FRCP_y15 | H147: =IF(dms_RPT="financial",VALUE(LEFT(dms_CRCP_yM,4)-1)&"-"&TEXT(VALUE(MID(dms_CRCP_yM,3,2)),"00"),VALUE(LEFT(dms_CRCP_yM,4)-1)) -> 2005-06 | I147: dms_CRCP_yL | J147: 15 | L147: 2019-20 | M147: 2020 | P147: =VALUE(LEFT(dms_CRYf_y14,4)+1)&"-"&TEXT(MID(dms_CRYf_y14,3,2)+2,"00") -> 2031-32 | Q147: dms_CRYf_y15 | R147: =VALUE(LEFT(dms_CRYc_y14,4)+1) -> 2032 | S147: dms_CRYc_y15
L148: 2020-21 | M148: 2021 | P148: =VALUE(LEFT(dms_CRYf_y15,4)+1)&"-"&TEXT(MID(dms_CRYf_y15,3,2)+2,"00") -> 2032-33 | Q148: dms_CRYf_y16 | R148: =VALUE(LEFT(dms_CRYc_y15,4)+1) -> 2033 | S148: dms_CRYc_y16
B149: These are drop down lists for businesses to select the correct FRCP_y1 on the business and other details worksheet. This also populates the column headings in the worksheets | L149: 2021-22 | M149: 2022 | P149: =VALUE(LEFT(dms_CRYf_y16,4)+1)&"-"&TEXT(MID(dms_CRYf_y16,3,2)+2,"00") -> 2033-34 | Q149: dms_CRYf_y17 | R149: =VALUE(LEFT(dms_CRYc_y16,4)+1) -> 2034 | S149: dms_CRYc_y17
B150: dms_RCP_fyear_list | C150: dms_CRY_ListF | D150: dms_CRY_ListC | E150: dms_RCP_cyear_list | F150: dms_FRCP_fyear_list | G150: dms_FRCP_ListF | H150: dms_FRCP_ListC | I150: dms_FRCP_cyear_list | L150: 2022-23 | M150: 2023 | P150: =VALUE(LEFT(dms_CRYf_y17,4)+1)&"-"&TEXT(MID(dms_CRYf_y17,3,2)+2,"00") -> 2034-35 | Q150: dms_CRYf_y18 | R150: =VALUE(LEFT(dms_CRYc_y17,4)+1) -> 2035 | S150: dms_CRYc_y18
B151: dms_y1 | C151: =CRY -> 2017-18 | D151: 2006 | E151: dms_cy1 | F151: dms_frcp_fy1 | G151: 2010-11 | H151: 2011 | I151: dms_crcp_cy1 | L151: 2023-24 | M151: 2024 | P151: =VALUE(LEFT(dms_CRYf_y18,4)+1)&"-"&TEXT(MID(dms_CRYf_y18,3,2)+2,"00") -> 2035-36 | Q151: dms_CRYf_y19 | R151: =VALUE(LEFT(dms_CRYc_y18,4)+1) -> 2036 | S151: dms_CRYc_y19
B152: dms_y2 | C152: =IF(dms_RPT="financial",VALUE(LEFT(CRY,4)+1)&"-"&TEXT(MID(CRY,3,2)+2,"00"),VALUE(LEFT(CRY,4)+1)) -> 2018-19 | D152: 2007 | E152: dms_cy2 | F152: dms_frcp_fy2 | G152: 2011-12 | H152: 2012 | I152: dms_crcp_cy2 | L152: 2024-25 | M152: 2025 | P152: =VALUE(LEFT(dms_CRYf_y19,4)+1)&"-"&TEXT(MID(dms_CRYf_y19,3,2)+2,"00") -> 2036-37 | Q152: dms_CRYf_y20 | R152: =VALUE(LEFT(dms_CRYc_y19,4)+1) -> 2037 | S152: dms_CRYc_y20
B153: dms_y3 | C153: =IF(dms_RPT="financial",VALUE(LEFT(dms_fy2,4)+1)&"-"&TEXT(MID(dms_fy2,3,2)+2,"00"),VALUE(LEFT(dms_fy2,4)+1)) -> 2019-20 | D153: 2008 | E153: dms_cy3 | F153: dms_frcp_fy3 | G153: 2012-13 | H153: 2013 | I153: dms_crcp_cy3 | L153: 2025-26 | M153: 2026
B154: dms_y4 | C154: =IF(dms_RPT="financial",VALUE(LEFT(dms_fy3,4)+1)&"-"&TEXT(MID(dms_fy3,3,2)+2,"00"),VALUE(LEFT(dms_fy3,4)+1)) -> 2020-21 | D154: 2009 | E154: dms_cy4 | F154: dms_frcp_fy4 | G154: 2013-14 | H154: 2014 | I154: dms_crcp_cy4 | L154: 2026-27 | M154: 2027
B155: dms_y5 | C155: =IF(dms_RPT="financial",VALUE(LEFT(dms_fy4,4)+1)&"-"&TEXT(MID(dms_fy4,3,2)+2,"00"),VALUE(LEFT(dms_fy4,4)+1)) -> 2021-22 | D155: 2010 | E155: dms_cy5 | F155: dms_frcp_fy5 | G155: 2014-15 | H155: 2015 | I155: dms_crcp_cy5 | L155: 2027-28 | M155: 2028
B156: dms_y6 | C156: =IF(dms_RPT="financial",VALUE(LEFT(dms_fy5,4)+1)&"-"&TEXT(MID(dms_fy5,3,2)+2,"00"),VALUE(LEFT(dms_fy5,4)+1)) -> 2022-23 | D156: 2011 | E156: dms_cy6 | F156: dms_frcp_fy6 | G156: 2015-16 | H156: 2016 | I156: dms_crcp_cy6 | L156: 2028-29 | M156: 2029
B157: dms_y7 | C157: =IF(dms_RPT="financial",VALUE(LEFT(dms_fy6,4)+1)&"-"&TEXT(MID(dms_fy6,3,2)+2,"00"),VALUE(LEFT(dms_fy6,4)+1)) -> 2023-24 | D157: 2012 | E157: dms_cy7 | F157: dms_frcp_fy7 | G157: 2016-17 | H157: 2017 | I157: dms_crcp_cy7 | L157: 2029-30 | M157: 2030
B158: dms_y8 | C158: =IF(dms_RPT="financial",VALUE(LEFT(dms_fy7,4)+1)&"-"&TEXT(MID(dms_fy7,3,2)+2,"00"),VALUE(LEFT(dms_fy7,4)+1)) -> 2024-25 | D158: 2013 | E158: dms_cy8 | F158: dms_frcp_fy8 | G158: 2017-18 | H158: 2018 | I158: dms_crcp_cy8 | L158: 2030-31 | M158: 2031
B159: dms_y9 | C159: =IF(dms_RPT="financial",VALUE(LEFT(dms_fy8,4)+1)&"-"&TEXT(MID(dms_fy8,3,2)+2,"00"),VALUE(LEFT(dms_fy8,4)+1)) -> 2025-26 | D159: 2014 | E159: dms_cy9 | F159: dms_frcp_fy9 | G159: 2018-19 | H159: 2019 | I159: dms_crcp_cy9 | L159: 2031-32 | M159: 2032
B160: dms_y10 | C160: =IF(dms_RPT="financial",VALUE(LEFT(dms_fy9,4)+1)&"-"&TEXT(MID(dms_fy9,3,2)+2,"00"),VALUE(LEFT(dms_fy9,4)+1)) -> 2026-27 | D160: 2015 | E160: dms_cy10 | F160: dms_frcp_fy10 | G160: 2019-20 | H160: 2020 | I160: dms_crcp_cy10 | L160: 2032-33 | M160: 2033
B161: dms_y11 | C161: =IF(dms_RPT="financial",VALUE(LEFT(dms_fy10,4)+1)&"-"&TEXT(MID(dms_fy10,3,2)+2,"00"),VALUE(LEFT(dms_fy10,4)+1)) -> 2027-28 | D161: 2016 | E161: dms_cy11 | F161: dms_frcp_fy11 | G161: 2020-21 | H161: 2021 | I161: dms_crcp_cy11 | L161: 2033-34 | M161: 2034
B162: dms_y12 | C162: =IF(dms_RPT="financial",VALUE(LEFT(dms_fy11,4)+1)&"-"&TEXT(MID(dms_fy11,3,2)+2,"00"),VALUE(LEFT(dms_fy11,4)+1)) -> 2028-29 | D162: 2017 | E162: dms_cy12 | F162: dms_frcp_fy12 | G162: 2021-22 | H162: 2022 | I162: dms_crcp_cy12 | L162: 2034-35 | M162: 2035
B163: dms_y13 | C163: =IF(dms_RPT="financial",VALUE(LEFT(dms_fy12,4)+1)&"-"&TEXT(MID(dms_fy12,3,2)+2,"00"),VALUE(LEFT(dms_fy12,4)+1)) -> 2029-30 | D163: 2018 | E163: dms_cy13 | F163: dms_frcp_fy13 | G163: 2022-23 | H163: 2023 | I163: dms_crcp_cy13 | L163: 2035-36 | M163: 2036
B164: dms_y14 | C164: =IF(dms_RPT="financial",VALUE(LEFT(dms_fy13,4)+1)&"-"&TEXT(MID(dms_fy13,3,2)+2,"00"),VALUE(LEFT(dms_fy13,4)+1)) -> 2030-31 | D164: 2019 | E164: dms_cy14 | F164: dms_frcp_fy14 | G164: 2023-24 | H164: 2024 | I164: dms_crcp_cy14
B165: dms_y15 | C165: =IF(dms_RPT="financial",VALUE(LEFT(dms_fy14,4)+1)&"-"&TEXT(MID(dms_fy14,3,2)+2,"00"),VALUE(LEFT(dms_fy14,4)+1)) -> 2031-32 | D165: 2020 | E165: dms_cy15 | F165: dms_frcp_fy15 | G165: 2024-25 | H165: 2025 | I165: dms_crcp_cy15
B166: dms_y16 | C166: =IF(dms_RPT="financial",VALUE(LEFT(dms_fy15,4)+1)&"-"&TEXT(MID(dms_fy15,3,2)+2,"00"),VALUE(LEFT(dms_fy15,4)+1)) -> 2032-33 | D166: 2021 | E166: dms_cy16
B167: dms_y17 | C167: =IF(dms_RPT="financial",VALUE(LEFT(dms_fy16,4)+1)&"-"&TEXT(MID(dms_fy16,3,2)+2,"00"),VALUE(LEFT(dms_fy16,4)+1)) -> 2033-34 | D167: 2022 | E167: dms_cy17
B168: dms_y18 | C168: =IF(dms_RPT="financial",VALUE(LEFT(dms_fy17,4)+1)&"-"&TEXT(MID(dms_fy17,3,2)+2,"00"),VALUE(LEFT(dms_fy17,4)+1)) -> 2034-35 | D168: 2023 | E168: dms_cy18
B169: dms_y19 | C169: =IF(dms_RPT="financial",VALUE(LEFT(dms_fy18,4)+1)&"-"&TEXT(MID(dms_fy18,3,2)+2,"00"),VALUE(LEFT(dms_fy18,4)+1)) -> 2035-36 | D169: 2024 | E169: dms_cy19
B170: dms_y20 | C170: =IF(dms_RPT="financial",VALUE(LEFT(dms_fy19,4)+1)&"-"&TEXT(MID(dms_fy19,3,2)+2,"00"),VALUE(LEFT(dms_fy19)+1)) -> 2036-37 | D170: 2025 | E170: dms_cy20
B176: These "row descriptions" are the column headings in the various templates but become row descriptions in the ETL process
C177: Table 6.3 sustained interruptions - row descriptions
C178: dms_060301_CustNo_Affected_Row | D178: dms_060301_Avg_Duration_Sustained_Int_Row | E178: dms_060301_Effect_unplanned_SAIDI_Row | F178: dms_060301_Effect_unplanned_SAIFI_Row
C179: Number of customers affected by the interruption | D179: Average duration of sustained customer interruption | E179: Effect on unplanned SAIDI | F179: Effect on unplanned SAIFI
C183: Table 6.1 telephone answering - row descriptions and start date
C184: dms_060101_Rows | D184: dms_060102_Rows | E184: dms_060101_StartDateTxt
C185: Total number of calls (after removing excluded events) | D185: Number of calls answered within 30 seconds (after excluding excluded events) | E185: =dms_060701_StartDateTxt -> 1-Jul-2017
H189: dms_0603_FeederList | I189: =INDEX(dms_FeederName_1,MATCH(dms_TradingName,dms_TradingName_List)) -> CBD | J189: =INDEX(dms_FeederName_2,MATCH(dms_TradingName,dms_TradingName_List)) -> Urban | K189: =INDEX(dms_FeederName_3,MATCH(dms_TradingName,dms_TradingName_List)) -> Short rural | L189: =INDEX(dms_FeederName_4,MATCH(dms_TradingName,dms_TradingName_List)) -> Long rural | M189: =INDEX(dms_FeederName_5,MATCH(dms_TradingName,dms_TradingName_List)) -> 
C190: Table 6.7.1 - daily performance data - unplanned - MAIFI -- row descriptions and header named range values
C191: These headings (Lists) are determined from the INDEX/MATCH function on the NSP selected on the Business & other details sheet
B192: dms_060701_Feeder_Header_Lvl4 | C192: =INDEX(dms_FeederName_1,MATCH(dms_TradingName,dms_TradingName_List)) -> CBD | D192: =INDEX(dms_FeederName_1,MATCH(dms_TradingName,dms_TradingName_List)) -> CBD | E192: =INDEX(dms_FeederName_2,MATCH(dms_TradingName,dms_TradingName_List)) -> Urban | F192: =INDEX(dms_FeederName_2,MATCH(dms_TradingName,dms_TradingName_List)) -> Urban | G192: =INDEX(dms_FeederName_3,MATCH(dms_TradingName,dms_TradingName_List)) -> Short rural | H192: =INDEX(dms_FeederName_3,MATCH(dms_TradingName,dms_TradingName_List)) -> Short rural | I192: =INDEX(dms_FeederName_4,MATCH(dms_TradingName,dms_TradingName_List)) -> Long rural | J192: =INDEX(dms_FeederName_4,MATCH(dms_TradingName,dms_TradingName_List)) -> Long rural | K192: =IF((INDEX(dms_FeederName_5,MATCH(dms_TradingName,dms_TradingName_List))=0),"Network",(INDEX(dms_FeederName_5,MATCH(dms_TradingName,dms_TradingName_List)))) ->  | L192: =IF((INDEX(dms_FeederName_5,MATCH(dms_TradingName,dms_TradingName_List))=0),"Network",(INDEX(dms_FeederName_5,MATCH(dms_TradingName,dms_TradingName_List)))) ->  | M192: Network | N192: Network
B194: dms_060701_Rows | C194: All events | D194: After removing excluded events | E194: All events | F194: After removing excluded events | G194: All events | H194: After removing excluded events | I194: All events | J194: After removing excluded events | K194: All events | L194: After removing excluded events | M194: All events | N194: After removing excluded events
C195: the number of column headings changes from 10 to 12 depending on the number of feeder categories for the NSP
C200: Table 6.8.1 - row descriptions
C201: dms_060801_01_Rows | D201: dms_060801_02_Rows | E201: dms_060801_03_Rows | F201: dms_060801_04_Rows
C202: Number of interruptions | D202: Duration of interruptions | E202: Total unplanned minutes off supply | F202: Effect on unplanned MAIFI
C207: Table 7.9.4 - market impact component - row descriptions
B208: dms_070904_01_Rows | C208: without exclusions | D208: with exclusions
C214: Use this to add to existing files
C215: ARRs 6.7 STPIS daily performance
C216: dms_060101_Values | D216: dms_060102_Values | E216: dms_060701_Values
C218: ARR's 6.8 STPIS exclusions
C219: dms_060801_Event_Date | D219: dms_060801_OutageID | E219: dms_060801_FeederID | F219: dms_060801_FeederClass | G219: dms_060801_CauseID | H219: dms_060801_01_Values | I219: dms_060801_02_Values | J219: dms_060801_03_Values | K219: dms_060801_Excl_Cat | L219: dms_060801_04_Values
C220: dms_060801_StartCell
C222: CA 6.3 sustained interruptions
C223: dms_060301_Event_Date | D223: dms_060301_Event_Time | E223: dms_060301_AssetID | F223: dms_060301_FeederClass | G223: dms_060301_Reason | H223: dms_060301_DetailedReason | I223: dms_060301_CustNo_Affected_Values | J223: dms_060301_Avg_Duration_Sustained_Int_Values | K223: dms_060301_Effect_unplanned_SAIDI_Values | L223: dms_060301_Effect_unplanned_SAIFI_Values | M223: dms_060301_MED

Sheet Contents
B3: =CONCATENATE(dms_Segment," Network Service Provider") -> Distribution Network Service Provider
B5: Table of Contents
C8: Instructions
C9: Business & other details
B12: CATEGORY ANALYSIS | C12: STPIS | D12: STATUTORY ACCOUNTS
B14: 2.11 Labour | C14: 6.2 STPIS Reliability | D14: 8.1 Income
C15: 6.6 STPIS Customer Service | D15: 8.2 Capex
C16: 6.7 STPIS Daily Performance
C17: 6.8 STPIS Exclusions | D17: 8.4 Opex
C18: 6.9 STPIS GSL
B22: NETWORK PERFORMANCE | C22: OTHER INFORMATION | D22: PRICING PROPOSAL
D23: Victorian Businesses Only
B24: 3.6 Quality of services | C24: 7.8 Avoided Cost Payments
B25: 3.6.8 Network-feeders | C25: 7.10 Juris Scheme | D25: 9.5 TUoS
B26: 3.6.9 Network-reliability | C26: 7.11 DMIS-DMIA
C27: 7.12 Safety and Bushfire
B29: PUBLIC LIGHTING
B31: 4.1 Public lighting tariffs

Sheet Instructions
B2: =CONCATENATE(dms_Segment," Network Service Provider") -> Distribution Network Service Provider
B3: =IF(dms_Model="Reset","Regulatory Proposal RIN Template","Annual Reporting RIN") -> Annual Reporting RIN
C4: This template is to be used by Australian Distribution Co. to fulfil its reporting obligations to the AER.
C5: INSTRUCTIONS
C6: Complete the Business & other details worksheet before entering data or values in any other worksheets. The Business & other details worksheet is linked to other worksheets within the workbook and automatically generates certain column headings and conditional formatting.
C8: Identifying CONFIDENTIAL INFORMATION: Please use the macro at the top of each worksheet to identify confidential information.
C9: -Do this by selecting the cell or cells that contain confidential information and then run the Mark selected cells as CONFIDENTIAL macro. This will format the cells a specific colour that is identified by the AER's database which in turn marks that information as confidential. -To reverse this, select the cell or cells and run the Return cells to NON-CONFIDENTIAL macro.
C11: UNITS OF MEASURE All amounts are to be unrounded and reported on a one for one basis: that is 1000 is to be entered as '1000'. Applicable units of measure may be identified in the table column headings or row descriptors.
C13: COLOUR CODING OF INPUT / NON-INPUT CELLS:
D14: Yellow = Input cell (mandatory)
D15: Darker yellow = input cell (mandatory)
D16: Orange = input cell (if data available)
D17: Grey = Not applicable/No inputs required
D18: PLEASE DO NOT ENTER TEXT into cells that are to contain numeric data.
C21: WORKSHEET NAVIGATION Many tables in the worksheets have been "grouped" to allow for easy navigation. To ungroup or group data use the outline symbols in the left margin (for Row groupings) or above the columns (for column groupings).
C23: RETURNING COMPLETED RESPONSES Please return two (2) files to the AER: 1. A confidential version which must contain a complete set of all responses with confidential information marked using the Mark selection CONFIDENTIAL macro and which has been completed using the locked template file provided by the AER. 2. A public version with confidential information either removed completely or aggregated in some form together with writtten consent to disclose the public version of the response. Use the drop down box on the Business and other details worksheet to identify the file as either confidential ('consolidated') or public.
C25: SUBMITTING AMENDED DATA TO THE AER If an NSP wishes to correct data previously submitted to the AER it should resubmit that data using the original completed submission as the starting point. Please make any necessary changes to the data. Data that is not being amended should be left unchanged. NSPs must identify the reason for the amendments in the Amendment Reason box on the Business and other details worksheet. NSPs may provide further details regarding any amendments in the Amendments worksheet. .
C26: NSP may use Amended Data macro to highlight cells that contain amended data. NB: if data is also CONFIDENTIAL, re-apply the Confidentiality macro after applying the Amended macro
C27: Please resubmit two (2) files - a confidential version and a public version of the amended submission to the AER

Sheet Business & other details
B1: =IF(dms_DataQuality="backcast",INDEX(dms_Worksheet_List,MATCH(dms_Model,dms_Model_List))&" BACKCAST",INDEX(dms_Worksheet_List,MATCH(dms_Model,dms_Model_List))) -> ANNUAL REPORTING STATEMENT
B2: =INDEX(dms_TradingNameFull_List,MATCH(dms_TradingName,dms_TradingName_List)) -> SA Power Networks
B3: =IF(SUM(dms_SingleYear_Model)>0,CONCATENATE(CRY),CONCATENATE(FRCP_y1," to ",dms_MultiYear_FinalYear_Result)) -> 2017-18
B4: BUSINESS & OTHER DETAILS
B7: Instructions
B8: Complete the following business details regulatory template before entering data or values in any other regulatory template. This regulatory template is linked to other cells within the spreadsheet and automatically generates column headings and conditional formatting to distinguish business specific input and non-input cells.
B10: SUBMISSION PARTICULARS INPUT SHEETS
B12: ENTITY DETAILS
B14: Short name | C14: SA Power Networks | F14: Select business name from drop down list first
B15: ACN / ABN | C15: =INDEX(dms_ABN_List,MATCH(dms_TradingName,dms_TradingName_List)) -> 13332330749
B18: Business address | C18: Address 1 | E18: =INDEX(dms_Addr1_List,MATCH(dms_TradingName,dms_TradingName_List)) -> 1 Anzac Highway
D19: Address 2 | E19: =IF(ISBLANK(INDEX(dms_Addr2_List,MATCH(dms_TradingName,dms_TradingName_List))),"",(INDEX(dms_Addr2_List,MATCH(dms_TradingName,dms_TradingName_List)))) -> 
C20: Suburb | E20: =INDEX(dms_Suburb_List,MATCH(dms_TradingName,dms_TradingName_List)) -> KESWICK
D21: State | E21: =INDEX(dms_State_List,MATCH(dms_TradingName,dms_TradingName_List)) -> SA | F21: p/code | G21: =INDEX(dms_PostCode_List,MATCH(dms_TradingName,dms_TradingName_List)) -> 5035
B23: Postal address | C23: Address 1 | E23: =INDEX(dms_PAddr1_List,MATCH(dms_TradingName,dms_TradingName_List)) -> GPO Box 77
D24: Address 2 | E24: =IF(ISBLANK(INDEX(dms_PAddr2_List,MATCH(dms_TradingName,dms_TradingName_List))),"",(INDEX(dms_PAddr2_List,MATCH(dms_TradingName,dms_TradingName_List)))) -> 
C25: Suburb | E25: =INDEX(dms_PSuburb_List,MATCH(dms_TradingName,dms_TradingName_List)) -> ADELAIDE
D26: State | E26: =INDEX(dms_PState_List,MATCH(dms_TradingName,dms_TradingName_List)) -> SA | F26: p/code | G26: 5001
B29: Contact name/s | C29: Richard Sibly
B30: Contact phone/s
B31: Contact email address/s
B33: REGULATORY CONTROL PERIODS
B35: Forthcoming regulatory control period | C35: 2020-21 | D35: =dms_FRCP_y2 -> 2021-22 | E35: =dms_FRCP_y3 -> 2022-23 | F35: =dms_FRCP_y4 -> 2023-24 | G35: =dms_FRCP_y5 -> 2024-25
C36: =dms_FRCP_y6 -> 2025-26 | D36: =dms_FRCP_y7 -> 2026-27 | E36: =dms_FRCP_y8 -> 2027-28 | F36: =dms_FRCP_y9 -> 2028-29 | G36: =dms_FRCP_y10 -> 2029-30
B39: Current regulatory control period | C39: =dms_CRCP_FirstYear_Result -> 2015-16 | D39: =IF(dms_RPT="financial",VALUE(LEFT(CRCP_y1,4)+1)&"-"&TEXT(MID(CRCP_y1,3,2)+2,"00"),VALUE(LEFT(CRCP_y1,4)+1)) -> 2016-17 | E39: =IF(dms_RPT="financial",VALUE(LEFT(CRCP_y1,4)+2)&"-"&TEXT(VALUE(MID(CRCP_y1,3,2)+3),"00"),VALUE(LEFT(CRCP_y1,4)+2)) -> 2017-18 | F39: =IF(dms_RPT="financial",VALUE(LEFT(CRCP_y1,4)+3)&"-"&TEXT(MID(CRCP_y1,3,2)+4,"00"),VALUE(LEFT(CRCP_y1,4)+3)) -> 2018-19 | G39: =IF(dms_RPT="financial",VALUE(LEFT(CRCP_y1,4)+4)&"-"&TEXT(MID(CRCP_y1,3,2)+5,"00"),VALUE(LEFT(CRCP_y1,4)+4)) -> 2019-20
C40: =IF(dms_RPT="financial",VALUE(LEFT(CRCP_y1,4)+5)&"-"&TEXT(MID(CRCP_y1,3,2)+6,"00"),VALUE(LEFT(CRCP_y1,4)+5)) -> 2020-21 | D40: =IF(dms_RPT="financial",VALUE(LEFT(CRCP_y1,4)+6)&"-"&TEXT(MID(CRCP_y1,3,2)+7,"00"),VALUE(LEFT(CRCP_y1,4)+6)) -> 2021-22 | E40: =IF(dms_RPT="financial",VALUE(LEFT(CRCP_y1,4)+7)&"-"&TEXT(MID(CRCP_y1,3,2)+8,"00"),VALUE(LEFT(CRCP_y1,4)+7)) -> 2022-23 | F40: =IF(dms_RPT="financial",VALUE(LEFT(CRCP_y1,4)+8)&"-"&TEXT(MID(CRCP_y1,3,2)+9,"00"),VALUE(LEFT(CRCP_y1,4)+8)) -> 2023-24 | G40: =IF(dms_RPT="financial",VALUE(LEFT(CRCP_y1,4)+9)&"-"&TEXT(MID(CRCP_y1,3,2)+10,"00"),VALUE(LEFT(CRCP_y1,4)+9)) -> 2024-25
C41: =IF(dms_RPT="financial",VALUE(LEFT(CRCP_y1,4)+10)&"-"&TEXT(MID(CRCP_y1,3,2)+11,"00"),VALUE(LEFT(CRCP_y1,4)+10)) -> 2025-26 | D41: =IF(dms_RPT="financial",VALUE(LEFT(CRCP_y1,4)+11)&"-"&TEXT(MID(CRCP_y1,3,2)+12,"00"),VALUE(LEFT(CRCP_y1,4)+11)) -> 2026-27 | E41: =IF(dms_RPT="financial",VALUE(LEFT(CRCP_y1,4)+12)&"-"&TEXT(MID(CRCP_y1,3,2)+13,"00"),VALUE(LEFT(CRCP_y1,4)+12)) -> 2027-28 | F41: =IF(dms_RPT="financial",VALUE(LEFT(CRCP_y1,4)+13)&"-"&TEXT(MID(CRCP_y1,3,2)+14,"00"),VALUE(LEFT(CRCP_y1,4)+13)) -> 2028-29 | G41: =IF(dms_RPT="financial",VALUE(LEFT(CRCP_y1,4)+14)&"-"&TEXT(MID(CRCP_y1,3,2)+15,"00"),VALUE(LEFT(CRCP_y1,4)+14)) -> 2029-30
B44: Previous regulatory control period | C44: =IF(dms_RPT="financial",VALUE(LEFT(PRCP_y2,4)-1)&"-"&TEXT(VALUE(MID(PRCP_y2,3,2)),"00"),VALUE(LEFT(PRCP_y2,4)-1)) -> 2010-11 | D44: =IF(dms_RPT="financial",VALUE(LEFT(PRCP_y3,4)-1)&"-"&TEXT(VALUE(MID(PRCP_y3,3,2)),"00"),VALUE(LEFT(PRCP_y3,4)-1)) -> 2011-12 | E44: =IF(dms_RPT="financial",VALUE(LEFT(PRCP_y4,4)-1)&"-"&TEXT(VALUE(MID(PRCP_y4,3,2)),"00"),VALUE(LEFT(PRCP_y4,4)-1)) -> 2012-13 | F44: =IF(dms_RPT="financial",VALUE(LEFT(PRCP_y5,4)-1)&"-"&TEXT(VALUE(RIGHT(PRCP_y5,2)-1),"00"),VALUE(LEFT(PRCP_y5,4)-1)) -> 2013-14 | G44: =IF(dms_RPT="financial",VALUE(LEFT(CRCP_y1,4)-1)&"-"&TEXT(VALUE(RIGHT(CRCP_y1,2)-1),"00"),VALUE(LEFT(CRCP_y1,4)-1)) -> 2014-15
B48: Commencing regulatory year | C48: 2017-18 | D48: CRY
B50: Last completed regulatory year | C50: 2017-18 | D50: dms_FinalYear
C54: IF THIS IS AN ABC RIN - make sure the the named range CRY is applied and the named range dms_dollar_nom_UOM is applied
C55: IF THIS IS A RESET RIN - make sure the named ranges CRY and dms_dollar_nom_UOM are NOT present in the workbook
C56: FOR ABC RINS THAT SPAN MULTIPLE YEARS - make sure MultiYear Flag is set and final year entered as required
B58: Source | C58: Reporting | E58: Please select the correct submission type from the dropdown list.
B59: Data quality (actual, estimate, public, consolidated) | C59: Public | E59: Use Consolidated for Consolidated Confidential version Use Public for Consolidated Public version
B60: Amended RIN submission - amendment reason | C60: 20190809 - 8.2.1 & 8.2.3 (D19/123035) 20190711 - 8.2.4 updated (D19/103436) 20190523 - 2.11, 3.6 & 8.2 updated (D19/105950)
B61: Submission Date | C61: 2019-08-09 | D61: dms_SubmissionDate | E61: Please enter date this file submitted to AER (dd/mm/yyyy)
B62: EBSS - First application of scheme in forthcoming period? | C62: No
B63: Sector | C63: =INDEX(dms_Sector_List,MATCH(dms_TradingName,dms_TradingName_List)) -> Electricity | D63: dms_Sector | E63: =INDEX(dms_Sector_List,MATCH(dms_TradingName,dms_TradingName_List))
B64: Segment | C64: =INDEX(dms_Segment_List,MATCH(dms_TradingName,dms_TradingName_List)) -> Distribution | D64: dms_Segment | E64: =INDEX(dms_Segment_List,MATCH(dms_TradingName,dms_TradingName_List))
B65: Regulatory Year Ending | C65: =IF(dms_MultiYear_Flag=1,LEFT(dms_Specified_FinalYear,2)&RIGHT(dms_Specified_FinalYear,2),INDEX(dms_RYE_Formula_Result,MATCH(dms_Model,dms_Model_List))) -> 2018 | D65: dms_RYE | E65: =IF(dms_MultiYear_Flag=1,LEFT(dms_Specified_FinalYear,2)&RIGHT(dms_Specified_FinalYear,2),INDEX(dms_RYE_Formula_Result,MATCH(dms_Model,dms_Model_List)))
B66: Reporting Period Type | C66: =INDEX(dms_RPT_List,MATCH(dms_TradingName,dms_TradingName_List)) -> Financial | D66: dms_RPT | E66: =INDEX(dms_RPT_List,MATCH(dms_TradingName,dms_TradingName_List))
B67: Model or RIN Type | C67: ARR | D67: dms_Model | E67: Drop down selection
B68: EB/CA Unit of Measure for Monetary Values | C68: $0s | D68: dms_dollar_nom_UOM | E68: If the cover sheet is attached to an ABC RIN apply the NAMED RANGE to the cell
B69: Security Classification | C69: Public | D69: dms_Classification | E69: Always Public
B70: Jurisdiction | C70: =INDEX(dms_JurisdictionList,MATCH(dms_TradingName,dms_TradingName_List)) -> SA | D70: dms_Jurisdiction | E70: =INDEX(dms_JurisdictionList,MATCH(dms_TradingName,dms_TradingName_List))
B71: FORECAST and MultiYear RINS
B72: CRY-1 (last full calendar year before CRY) | C72: =IF(dms_RPT="financial",VALUE(LEFT(dms_SingleYear_FinalYear_Result,4)),VALUE(LEFT(dms_SingleYear_FinalYear_Result,4)-1)) -> 2017 | D72: dms_Cal_Year_B4_CRY | E72: '=IF(dms_RPT="financial",VALUE(LEFT(dms_SingleYear_FinalYear_Result,4)),VALUE(LEFT(dms_SingleYear_FinalYear_Result,4)-1))
B73: Dollar $ real month | C73: =INDEX(dms_RPTMonth_List,MATCH(dms_TradingName,dms_TradingName_List)) -> June | D73: dms_RPTMonth | E73: =INDEX(dms_RPTMonth_List,MATCH(dms_TradingName,dms_TradingName_List))
B74: Dollar $ real (the last month before the FRCP_y1) | C74: =IF(SUM(dms_SingleYear_Model)>0,CONCATENATE(dms_RPTMonth)&" "&VALUE((LEFT(CRY,2))&RIGHT(CRY,2)),CONCATENATE(dms_RPTMonth)&" "&VALUE((LEFT(dms_CRCP_FinalYear_Result,2)&RIGHT(dms_CRCP_FinalYear_Result,2)))) -> June 2018 | D74: dms_DollarReal | E74: =IF(SUM(dms_SingleYear_Model)>0,CONCATENATE(dms_RPTMonth)&" "&VALUE((LEFT(CRY,2))&RIGHT(CRY,2)),CONCATENATE(dms_RPTMonth)&" "&VALUE((LEFT(dms_CRCP_FinalYear_Result,2)&RIGHT(dms_CRCP_FinalYear_Result,2))))
B75: Dollar $ real previous year (PRCP_y5) | C75: =IF(SUM(dms_SingleYear_Model)>0,CONCATENATE(dms_RPTMonth)&" "&VALUE(((LEFT(CRY,2))&RIGHT(CRY,2))-1),CONCATENATE(dms_RPTMonth)&" "&VALUE(((LEFT(dms_CRCP_FirstYear_Result,2)&RIGHT(dms_CRCP_FirstYear_Result,2))))-1) -> June 2017 | D75: dms_DollarReal_Prev | E75: =IF(SUM(dms_SingleYear_Model)>0,CONCATENATE(dms_RPTMonth)&" "&VALUE(((LEFT(CRY,2))&RIGHT(CRY,2))-1),CONCATENATE(dms_RPTMonth)&" "&VALUE(((LEFT(dms_CRCP_FirstYear_Result,2)&RIGHT(dms_CRCP_FirstYear_Result,2))))-1)
B76: This block works out the various RYE's for ALL RIN types and MODELS
B77: Single Year Model T/F | C77: =IF(dms_Model="EB",1,0) -> 0 | D77: dms_EB
C78: =IF(dms_Model="CA",1,0) -> 0 | D78: dms_CA | E78: =dms_SingleYear_Model
C79: =IF(dms_Model="ARR",1,0) -> 1 | D79: dms_ARR
B80: Is this a single Year RIN? | C80: =IF(SUM(dms_SingleYear_Model)=1,"yes","no") -> yes | D80: dms_SingleYearModel | E80: =IF(SUM(dms_SingleYear_Model)=1,"yes","no")
B81: Single Year Final Year Reference | C81: CRY | D81: dms_SingleYear_FinalYear_Ref | E81: This is the reference for EB, CA & ARR RINs
B82: Single Year Final Year Result | C82: =IFERROR(IF(SUM(dms_SingleYear_Model)<>0,(INDIRECT(dms_SingleYear_FinalYear_Ref)),"not a single year RIN"),"CRY not present") -> 2017-18 | D82: dms_SingleYear_FinalYear_Result | E82: =IFERROR(IF(SUM(dms_SingleYear_Model)<>0,(INDIRECT(dms_SingleYear_FinalYear_Ref)),"not a single year RIN"),"CRY not present")
B83: FRCP length in years | C83: =INDEX(dms_FRCPlength_List,MATCH(dms_TradingName,dms_TradingName_List)) -> 5 | D83: dms_FRCPlength_Num | E83: =INDEX(dms_FRCPlength_List,MATCH(dms_TradingName,dms_TradingName_List))
B84: Multi Year Final Year Reference | C84: =INDEX(dms_FinalYear_List,MATCH(dms_FRCPlength_Num,dms_FRCPlength_Num_List)) -> dms_FRCP_y5 | D84: dms_MultiYear_FinalYear_Ref | E84: =INDEX(dms_FinalYear_List,MATCH(dms_FRCPlength_Num,dms_FRCPlength_Num_List))
B85: Multi Year Final Year Result | C85: =IF(dms_MultiYear_Flag=0,INDIRECT(dms_MultiYear_FinalYear_Ref),dms_Specified_FinalYear) -> 2024-25 | D85: dms_MultiYear_FinalYear_Result | E85: =IF(dms_MultiYear_Flag=0,INDIRECT(dms_MultiYear_FinalYear_Ref),dms_Specified_FinalYear) | I85: Formula errors OK
B86: CRCP length in years | C86: =INDEX(dms_CRCPlength_List,MATCH(dms_TradingName,dms_TradingName_List)) -> 5 | D86: dms_CRCPlength_Num | E86: =INDEX(dms_CRCPlength_List,MATCH(dms_TradingName,dms_TradingName_List))
B87: CRCP Final Year Reference | C87: =INDEX(dms_CFinalYear_List,MATCH(dms_CRCPlength_Num,dms_CRCPlength_Num_List)) -> CRCP_y5 | D87: dms_CRCP_FinalYear_Ref | E87: =INDEX(dms_CFinalYear_List,MATCH(dms_CRCPlength_Num,dms_CRCPlength_Num_List))
B88: CRCP First Year Result | C88: =INDEX(dms_CRCP_years,MATCH(dms_CRCPlength_Num,dms_CRCP_index)) -> 2015-16 | D88: dms_CRCP_FirstYear_Result | E88: =INDEX(dms_CRCP_years,MATCH(dms_CRCPlength_Num,dms_CRCP_index))
B89: CRCP Final Year Result | C89: =IF(dms_MultiYear_Flag=0,(IF(SUM(dms_SingleYear_Model)>0,CRY,dms_CRCP_yZ)),dms_Specified_FinalYear) -> 2017-18 | D89: dms_CRCP_FinalYear_Result | E89: =IF(dms_MultiYear_Flag=0,(IF(SUM(dms_SingleYear_Model)>0,CRY,dms_CRCP_yZ)),dms_Specified_FinalYear)
B90: PTRM/ RFMs
B91: Form of control | C91: =INDEX(dms_FormControl_List,MATCH(dms_TradingName,dms_TradingName_List)) -> Revenue cap | D91: dms_FormControl | E91: =INDEX(dms_FormControl_List,MATCH(dms_TradingName,dms_TradingName_List))
B92: ABC RINS THAT SPAN MULTIPLE YEARS
B93: Is this a multi year ABC RIN? | C93: No
B94: Multiyear EB, CA or ARR? | C94: =IF(dms_MultiYear_ResponseFlag="No",0,1) -> 0 | D94: dms_MultiYear_Flag | E94: This is set from the answer provided above
C95: =IF(dms_MultiYear_Flag=1,FRY,"not a Multiple year submission") -> not a Multiple year submission | D95: dms_Specified_FinalYear | E95: The result here is returned to dms_CRCP_FinalYear_Result if response to Q in C73 is "yes" and dms_MultiYear_Flag is set to 1
B96: Start year for 5.2 in Multi year ABC RINS | C96: =IFERROR(IF(dms_MultiYear_Flag=1,FRY,CRY),"not an ABC") -> 2017-18 | D96: dms_0502_Inst_Year | E96: =IF(dms_MultiYear_Flag=1,FRY,CRY) | G96: For single year RINS this is CRY - multi year RINS need to start a the end of the span of years (ie. FRY)
B97: EB RINS
B98: Calendar Year for table 3.6 data | C98: =IF(dms_RPT="financial",VALUE(LEFT(dms_SingleYear_FinalYear_Result,4)),VALUE(LEFT(dms_SingleYear_FinalYear_Result,4)-1)) -> 2017 | D98: dms_0306_Year | E98: =IF(dms_RPT="financial",VALUE(LEFT(dms_SingleYear_FinalYear_Result,4)),VALUE(LEFT(dms_SingleYear_FinalYear_Result,4)-1))
B99: CA RINS
B100: Find how many rows in tables 6.3 sustained interruptions? | E100: dms_060301_MaxRows only returns a valid value when cover sheet is attached to a CA file
C101: =IF(dms_Model<>"CA","not a CA","Is a CA") -> not a CA | E101: =IF(dms_Model<>"CA","not a CA","Is a CA")
B102: dms_060301_Avg_Duration_Sustained_Int_Values present? | C102: =IFERROR(IF(INDEX(dms_060301_Avg_Duration_Sustained_Int_Values,1,1)<>"","yes","no"),"no") -> no | D102: dms_060301_checkvalue | E102: =IFERROR(IF(INDEX(dms_060301_Avg_Duration_Sustained_Int_Values,1,1)<>"","yes","no"),"no")
C103: =IF(AND(dms_Model="CA",(dms_060301_checkvalue="no")),"error - NR not present","no errors") -> no errors | E103: =IF(AND(dms_Model="CA",(dms_060301_checkvalue="no")),"error - NR not present","no errors")
B104: Table 6.3.1 - last row reference | C104: =IFERROR(IF(dms_Model="CA",LOOKUP(2,1/(dms_060301_Avg_Duration_Sustained_Int_Values<>""),(ROW(dms_060301_Avg_Duration_Sustained_Int_Values))),"not a CA"),"6.3 not present") -> not a CA | D104: dms_060301_LastRow | E104: =IFERROR(IF(dms_Model="CA",LOOKUP(2,1/(dms_060301_Avg_Duration_Sustained_Int_Values<>""),(ROW(dms_060301_Avg_Duration_Sustained_Int_Values))),"not a CA"),"6.3 not present")
B105: Table 6.3.1 - max number rows | C105: =IFERROR(IF(dms_Model="CA",(dms_060301_LastRow-15),"not a CA"),"error") -> not a CA | D105: dms_060301_MaxRows | E105: =IFERROR(IF(dms_Model="CA",(dms_060301_LastRow-15),"not a CA"),"error")
B106: Table 6.6.3 - Public lighting repair - no. business days | C106: =INDEX(dms_663_List,MATCH(dms_TradingName,dms_TradingName_List)) -> 5 | D106: dms_663 | E106: =INDEX(dms_663_List,MATCH(dms_TradingName,dms_TradingName_List))
B107: ARR or RESET RINS
B108: How many rows in tables 6.1 or 6.7? (leap year?) | C108: insert dms_LeapYear NR if required | E108: 'dms_LeapYear is used to determine dms_060701_Max_Rows BUT it is only found on worksheet 6.1 or 6.7 and the date value in the cell is used to determine whether it is a leap year
B109: Is dms_LeapYear named range present? | C109: =IFERROR(IF(dms_LeapYear,"yes"),"no") -> yes
B110: Table 6.7.1 - includes a leap year? | C110: =IFERROR(IF(MONTH(DATE(YEAR(dms_LeapYear),2,29))=2,"is a leap year","not a leap year"), "dms_LeapYear not present") -> not a leap year | D110: dms_LeapYear_Result | E110: =IFERROR(IF(MONTH(DATE(YEAR(dms_LeapYear),2,29))=2,"is a leap year","not a leap year"),"dms_LeapYear not present")
B111: MaxRows if Reset and leap year | C111: =IF(dms_LeapYear_Result="is a leap year",1827,1826) -> 1826 | D111: dms_060701_Reset_MaxRows | E111: =IF(dms_LeapYear_Result="is a leap year",1827,1826) | H111: number of days present in Reset RIN table
B112: MaxRows if ARR and leap year | C112: =IF(dms_LeapYear_Result="is a leap year",366,365) -> 365 | D112: dms_060701_ARR_MaxRows | E112: =IF(dms_LeapYear_Result="is a leap year",366,365) | H112: number of days present in ARR RIN table
B113: Table 6.7.1 - Max Rows (leap year/ non leap year) | C113: =IF(dms_Model="ARR",dms_060701_ARR_MaxRows,IF(dms_Model="Reset",dms_060701_Reset_MaxRows,"not a relevant RIN type")) -> 365 | D113: dms_060701_MaxRows | E113: =IF(dms_Model="ARR",dms_060701_ARR_MaxRows,IF(dms_Model="Reset",dms_060701_Reset_MaxRows,"not a relevant RIN type"))
B114: How many columns in 6.7? (4 or 5 feeder categories) | C114: =IF(dms_FifthFeeder_flag_NSP="NO","This NSP has only 4 feeder categories","This NSP has 5 feeder categories") -> This NSP has only 4 feeder categories
B115: Table 6.7.1 - Last column (# of feeder categories > 4) | C115: =IF(dms_FifthFeeder_flag_NSP="NO",10,12) -> 10 | D115: dms_060701_MaxCols | E115: =IF(dms_FifthFeeder_flag_NSP="NO",8,10)
B116: Table 6.7.1 - Number of offset rows | C116: =IF(dms_Model="ARR",15,9) -> 15 | D116: dms_060701_OffsetRows | E116: =IF(dms_Model="ARR",15,9)
B117: Start date for telephone answering in 6.1 or 6.7? | E117: Using 060101 as naming standard not 060701 for start dates
B118: Table 6.1.1 and 6.7.1 - Start Date as Text | C118: =IF(dms_SingleYearModel="yes",(CONCATENATE(IF(LEN(CRY)=4,"1-Jan-","1-Jul-"),LEFT(CRY,4))),(CONCATENATE(IF(LEN(PRCP_y4)=4,"1-Jan-","1-Jul-"),LEFT(PRCP_y4,4)))) -> 1-Jul-2017 | D118: dms_060101_StartDateTxt | E118: =IF(SUM(dms_SingleYear_Model)>1,(CONCATENATE(IF(LEN(CRY)=4,"1-Jan-","1-Jul-"),LEFT(CRY,4))),(CONCATENATE(IF(LEN(CRCP_y4)=4,"1-Jan-","1-Jul-"),LEFT(CRCP_y4,4))))
B119: Table 6.1.1 and 6.7.1 - Start Date as Date Value | C119: =DATEVALUE(dms_060701_StartDateTxt) -> 42917 | D119: dms_060101_StartDateVal | E119: =DATEVALUE(dms_060701_StartDateTxt)
B120: ARRs
B121: How many rows in table 6.8? | C121: insert dms_060801_StartCell NR if required | E121: dms_060801_StartCell is only found on worksheet 6.8 and is used to determine the starting date for the date range
B122: Is dms_060801_StartCell named range present? | C122: yes | E122: =IFERROR(IF((ROW(dms_060801_StartCell)-1)=1,"yes","yes"),"no")
B123: Table 6.8 - Number of offset rows | C123: =IFERROR(IF(dms_Model="ARR",(ROW(dms_060801_StartCell)-1),"not an ARR"),"6.8 error") -> 11 | D123: dms_0608_OffsetRows | E123: =IFERROR(IF(dms_Model="ARR",(ROW(dms_060801_StartCell)-1),"not an ARR"),"6.8 error")
B124: Table 6.8 - Last row | C124: =IFERROR(IF(dms_060801_StartCell<>"",IF(dms_Model="ARR",(LOOKUP(2,1/(dms_060801_01_Values<>""),(ROW(dms_060801_01_Values)))),"not an ARR"),0),"6.8 not present") -> 26 | D124: dms_0608_LastRow | E124: =IFERROR(IF(dms_060801_StartCell<>"",IF(dms_Model="ARR",(LOOKUP(2,1/(dms_060801_01_Values<>""),(ROW(dms_060801_01_Values)))),"not an ARR"),0),"6.8 not present")
B125: Table 6.8 - MaxRows | C125: =IFERROR(IF(dms_Model="ARR",(MAX(0,dms_0608_LastRow-dms_0608_OffsetRows)),"not an ARR"),"6.8 not present") -> 15 | D125: dms_060801_MaxRows | E125: =IFERROR(IF(dms_Model="ARR",(MAX(0,dms_0608_LastRow-dms_0608_OffsetRows)),"not an ARR"),"6.8 not present")
B126: TNSP RESET RINS
B127: Table 7.9.4 only appears in TNSPs Reset RIN
B128: Table 7.9.4 - first year | C128: =LEFT(PRCP_y3,4) -> 2012 | D128: dms_070904_Start_Year | E128: =LEFT(PRCP_y3,4)
B129: SUBSET FILES
B130: Is this Submission File a Subset File | C130: NO | D130: dms_Partial
B131: MISC
B132: Distribution Determination Reference | C132: =INDEX(dms_DeterminationRef_List,MATCH(dms_TradingName,dms_TradingName_List)) -> 2015-20 Distribution Determination | D132: dms_DeterminationRef
B133: Public lighting NSP? | C133: =INDEX(dms_Public_Lighting_List,MATCH(dms_TradingName,dms_TradingName_List)) -> NO | D133: dms_Public_Lighting | E133: =INDEX(dms_Public_Lighting_List,MATCH(dms_TradingName,dms_TradingName_List))
B134: CBD Feeder for this business | C134: =INDEX(dms_CBD_flag,MATCH(dms_TradingName,dms_TradingName_List)) -> YES | D134: dms_CBD_flag_NSP
B135: Urban Feeder for this business | C135: =INDEX(dms_Urban_flag,MATCH(dms_TradingName,dms_TradingName_List)) -> YES | D135: dms_Urban_flag_NSP
B136: Short rural Feeder for this business | C136: =INDEX(dms_ShortRural_flag,MATCH(dms_TradingName,dms_TradingName_List)) -> YES | D136: dms_ShortRural_flag_NSP
B137: Long rural Feeder for this business | C137: =INDEX(dms_LongRural_flag,MATCH(dms_TradingName,dms_TradingName_List)) -> YES | D137: dms_LongRural_flag_NSP
B138: Fifth Feeder Category (eg. TasNetworks (D)) | C138: =INDEX(dms_FeederType_5_flag,MATCH(dms_TradingName,dms_TradingName_List)) -> NO | D138: dms_FifthFeeder_flag_NSP | E138: =INDEX(dms_FeederType_5_flag,MATCH(dms_TradingName,dms_TradingName_List))
B140: DISCARD FILES
B141: discard this record? | C141: NO | D141: dms_DISCARD | E141: If record is to be discarded from DB set this flag to YES
B143: USES NAMED RANGES FLAG | C143: yes | D143: dms_Defined_Names_Used
B145: REGULATORY YEARS FOR MULTI RYE SUBMISSIONS
B146: Multiple RYE flag | C146: NO | D146: dms_Multi_RYE_flag
C147: Manually specify RYE | D147: Named ranges to apply
C148: 2013 | D148: dms_RYE_01
C149: 2014 | D149: dms_RYE_02
C150: 2015 | D150: dms_RYE_03
C151: 2016 | D151: dms_RYE_04
C152: 2017 | D152: dms_RYE_05
C153: 2018 | D153: dms_RYE_06
C154: 2019 | D154: dms_RYE_07
C155: 2020 | D155: dms_RYE_08
C156: 2021 | D156: dms_RYE_09

Sheet 2.11 Labour
B1: =IF(dms_DataQuality="backcast",INDEX(dms_Worksheet_List,MATCH(dms_Model,dms_Model_List))&" BACKCAST",INDEX(dms_Worksheet_List,MATCH(dms_Model,dms_Model_List))) -> ANNUAL REPORTING STATEMENT
B2: =INDEX(dms_TradingNameFull_List,MATCH(dms_TradingName,dms_TradingName_List)) -> SA Power Networks
B3: =CONCATENATE("Annual Reporting RIN Response ",IF(SUM(dms_SingleYear_Model)>0,CONCATENATE(CRY),CONCATENATE(FRCP_y1," to ",dms_MultiYear_FinalYear_Result))) -> Annual Reporting RIN Response 2017-18
B4: 2.11 LABOUR
B6: Tables 2.11.1 and 2.11.2 deliberately omitted.
B8: 2.11.3 - LABOUR / NON-LABOUR EXPENDITURE SPLIT
B9: 2.11.3.1 - Opex
C10: =CRY -> 2017-18
C11: $0's, nominal
C12: Opex
B13: In-house labour expenditure | C13: 94525882.99
B14: Labour expenditure outsourced to related parties | C14: 0
B15: Labour expenditure outsourced to unrelated parties | C15: 7251556.82
B16: Controllable non-labour expenditure | C16: =dms_Total_Actual_Opex-SUM(C13:C15,C17) -> 141048578.7
B17: Uncontrollable non-labour expenditure | C17: 8389725.95
B18: Total | C18: =SUM(C13:C17) -> 251215744.4
B20: Reconciliation with Opex worksheets - SCS | C20: Opex
B21: Total including margins | C21: =dms_Total_Actual_Opex -> 251215744.4 | D21: =IF(ROUND(C18,0)=ROUND(dms_Total_Actual_Opex,0),"OK","Error") -> OK
B24: 2.11.3.2 - Capex
C25: =CRY -> 2017-18
C26: $0's, nominal
C27: Capex
B28: In-house labour expenditure | C28: 126687122
B29: Labour expenditure outsourced to related parties | C29: 0
B30: Labour expenditure outsourced to unrelated parties | C30: 12917751.42
B31: Controllable non-labour expenditure | C31: 260363770
B32: Uncontrollable non-labour expenditure | C32: 0
B33: Total | C33: =SUM(C28:C32) -> 399968643.4
B35: Reconciliation with Capex & Opex worksheets - SCS | C35: Capex
B36: Total including margins | C36: =dms_Total_Actual_Capex -> 399318022.3 | D36: =IF(ROUND(C33,0)=ROUND(dms_Total_Actual_Capex,0),"OK","Error") -> Error

Sheet 3.6 Quality of services
B1: =IF(dms_DataQuality="backcast",INDEX(dms_Worksheet_List,MATCH(dms_Model,dms_Model_List))&" BACKCAST",INDEX(dms_Worksheet_List,MATCH(dms_Model,dms_Model_List))) -> ANNUAL REPORTING STATEMENT
B2: =INDEX(dms_TradingNameFull_List,MATCH(dms_TradingName,dms_TradingName_List)) -> SA Power Networks
B3: =CONCATENATE("Annual Reporting RIN Response ",IF(SUM(dms_SingleYear_Model)>0,CONCATENATE(CRY),CONCATENATE(FRCP_y1," to ",dms_MultiYear_FinalYear_Result))) -> Annual Reporting RIN Response 2017-18
B4: 3.6 QUALITY OF SERVICES
B6: 3.6.5 - QUALITY OF SUPPLY METRICS
D7: Volume
C8: Units | D8: =CRY -> 2017-18
B9: Over voltage events - due to high voltage injection | C9: number
B10: Customers receiving over-voltage - due to high voltage injection | C10: number
B11: Over voltage events - due to lightning | C11: number
B12: Customers receiving over-voltage - due to lightning | C12: number
B13: Over voltage events - due to voltage regulation or other cause | C13: number
B14: Customers receiving over-voltage - due to voltage regulation or other cause | C14: number
B15: Voltage variations - steady state (zone sub) | C15: number
B16: Voltage variations - one minute (zone sub) | C16: number
B17: Voltage variations - 10 seconds (zone sub) Min<0.7 | C17: number
B18: Voltage variations - 10 seconds (zone sub) Min<0.8 | C18: number
B19: Voltage variations - 10 seconds (zone sub) Min<0.9 | C19: number
B20: Voltage variations - steady state (feeder) | C20: number
B21: Voltage variations - % zone subs monitored | C21: (per cent)
B22: Voltage variations - % feeders monitored | C22: (per cent)
B24: 3.6.6 - COMPLAINTS - TECHNICAL QUALITY OF SUPPLY
D25: Volume
C26: Units | D26: =CRY -> 2017-18
B27: 3.6.6.1 - TECHNICAL QUALITY OF SUPPLY
B28: Number of complaints - technical quality of supply | C28: number | D28: 56
B29: 3.6.6.2 - PERCENTAGE OF COMPLAINTS BY CATEGORY
B30: Low voltage supply | C30: (per cent) | D30: 0.02
B31: Voltage dips | C31: (per cent) | D31: 0.02
B32: Voltage swell | C32: (per cent) | D32: 0
B33: Voltage spike (impulsive transient) | C33: (per cent) | D33: 0
B34: Waveform distortion | C34: (per cent) | D34: 0
B35: TV or radio interference | C35: (per cent) | D35: 0
B36: Solar related | C36: (per cent) | D36: 0.96
B37: Noise from appliances | C37: (per cent) | D37: 0
B38: Other | C38: (per cent) | D38: 0
B39: 3.6.6.3 - PERCENTAGE OF COMPLAINTS BY LIKELY CAUSE
B40: Network equipment faulty | C40: (per cent) | D40: 0
B41: Network interference by NSP equipment | C41: (per cent) | D41: 0
B42: Network interference by another customer | C42: (per cent) | D42: 0.5
B43: Network limitation | C43: (per cent) | D43: 0.09
B44: Customer internal problem | C44: (per cent) | D44: 0.27
B45: No problem identified | C45: (per cent) | D45: 0.14
B46: Environmental | C46: (per cent) | D46: 0
B47: Other | C47: (per cent) | D47: 0
B51: 3.6.7 - CUSTOMER SERVICE METRICS
D52: Volume
C53: Unit | D53: =CRY -> 2017-18
B54: 3.6.7.1 - TIMELY PROVISIONS OF SERVICES
B55: Number of connections made | C55: number | D55: 11789
B56: Number of connections not made on or before agreed date | C56: number | D56: 215
B57: 3.6.7.2 - TIMELY REPAIR OF FAULTY STREET LIGHTS
B58: Street lights - average monthly number "out" | C58: number | D58: 2579
B59: Street lights - not repaired by "fix by" date | C59: number | D59: 1045
B60: Street lights - average number of days to repair | C60: number | D60: 4.38
B61: Total number of street lights | C61: number | D61: 216445
B62: 3.6.7.3 - CALL CENTRE PERFORMANCE
B63: Calls to call centre fault line | C63: number | D63: =IF(SUM(dms_060101_Values)=0,"",SUM(dms_060101_Values)) -> 100331
B64: Calls to fault line answered within 30 seconds | C64: number | D64: =IF(SUM(dms_060102_Values)=0,"",SUM(dms_060102_Values)) -> 80026
B65: Calls to fault line - average waiting time before call answered | C65: number | D65: 13 seconds
B66: Call centre - number of overload events | C66: number | D66: 0
B67: Percentage of calls abandoned | C67: (per cent) | D67: 0.037
B68: 3.6.7.4 - NUMBER OF CUSTOMER COMPLAINTS
B69: Complaint - reliability of supply | C69: number | D69: 246
B70: Complaint - technical quality of supply | C70: number | D70: =IF(ISBLANK(dms_030606_01_Values),"",dms_030606_01_Values) -> 56
B71: Complaint - administrative process or customer service | C71: number | D71: 647
B72: Complaint - connection or augmentation | C72: number | D72: 56
B73: Complaint - other | C73: number | D73: 130
B74: Total number of complaints | C74: number | D74: =IF(SUM(D69:D73)=0,"",(SUM(D69:D73))) -> 1135

Sheet 3.6.8 Network-feeders
B1: =IF(dms_DataQuality="backcast",INDEX(dms_Worksheet_List,MATCH(dms_Model,dms_Model_List))&" BACKCAST",INDEX(dms_Worksheet_List,MATCH(dms_Model,dms_Model_List))) -> ANNUAL REPORTING STATEMENT
B2: =INDEX(dms_TradingNameFull_List,MATCH(dms_TradingName,dms_TradingName_List)) -> SA Power Networks
B3: =CONCATENATE("Annual Reporting RIN Response ",IF(SUM(dms_SingleYear_Model)>0,CONCATENATE(CRY),CONCATENATE(FRCP_y1," to ",dms_MultiYear_FinalYear_Result))) -> Annual Reporting RIN Response 2017-18
B4: 3.6 QUALITY OF SERVICES
B6: Did the MAIFI parameter of the STPIS apply during the period? | F6: No | G6: ** IMPORTANT Please ensure this question is answered correctly. Your response will affect other tables throughout this workbook and will determine which cells are grey and which are input cells.
B10: 3.6.8 - NETWORK FEEDER RELIABILITY
B11: Feeder ID / name | C11: Description of the service area for the feeder | D11: Feeder classification (drop down) | E11: Number of distribution customers | F11: Length of high voltage distribution lines | H11: Maximum demand (MVA) | I11: Energy not supplied (MWh) | K11: Unplanned Outages | P11: Planned Outages | U11: Momentary feeder outages
F12: Overhead | G12: Underground | I12: Unplanned | J12: Planned | K12: Total number of unplanned outages | L12: Unplanned customer minutes off-supply (SAIDI) | N12: Unplanned interruptions (SAIFI) | P12: Total number of planned outages | Q12: Planned customer minutes off-supply (SAIDI) | S12: Planned interruptions (SAIFI) | U12: Total number of momentary feeder outages | V12: Momentary interruptions due to feeder outages (MAIFI)
L13: Including excluded events and MEDs | M13: After removing excluded events and MED | N13: Including excluded events and MEDs | O13: After removing excluded events and MED | Q13: Including MEDs | R13: After removing MED | S13: Including MEDs | T13: After removing MED | V13: Including excluded events and MEDs | W13: After removing excluded events and MED
B14: AP125A | C14: MAJOR METROPOLITAN AREAS | D14: Urban | E14: 1705.5 | F14: 0.91875 | G14: 16.15353741 | H14: 4.1 | I14: 0.1936397126 | J14: 2.54852063 | K14: 6 | L14: 5.241078238 | M14: 5.241078238 | N14: 0.02149906324 | O14: 0.02149906324 | P14: 12 | Q14: 68.97859865 | R14: 68.97859865 | S14: 0.8155965992 | T14: 0.8155965992
B15: AP125B | C15: MAJOR METROPOLITAN AREAS | D15: Urban | E15: 843.5 | F15: 3.88705455 | G15: 7.59151 | H15: 1.16 | I15: 4.765284225 | J15: 10.36104059 | K15: 7 | L15: 260.7844306 | M15: 260.7844306 | N15: 1.792926302 | O15: 1.792926302 | P15: 21 | Q15: 567.0171903 | R15: 567.0171903 | S15: 3.173681091 | T15: 3.173681091
B16: AP125C | C16: MAJOR METROPOLITAN AREAS | D16: Urban | E16: 948 | F16: 5.985223392 | G16: 1.406976163 | H16: 2.06 | I16: 0.509041233 | J16: 0.598336831 | K16: 6 | L16: 24.78691983 | M16: 24.78691983 | N16: 0.2563291139 | O16: 0.2563291139 | P16: 3 | Q16: 29.1350211 | R16: 29.1350211 | S16: 0.1919831224 | T16: 0.1919831224
B17: AP125D | C17: MAJOR METROPOLITAN AREAS | D17: Urban | E17: 2289.5 | F17: 10.31595142 | G17: 2.93683 | H17: 5.33 | I17: 0.7885970612 | J17: 0.4527819734 | K17: 19 | L17: 15.89982864 | M17: 15.89982864 | N17: 0.1356919222 | O17: 0.1356919222 | P17: 2 | Q17: 9.129067482 | R17: 9.129067482 | S17: 0.07032103079 | T17: 0.07032103079
B18: AP132A | C18: MAJOR METROPOLITAN AREAS | D18: Urban | E18: 478 | F18: 3.756227419 | G18: 5.881072261 | H18: 3.92 | I18: 1.624636855 | J18: 0.006325646439 | K18: 5 | L18: 156.8940022 | M18: 156.8940022 | N18: 2.640864711 | O18: 2.640864711 | P18: 1 | Q18: 0.6108786611 | R18: 0.6108786611 | S18: 0.004184100418 | T18: 0.004184100418
B19: AP132B | C19: MAJOR METROPOLITAN AREAS | D19: Urban | E19: 66 | F19: 10.866851 | G19: 6.70015197 | H19: 5.7 | I19: 0.01499091553 | J19: 0 | K19: 3 | L19: 10.48484848 | M19: 10.48484848 | N19: 0.1212121212 | O19: 0.1212121212 | Q19: 0 | R19: 0 | S19: 0 | T19: 0
B20: AP132C | C20: MAJOR METROPOLITAN AREAS | D20: Urban | E20: 328.5 | F20: 7.219511514 | G20: 4.76311 | H20: 5.72 | I20: 0.1052252374 | J20: 0.0139077569 | K20: 4 | L20: 14.78640092 | M20: 14.78640092 | N20: 0.1055301825 | O20: 0.1055301825 | P20: 1 | Q20: 1.9543379 | R20: 1.9543379 | S20: 0.006088280061 | T20: 0.006088280061
B21: AP132D | C21: MAJOR METROPOLITAN AREAS | D21: Urban | E21: 1783.5 | F21: 8.770304413 | G21: 1.17794 | H21: 6.57 | I21: 13.9536754 | J21: 0.3240160746 | K21: 22 | L21: 361.15484 | M21: 361.15484 | N21: 6.157368445 | O21: 6.157368445 | P21: 3 | Q21: 8.386319036 | R21: 8.386319036 | S21: 0.04317353518 | T21: 0.04317353518
B22: AP132E | C22: MAJOR METROPOLITAN AREAS | D22: Urban | E22: 82.5 | F22: 4.62482358 | G22: 4.053387767 | H22: 3.16 | I22: 0.02551921749 | J22: 0 | K22: 2 | L22: 14.27878788 | M22: 14.27878788 | N22: 0.04848484848 | O22: 0.04848484848 | Q22: 0 | R22: 0 | S22: 0 | T22: 0
B23: AP139A | C23: MAJOR METROPOLITAN AREAS | D23: Urban | E23: 452 | F23: 3.469066368 | G23: 1.34077 | H23: 3.35 | I23: 0.01054996512 | J23: 0 | K23: 3 | L23: 1.077433628 | M23: 1.077433628 | N23: 0.006637168142 | O23: 0.006637168142 | Q23: 0 | R23: 0 | S23: 0 | T23: 0
B24: AP139B | C24: MAJOR METROPOLITAN AREAS | D24: Urban | E24: 2089 | F24: 10.34099114 | G24: 2.06654 | H24: 5.56 | I24: 0.3021216954 | J24: 0.6259357131 | K24: 6 | L24: 6.676078128 | M24: 6.676078128 | N24: 0.03318970873 | O24: 0.03318970873 | P24: 4 | Q24: 13.83149832 | R24: 13.83149832 | S24: 0.1129727142 | T24: 0.1129727142
B25: AP139C | C25: MAJOR METROPOLITAN AREAS | D25: Urban | E25: 944.5 | F25: 9.435340682 | G25: 3.183944784 | H25: 6.36 | I25: 3.068631704 | J25: 0.1035499657 | K25: 10 | L25: 149.9756465 | M25: 149.9756465 | N25: 1.116287261 | O25: 1.116287261 | P25: 1 | Q25: 5.060878772 | R25: 5.060878772 | S25: 0.02117522499 | T25: 0.02117522499
B26: AP139D | C26: MAJOR METROPOLITAN AREAS | D26: Urban | E26: 1967.5 | F26: 9.874503487 | G26: 5.33966 | H26: 5.94 | I26: 0.6821300361 | J26: 0 | K26: 11 | L26: 16.00406731 | M26: 16.00406731 | N26: 0.07573063013 | O26: 0.07573063013 | Q26: 0 | R26: 0 | S26: 0 | T26: 0
B27: AP146A | C27: MAJOR METROPOLITAN AREAS | D27: Urban | E27: 592.5 | F27: 3.079530745 | G27: 6.12293 | H27: 4.63 | I27: 0.7052158916 | J27: 0.02967854665 | K27: 6 | L27: 54.94291193 | M27: 54.94291193 | N27: 0.7144869096 | O27: 0.7144869096 | P27: 1 | Q27: 2.312236287 | R27: 2.312236287 | S27: 0.008438818565 | T27: 0.008438818565
B28: AP146B | C28: MAJOR METROPOLITAN AREAS | D28: Urban | E28: 2473 | F28: 9.594550437 | G28: 1.70415024 | H28: 6.44 | I28: 1.082530331 | J28: 0.3456792474 | K28: 15 | L28: 20.20663024 | M28: 20.20663024 | N28: 0.147998371 | O28: 0.147998371 | P28: 1 | Q28: 6.452486858 | R28: 6.452486858 | S28: 0.0327537404 | T28: 0.0327537404
B29: AP146C | C29: MAJOR METROPOLITAN AREAS | D29: Urban | E29: 1611.5 | F29: 5.646164791 | G29: 1.9543 | H29: 2.9 | I29: 0.462602245 | J29: 0.06676589838 | K29: 8 | L29: 13.25120472 | M29: 13.25120472 | N29: 0.06805250018 | O29: 0.06805250018 | P29: 1 | Q29: 1.912503878 | R29: 1.912503878 | S29: 0.02854483401 | T29: 0.02854483401
B30: AP146D | C30: MAJOR METROPOLITAN AREAS | D30: Urban | E30: 359 | F30: 1.99160516 | G30: 0.2425 | H30: 1.05 | I30: 0.1047631034 | J30: 0 | K30: 1 | L30: 13.47075209 | M30: 13.47075209 | N30: 0.217270195 | O30: 0.217270195 | Q30: 0 | R30: 0 | S30: 0 | T30: 0
B31: AP146E | C31: MAJOR METROPOLITAN AREAS | D31: Urban | E31: 576 | F31: 4.159008141 | G31: 0.7285 | H31: 3.75 | I31: 1.31858652 | J31: 0.007495457767 | K31: 6 | L31: 105.6730118 | M31: 105.6730118 | N31: 1.236111059 | O31: 1.236111059 | P31: 1 | Q31: 0.6006944444 | R31: 0.6006944444 | S31: 0.001736111111 | T31: 0.001736111111
B32: AP149A | C32: MAJOR METROPOLITAN AREAS | D32: Urban | E32: 821.5 | F32: 3.758567347 | G32: 0.57286 | H32: 2.44 | I32: 2.318616476 | J32: 0 | K32: 10 | L32: 130.2864609 | M32: 130.2864609 | N32: 1.266382606 | O32: 1.266382606 | Q32: 0 | R32: 0 | S32: 0 | T32: 0
B33: AP149B | C33: MAJOR METROPOLITAN AREAS | D33: Urban | E33: 1434 | F33: 7.747957021 | G33: 1.4576 | H33: 4.63 | I33: 1.555935637 | J33: 0.274775683 | K33: 6 | L33: 50.08646877 | M33: 50.08646877 | N33: 1.135750785 | O33: 1.135750785 | P33: 1 | Q33: 8.845188285 | R33: 8.845188285 | S33: 0.02928870293 | T33: 0.02928870293
B34: AP149C | C34: MAJOR METROPOLITAN AREAS | D34: Urban | E34: 1407 | F34: 7.280600575 | G34: 0.54963 | H34: 4.48 | I34: 0.1357774615 | J34: 0 | K34: 6 | L34: 4.454628842 | M34: 4.454628842 | N34: 0.04122243727 | O34: 0.04122243727 | Q34: 0 | R34: 0 | S34: 0 | T34: 0
B35: AP149D | C35: MAJOR METROPOLITAN AREAS | D35: Urban | E35: 1982 | F35: 10.1184502 | G35: 1.77976 | H35: 7.2 | I35: 0.6671317069 | J35: 0.654011185 | K35: 13 | L35: 15.53766913 | M35: 15.53766913 | N35: 0.1263033721 | O35: 0.1263033721 | P35: 2 | Q35: 15.2320888 | R35: 15.2320888 | S35: 0.9823410696 | T35: 0.9823410696
B36: AP149E | C36: MAJOR METROPOLITAN AREAS | D36: Urban | E36: 2065 | F36: 8.74145719 | G36: 3.501218601 | H36: 6.31 | I36: 11.69436483 | J36: 1.063141865 | K36: 18 | L36: 261.4174172 | M36: 261.4174172 | N36: 2.138821505 | O36: 2.138821505 | P36: 5 | Q36: 23.76561743 | R36: 23.76561743 | S36: 0.1041162228 | T36: 0.1041162228
B37: AP149F | C37: MAJOR METROPOLITAN AREAS | D37: Urban | E37: 1507 | F37: 4.341570451 | G37: 1.94343 | H37: 4.12 | I37: 13.68169429 | J37: 3.776714209 | K37: 14 | L37: 419.0873646 | M37: 419.0873646 | N37: 3.074541013 | O37: 3.074541013 | P37: 6 | Q37: 115.6854678 | R37: 115.6854678 | S37: 0.3297942933 | T37: 0.3297942933
B38: AP149H | C38: MAJOR METROPOLITAN AREAS | D38: Urban | E38: 1002.5 | F38: 6.256836317 | G38: 2.44575 | H38: 3.14 | I38: 1.958155826 | J38: 0.1428902874 | K38: 13 | L38: 90.16558506 | M38: 90.16558506 | N38: 1.061346621 | O38: 1.061346621 | P38: 2 | Q38: 6.579551122 | R38: 6.579551122 | S38: 0.03391521197 | T38: 0.03391521197
B39: AP214A | C39: MAJOR METROPOLITAN AREAS | D39: Urban | E39: 1532 | F39: 5.651669783 | G39: 4.409332045 | H39: 6.5 | I39: 0.3136323358 | J39: 3.222461934 | K39: 3 | L39: 9.450178341 | M39: 9.450178341 | N39: 0.1499130389 | O39: 0.1499130389 | P39: 5 | Q39: 97.09725849 | R39: 97.09725849 | S39: 0.3453002611 | T39: 0.3453002611
B40: AP214B | C40: MAJOR METROPOLITAN AREAS | D40: Urban | E40: 972 | F40: 4.534194072 | G40: 0.60143 | H40: 3.96 | I40: 0.1402256748 | J40: 0 | K40: 4 | L40: 6.659463011 | M40: 6.659463011 | N40: 0.09773660197 | O40: 0.09773660197 | Q40: 0 | R40: 0 | S40: 0 | T40: 0
B41: AP214C | C41: MAJOR METROPOLITAN AREAS | D41: Urban | E41: 1285 | F41: 5.67114265 | G41: 3.46468 | H41: 6.38 | I41: 1.551523622 | J41: 1.937120906 | K41: 10 | L41: 55.73566686 | M41: 55.73566686 | N41: 1.315693883 | O41: 1.315693883 | P41: 2 | Q41: 69.58754864 | R41: 69.58754864 | S41: 0.2155642023 | T41: 0.2155642023
B42: AP214D | C42: MAJOR METROPOLITAN AREAS | D42: Urban | E42: 1435 | F42: 5.28732186 | G42: 0.18287 | H42: 3.92 | I42: 2.871540099 | J42: 0.4095639438 | K42: 6 | L42: 92.3721222 | M42: 92.3721222 | N42: 0.2529616492 | O42: 0.2529616492 | P42: 2 | Q42: 13.17491289 | R42: 13.17491289 | S42: 0.1003484321 | T42: 0.1003484321
B43: AP226A | C43: MAJOR METROPOLITAN AREAS | D43: Urban | E43: 609 | F43: 1.530653429 | G43: 1.26938 | H43: 1.99 | I43: 0.1980084436 | J43: 0 | K43: 5 | L43: 15.00874416 | M43: 15.00874416 | N43: 0.05363979872 | O43: 0.05363979872 | Q43: 0 | R43: 0 | S43: 0 | T43: 0
B44: AP226B | C44: MAJOR METROPOLITAN AREAS | D44: Urban | E44: 365 | F44: 1.747757831 | G44: 1.52007 | H44: 0.71 | I44: 0.6024961602 | J44: 0 | K44: 2 | L44: 76.19726027 | M44: 76.19726027 | N44: 0.8191780822 | O44: 0.8191780822 | Q44: 0 | R44: 0 | S44: 0 | T44: 0
B45: AP226C | C45: MAJOR METROPOLITAN AREAS | D45: Urban | E45: 1896 | F45: 2.598233178 | G45: 10.0596 | H45: 4.4 | I45: 2.2941945 | J45: 0.9103298448 | K45: 15 | L45: 55.85600091 | M45: 55.85600091 | N45: 0.2587903797 | O45: 0.2587903797 | P45: 2 | Q45: 22.16350211 | R45: 22.16350211 | S45: 0.1049578059 | T45: 0.1049578059
B46: AP226D | C46: MAJOR METROPOLITAN AREAS | D46: Urban | E46: 1626.5 | F46: 4.920224101 | G46: 2.32352 | H46: 4.83 | I46: 0.7198523624 | J46: 5.5849609 | K46: 8 | L46: 20.42995001 | M46: 20.42995001 | N46: 0.1291115416 | O46: 0.1291115416 | P46: 11 | Q46: 158.5053796 | R46: 158.5053796 | S46: 0.5527205656 | T46: 0.5527205656
B47: AP226E | C47: MAJOR METROPOLITAN AREAS | D47: Urban | E47: 984.5 | F47: 3.999896399 | G47: 0.29856 | H47: 2.85 | I47: 0.2536466191 | J47: 0.0823200564 | K47: 4 | L47: 11.8929966 | M47: 11.8929966 | N47: 0.04807850405 | O47: 0.04807850405 | P47: 2 | Q47: 3.859827324 | R47: 3.859827324 | S47: 0.1289994921 | T47: 0.1289994921
B48: AP227A | C48: MAJOR METROPOLITAN AREAS | D48: Urban | E48: 1820.5 | F48: 7.434146078 | G48: 1.14939 | H48: 4.57 | I48: 5.198627383 | J48: 9.581339681 | K48: 15 | L48: 131.8183721 | M48: 131.8183721 | N48: 1.031035493 | O48: 1.031035493 | P48: 11 | Q48: 242.9480912 | R48: 242.9480912 | S48: 0.7701180994 | T48: 0.7701180994
B49: AP227B | C49: MAJOR METROPOLITAN AREAS | D49: Urban | E49: 1225.5 | F49: 6.389718418 | G49: 4.101266788 | H49: 4.1 | I49: 0.1238917484 | J49: 0.04012019591 | K49: 3 | L49: 4.666669057 | M49: 4.666669057 | N49: 0.04569565622 | O49: 0.04569565622 | P49: 2 | Q49: 1.51121991 | R49: 1.51121991 | S49: 0.06609547124 | T49: 0.06609547124
B50: AP227C | C50: MAJOR METROPOLITAN AREAS | D50: Urban | E50: 782.5 | F50: 1.156503382 | G50: 8.27448 | H50: 3.19 | I50: 0.4247933658 | J50: 0 | K50: 3 | L50: 25.0594374 | M50: 25.0594374 | N50: 0.0562300612 | O50: 0.0562300612 | Q50: 0 | R50: 0 | S50: 0 | T50: 0
B51: AP227D | C51: MAJOR METROPOLITAN AREAS | D51: Urban | E51: 1390 | F51: 5.801503113 | G51: 3.034658747 | H51: 4.44 | I51: 0.3523515046 | J51: 0.09293501105 | K51: 8 | L51: 11.70143885 | M51: 11.70143885 | N51: 0.06115107914 | O51: 0.06115107914 | P51: 1 | Q51: 3.086330935 | R51: 3.086330935 | S51: 0.09352517986 | T51: 0.09352517986
B52: AP344A | C52: MAJOR METROPOLITAN AREAS | D52: Urban | E52: 214.5 | F52: 1.005618914 | G52: 1.78947 | H52: 5.26 | I52: 0.09053039887 | J52: 0.8507127934 | K52: 3 | L52: 19.48251748 | M52: 19.48251748 | N52: 0.331002331 | O52: 0.331002331 | P52: 1 | Q52: 183.0769231 | R52: 183.0769231 | S52: 0.5547785548 | T52: 0.5547785548
B53: AP344B | C53: MAJOR METROPOLITAN AREAS | D53: Urban | E53: 443.5 | F53: 1.216427491 | G53: 2.957148047 | H53: 3.74 | I53: 0.05700297256 | J53: 1.856360598 | K53: 2 | L53: 5.933102028 | M53: 5.933102028 | N53: 0.0759112343 | O53: 0.0759112343 | P53: 2 | Q53: 193.2175874 | R53: 193.2175874 | S53: 0.7170236753 | T53: 0.7170236753
B54: AP344C | C54: MAJOR METROPOLITAN AREAS | D54: Urban | E54: 85 | F54: 0.355548229 | G54: 1.57245 | H54: 0.57 | I54: 0.03084835798 | J54: 1.107854654 | K54: 3 | L54: 16.75294118 | M54: 16.75294118 | N54: 0.2823529412 | O54: 0.2823529412 | P54: 5 | Q54: 601.6470588 | R54: 601.6470588 | S54: 3.035294118 | T54: 3.035294118
B55: AP344D | C55: MAJOR METROPOLITAN AREAS | D55: Urban | E55: 1275 | F55: 6.659276199 | G55: 2.34768 | H55: 2.44 | I55: 5.03922073 | J55: 0 | K55: 8 | L55: 182.4446507 | M55: 182.4446507 | N55: 1.070849673 | O55: 1.070849673 | Q55: 0 | R55: 0 | S55: 0 | T55: 0
B56: AP344E | C56: MAJOR METROPOLITAN AREAS | D56: Urban | E56: 801.5 | F56: 2.636632311 | G56: 3.01352 | H56: 2 | I56: 0.3628725978 | J56: 0.5050985356 | K56: 9 | L56: 20.89914814 | M56: 20.89914814 | N56: 0.126429627 | O56: 0.126429627 | P56: 1 | Q56: 29.0904554 | R56: 29.0904554 | S56: 0.1085464754 | T56: 0.1085464754
B57: AP344F | C57: MAJOR METROPOLITAN AREAS | D57: Urban | E57: 512.5 | F57: 3.21532096 | G57: 0.47092 | H57: 1.16 | I57: 5.905258118 | J57: 0.1894661088 | K57: 7 | L57: 531.891381 | M57: 531.891381 | N57: 5.804227635 | O57: 5.804227635 | P57: 2 | Q57: 17.06536585 | R57: 17.06536585 | S57: 0.1619512195 | T57: 0.1619512195
B58: AP351B | C58: MAJOR METROPOLITAN AREAS | D58: Urban | E58: 376 | F58: 2.263473027 | G58: 1.054459979 | H58: 1.56 | I58: 0.005285814148 | J58: 0.8754737999 | K58: 1 | L58: 0.6489361702 | M58: 0.6489361702 | N58: 0.002659574468 | O58: 0.002659574468 | P58: 2 | Q58: 107.481383 | R58: 107.481383 | S58: 0.2526595745 | T58: 0.2526595745
B59: AP351C | C59: MAJOR METROPOLITAN AREAS | D59: Urban | E59: 733.5 | F59: 3.957078605 | G59: 0.888877925 | H59: 3.18 | I59: 0.1644090213 | J59: 0.4380943423 | K59: 4 | L59: 10.34673827 | M59: 10.34673827 | N59: 0.1008861622 | O59: 0.1008861622 | P59: 2 | Q59: 27.57055215 | R59: 27.57055215 | S59: 0.1363326517 | T59: 0.1363326517
B60: AP351D | C60: MAJOR METROPOLITAN AREAS | D60: Urban | E60: 676.5 | F60: 4.35307418 | G60: 0.38811 | H60: 4.8 | I60: 0.1194940608 | J60: 0.5848190112 | K60: 3 | L60: 8.153732446 | M60: 8.153732446 | N60: 0.0177383592 | O60: 0.0177383592 | P60: 2 | Q60: 39.90539542 | R60: 39.90539542 | S60: 0.2128603104 | T60: 0.2128603104
B61: AP351E | C61: MAJOR METROPOLITAN AREAS | D61: Urban | E61: 493.5 | F61: 3.857210801 | G61: 0.87445 | H61: 2.11 | I61: 0.3594570252 | J61: 0.7095122335 | K61: 3 | L61: 33.6231003 | M61: 33.6231003 | N61: 0.2391084093 | O61: 0.2391084093 | P61: 3 | Q61: 66.36676798 | R61: 66.36676798 | S61: 0.233029382 | T61: 0.233029382
B62: AP355A | C62: MAJOR METROPOLITAN AREAS | D62: Urban | E62: 2007.5 | F62: 9.493501296 | G62: 0.78046 | H62: 5.96 | I62: 4.539076994 | J62: 11.24413983 | K62: 21 | L62: 104.3734245 | M62: 104.3734245 | N62: 1.431797379 | O62: 1.431797379 | P62: 16 | Q62: 258.5524284 | R62: 258.5524284 | S62: 0.9195516812 | T62: 0.9195516812
B63: AP355B | C63: MAJOR METROPOLITAN AREAS | D63: Urban | E63: 498 | F63: 2.34447886 | G63: 1.36404 | H63: 3.72 | I63: 0.005480782703 | J63: 0 | K63: 1 | L63: 0.5080321285 | M63: 0.5080321285 | N63: 0.002008032129 | O63: 0.002008032129 | Q63: 0 | R63: 0 | S63: 0 | T63: 0
B64: AP355C | C64: MAJOR METROPOLITAN AREAS | D64: Urban | E64: 948 | F64: 3.522213665 | G64: 2.587712263 | H64: 10.04 | I64: 0.02218307698 | J64: 0.02668902881 | K64: 3 | L64: 1.080168197 | M64: 1.080168197 | N64: 0.006329111786 | O64: 0.006329111786 | P64: 1 | Q64: 1.299578059 | R64: 1.299578059 | S64: 0.02953586498 | T64: 0.02953586498
B65: AP355D | C65: MAJOR METROPOLITAN AREAS | D65: Urban | E65: 215 | F65: 0.93356318 | G65: 4.9753 | H65: 10.36 | I65: 0.6057456311 | J65: 0.4605157261 | K65: 3 | L65: 130.0558129 | M65: 130.0558129 | N65: 1.012403101 | O65: 1.012403101 | P65: 3 | Q65: 98.8744186 | R65: 98.8744186 | S65: 0.2418604651 | T65: 0.2418604651
B66: AP355E | C66: MAJOR METROPOLITAN AREAS | D66: Urban | E66: 627 | F66: 4.728786484 | G66: 1.146364966 | H66: 8.48 | I66: 1.658279672 | J66: 0.475809926 | K66: 4 | L66: 122.086649 | M66: 122.086649 | N66: 1.01488565 | O66: 1.01488565 | P66: 4 | Q66: 35.03030303 | R66: 35.03030303 | S66: 0.1004784689 | T66: 0.1004784689
B67: AP355F | C67: MAJOR METROPOLITAN AREAS | D67: Urban | E67: 1230 | F67: 4.248512918 | G67: 2.721647999 | H67: 6.9 | I67: 1.623575671 | J67: 0.5428791088 | K67: 10 | L67: 60.93198981 | M67: 60.93198981 | N67: 1.78807613 | O67: 1.78807613 | P67: 2 | Q67: 20.37398374 | R67: 20.37398374 | S67: 0.05691056911 | T67: 0.05691056911
B68: AP355H | C68: MAJOR METROPOLITAN AREAS | D68: Urban | E68: 2430.5 | F68: 7.071052688 | G68: 4.80291 | H68: 6.34 | I68: 0.2627596576 | J68: 2.100829503 | K68: 6 | L68: 4.990464829 | M68: 4.990464829 | N68: 0.05677840985 | O68: 0.05677840985 | P68: 4 | Q68: 39.90002057 | R68: 39.90002057 | S68: 0.1468833573 | T68: 0.1468833573
B69: AP365A | C69: MAJOR METROPOLITAN AREAS | D69: Urban | E69: 1665 | F69: 5.77784138 | G69: 2.947189269 | H69: 6.17 | I69: 4.242595151 | J69: 0.01267295605 | K69: 12 | L69: 117.623823 | M69: 117.623823 | N69: 0.9487487381 | O69: 0.9487487381 | P69: 1 | Q69: 0.3513513514 | R69: 0.3513513514 | S69: 0.007807807808 | T69: 0.007807807808
B70: AP365C | C70: MAJOR METROPOLITAN AREAS | D70: Urban | E70: 279.5 | H70: 0 | I70: 0.05407122627 | J70: 0 | K70: 1 | L70: 8.930223823 | M70: 8.930223823 | N70: 0.04293376602 | O70: 0.04293376602 | Q70: 0 | R70: 0 | S70: 0 | T70: 0
B71: AP365D2 | C71: MAJOR METROPOLITAN AREAS | D71: Urban | E71: 11.5 | F71: 1.713364639 | G71: 0.10191 | H71: 1.37 | I71: 0.008665269095 | J71: 0 | K71: 1 | L71: 34.7826087 | M71: 34.7826087 | N71: 0.1739130435 | O71: 0.1739130435 | Q71: 0 | R71: 0 | S71: 0 | T71: 0
B72: AP365E | C72: MAJOR METROPOLITAN AREAS | D72: Urban | E72: 930.5 | F72: 4.464109918 | G72: 5.780485414 | H72: 3.45 | I72: 0.4370035465 | J72: 0 | K72: 6 | L72: 21.6793632 | M72: 21.6793632 | N72: 0.1203652781 | O72: 0.1203652781 | Q72: 0 | R72: 0 | S72: 0 | T72: 0
B73: AP365F | C73: MAJOR METROPOLITAN AREAS | D73: Urban | E73: 806 | F73: 2.926913383 | G73: 6.37891 | H73: 2.5 | I73: 2.675423496 | J73: 0.09661775041 | K73: 3 | L73: 153.2270471 | M73: 153.2270471 | N73: 2.079404467 | O73: 2.079404467 | P73: 2 | Q73: 5.533498759 | R73: 5.533498759 | S73: 0.0570719603 | T73: 0.0570719603
B74: AP372A | C74: MAJOR METROPOLITAN AREAS | D74: Urban | E74: 405.5 | F74: 7.210424865 | G74: 1.019668287 | H74: 4.78 | I74: 1.558253678 | J74: 0.1201872824 | K74: 3 | L74: 177.3884094 | M74: 177.3884094 | N74: 1.0702836 | O74: 1.0702836 | P74: 2 | Q74: 13.68187423 | R74: 13.68187423 | S74: 0.0542540074 | T74: 0.0542540074
B75: AP372B | C75: MAJOR METROPOLITAN AREAS | D75: Urban | E75: 1235.5 | F75: 6.652063993 | G75: 1.38798 | H75: 5.98 | I75: 0.3642878453 | J75: 1.701013987 | K75: 9 | L75: 13.61068141 | M75: 13.61068141 | N75: 0.09065153234 | O75: 0.09065153234 | P75: 3 | Q75: 63.55402671 | R75: 63.55402671 | S75: 0.1821125051 | T75: 0.1821125051
B76: AP372C | C76: MAJOR METROPOLITAN AREAS | D76: Urban | E76: 57 | F76: 1.791020336 | G76: 0.49722 | H76: 0 | I76: 0.004029350129 | J76: 0.02515094355 | K76: 1 | L76: 3.263157895 | M76: 3.263157895 | N76: 0.01754385965 | O76: 0.01754385965 | P76: 1 | Q76: 20.36842105 | R76: 20.36842105 | S76: 0.05263157895 | T76: 0.05263157895
B77: AP372D | C77: MAJOR METROPOLITAN AREAS | D77: Urban | E77: 960.5 | F77: 6.523951978 | G77: 0.34055 | H77: 3.81 | I77: 0.5902057897 | J77: 0.2577267661 | K77: 10 | L77: 28.36508136 | M77: 28.36508136 | N77: 0.2089189096 | O77: 0.2089189096 | P77: 3 | Q77: 12.38625716 | R77: 12.38625716 | S77: 0.04476834982 | T77: 0.04476834982
B78: AP372F | C78: MAJOR METROPOLITAN AREAS | D78: Urban | E78: 1213.5 | F78: 5.271674282 | G78: 1.432534951 | H78: 4.02 | I78: 0.08697033463 | J78: 1.993640124 | K78: 4 | L78: 3.308333615 | M78: 3.308333615 | N78: 0.02444716918 | O78: 0.02444716918 | P78: 6 | Q78: 75.83765966 | R78: 75.83765966 | S78: 0.2867737948 | T78: 0.2867737948
B79: AP373A | C79: MAJOR METROPOLITAN AREAS | D79: Urban | E79: 249.5 | F79: 3.909443894 | G79: 1.77543 | H79: 5.49 | I79: 0.145598184 | J79: 0.03357791774 | K79: 4 | L79: 26.93787575 | M79: 26.93787575 | N79: 1.871743487 | O79: 1.871743487 | P79: 1 | Q79: 6.21242485 | R79: 6.21242485 | S79: 0.02004008016 | T79: 0.02004008016
B80: AP373B | C80: MAJOR METROPOLITAN AREAS | D80: Urban | E80: 136 | F80: 4.701395722 | G80: 4.78555 | H80: 6.61 | I80: 0.03240810642 | J80: 0 | K80: 2 | L80: 11 | M80: 11 | N80: 0.02205882353 | O80: 0.02205882353 | Q80: 0 | R80: 0 | S80: 0 | T80: 0
B81: AP373C | C81: MAJOR METROPOLITAN AREAS | D81: Urban | E81: 268 | F81: 4.944024365 | G81: 3.0021 | H81: 6.63 | I81: 0.4043141785 | J81: 0.5644339657 | K81: 6 | L81: 69.64053755 | M81: 69.64053755 | N81: 3.05099493 | O81: 3.05099493 | P81: 2 | Q81: 97.22014925 | R81: 97.22014925 | S81: 0.3880597015 | T81: 0.3880597015
B82: AP373D | C82: MAJOR METROPOLITAN AREAS | D82: Urban | E82: 209.5 | F82: 4.463256284 | G82: 6.76648 | H82: 5.58 | I82: 0.1103305612 | J82: 0.0763626839 | K82: 4 | L82: 24.31026747 | M82: 24.31026747 | N82: 0.8385046866 | O82: 0.8385046866 | P82: 2 | Q82: 16.82577566 | R82: 16.82577566 | S82: 0.04295942721 | T82: 0.04295942721
B83: AP373E | C83: MAJOR METROPOLITAN AREAS | D83: Urban | E83: 237.5 | F83: 9.742282101 | G83: 4.45544 | H83: 5.14 | I83: 2.91076499 | J83: 0.3119496874 | K83: 8 | L83: 565.7459662 | M83: 565.7459662 | N83: 1.927017557 | O83: 1.927017557 | P83: 4 | Q83: 60.63157895 | R83: 60.63157895 | S83: 0.1642105263 | T83: 0.1642105263
B84: AP373G | C84: MAJOR METROPOLITAN AREAS | D84: Urban | E84: 131.5 | F84: 0.935705604 | G84: 2.80061 | H84: 6.61 | I84: 0.003271139083 | J84: 0 | K84: 1 | L84: 1.148288973 | M84: 1.148288973 | N84: 0.007604562738 | O84: 0.007604562738 | Q84: 0 | R84: 0 | S84: 0 | T84: 0
B85: AP373J | C85: MAJOR METROPOLITAN AREAS | D85: Urban | E85: 1 | F85: 0.823059739 | G85: 1.01739 | H85: 7.39 | I85: 0.08353319408 | J85: 0.007582110458 | K85: 1 | L85: 3856 | M85: 3856 | N85: 1 | O85: 1 | P85: 1 | Q85: 350 | R85: 350 | S85: 1 | T85: 1
B86: AP373K | C86: MAJOR METROPOLITAN AREAS | D86: Urban | E86: 156.5 | F86: 0 | G86: 8.674097585 | H86: 6.9 | I86: 0.6086775949 | J86: 0.05615094374 | K86: 7 | L86: 179.535738 | M86: 179.535738 | N86: 1.691161073 | O86: 1.691161073 | P86: 2 | Q86: 16.56230032 | R86: 16.56230032 | S86: 0.06389776358 | T86: 0.06389776358
B87: AP373L | C87: MAJOR METROPOLITAN AREAS | D87: Urban | E87: 1 | F87: 0 | G87: 1.384038101 | H87: 5.91 | I87: 0 | J87: 0.01124318665 | L87: 0 | M87: 0 | N87: 0 | O87: 0 | P87: 1 | Q87: 519 | R87: 519 | S87: 1 | T87: 1
B88: AP373N | C88: MAJOR METROPOLITAN AREAS | D88: Urban | E88: 62 | F88: 1.38472 | G88: 3.624286551 | H88: 5.39 | I88: 0.02298462628 | J88: 0.09059538839 | K88: 2 | L88: 17.11290323 | M88: 17.11290323 | N88: 1.032258065 | O88: 1.032258065 | P88: 1 | Q88: 67.4516129 | R88: 67.4516129 | S88: 0.2741935484 | T88: 0.2741935484
B89: AP424A | C89: MAJOR METROPOLITAN AREAS | D89: Urban | E89: 1911 | F89: 3.644967977 | G89: 9.864460716 | H89: 7.49 | I89: 3.166390492 | J89: 0.7940202704 | K89: 11 | L89: 76.48596018 | M89: 76.48596018 | N89: 1.11076253 | O89: 1.11076253 | P89: 6 | Q89: 19.18001047 | R89: 19.18001047 | S89: 0.2271062271 | T89: 0.2271062271
B90: AP424B | C90: MAJOR METROPOLITAN AREAS | D90: Urban | E90: 2652 | F90: 9.728273277 | G90: 1.30623 | H90: 6.67 | I90: 7.762961336 | J90: 1.287529009 | K90: 13 | L90: 135.1237971 | M90: 135.1237971 | N90: 1.999748587 | O90: 1.999748587 | P90: 2 | Q90: 22.41101056 | R90: 22.41101056 | S90: 0.06485671192 | T90: 0.06485671192
B91: AP424C | C91: MAJOR METROPOLITAN AREAS | D91: Urban | E91: 2199.5 | F91: 8.399093599 | G91: 3.155664662 | H91: 7.66 | I91: 8.718646981 | J91: 0.2899832303 | K91: 15 | L91: 182.9797645 | M91: 182.9797645 | N91: 1.228157898 | O91: 1.228157898 | P91: 2 | Q91: 6.08592862 | R91: 6.08592862 | S91: 0.04228233689 | T91: 0.04228233689
B92: AP424D | C92: MAJOR METROPOLITAN AREAS | D92: Urban | E92: 1147 | F92: 5.378760478 | G92: 0.26683 | H92: 3.01 | I92: 4.168600873 | J92: 0.2287631041 | K92: 10 | L92: 167.7663417 | M92: 167.7663417 | N92: 1.243243177 | O92: 1.243243177 | P92: 1 | Q92: 9.206625981 | R92: 9.206625981 | S92: 0.07672188317 | T92: 0.07672188317
B93: AP424E | C93: MAJOR METROPOLITAN AREAS | D93: Urban | E93: 2842.5 | F93: 7.492072656 | G93: 9.215797578 | H93: 7.13 | I93: 2.579287886 | J93: 5.230226447 | K93: 31 | L93: 41.88680957 | M93: 41.88680957 | N93: 0.6464964731 | O93: 0.6464964731 | P93: 6 | Q93: 84.93720317 | R93: 84.93720317 | S93: 0.2990325418 | T93: 0.2990325418
B94: AP424F | C94: MAJOR METROPOLITAN AREAS | D94: Urban | E94: 2675 | F94: 4.512542097 | G94: 17.4695126 | H94: 7.49 | I94: 5.849063914 | J94: 0.5781034277 | K94: 10 | L94: 100.934705 | M94: 100.934705 | N94: 0.9196261737 | O94: 0.9196261737 | P94: 3 | Q94: 9.976074766 | R94: 9.976074766 | S94: 0.09981308411 | T94: 0.09981308411
B95: AP425A | C95: MAJOR METROPOLITAN AREAS | D95: Urban | E95: 1428 | F95: 4.97177866 | G95: 2.32447 | H95: 4.38 | I95: 4.188025476 | J95: 0 | K95: 6 | L95: 135.3814136 | M95: 135.3814136 | N95: 1.091269819 | O95: 1.091269819 | Q95: 0 | R95: 0 | S95: 0 | T95: 0
B96: AP425B | C96: MAJOR METROPOLITAN AREAS | D96: Urban | E96: 1128.5 | F96: 4.025546729 | G96: 0.28894 | H96: 6 | I96: 6.782761304 | J96: 0.4005520639 | K96: 13 | L96: 277.4488364 | M96: 277.4488364 | N96: 2.859548343 | O96: 2.859548343 | P96: 1 | Q96: 16.3845813 | R96: 16.3845813 | S96: 0.03810367745 | T96: 0.03810367745
B97: AP425C | C97: MAJOR METROPOLITAN AREAS | D97: Urban | E97: 1612 | F97: 9.977696147 | G97: 1.324996507 | H97: 10.4 | I97: 0.1907008805 | J97: 0.2056918251 | K97: 9 | L97: 5.460917281 | M97: 5.460917281 | N97: 0.08808932115 | O97: 0.08808932115 | P97: 1 | Q97: 5.890198511 | R97: 5.890198511 | S97: 0.02791563275 | T97: 0.02791563275
B98: AP425D | C98: MAJOR METROPOLITAN AREAS | D98: Urban | E98: 1881 | F98: 6.33027209 | G98: 1.28966 | H98: 5.26 | I98: 1.804953778 | J98: 1.023888196 | K98: 14 | L98: 44.2950531 | M98: 44.2950531 | N98: 0.1587807606 | O98: 0.1587807606 | P98: 1 | Q98: 25.12706007 | R98: 25.12706007 | S98: 0.05954279638 | T98: 0.05954279638
B99: AP510A | C99: MAJOR METROPOLITAN AREAS | D99: Urban | E99: 16 | F99: 0.389809398 | G99: 3.568573132 | H99: 2.15 | I99: 0.04393293183 | J99: 0.004960866557 | K99: 2 | L99: 126.7500505 | M99: 126.7500505 | N99: 0.3749999925 | O99: 0.3749999925 | P99: 1 | Q99: 14.3125 | R99: 14.3125 | S99: 0.0625 | T99: 0.0625
B100: AP510D | C100: MAJOR METROPOLITAN AREAS | D100: Urban | E100: 10 | F100: 1.99226 | G100: 2.10582 | H100: 2.25 | I100: 0.03604751944 | J100: 0.02515094355 | K100: 3 | L100: 166.4 | M100: 166.4 | N100: 2.4 | O100: 2.4 | P100: 6 | Q100: 116.1 | R100: 116.1 | S100: 0.6 | T100: 0.6
B101: AP510E | C101: MAJOR METROPOLITAN AREAS | D101: Urban | E101: 7 | F101: 0 | G101: 3.58 | H101: 2.48 | I101: 0 | J101: 0.006325646439 | L101: 0 | M101: 0 | N101: 0 | O101: 0 | P101: 1 | Q101: 41.71428571 | R101: 41.71428571 | S101: 0.1428571429 | T101: 0.1428571429
B102: AP529A | C102: MAJOR METROPOLITAN AREAS | D102: Urban | E102: 1305 | F102: 4.782414329 | G102: 0.656890713 | H102: 3.28 | I102: 0.5141460015 | J102: 3.194993031 | K102: 7 | L102: 18.18669939 | M102: 18.18669939 | N102: 0.1249040895 | O102: 0.1249040895 | P102: 5 | Q102: 113.0153257 | R102: 113.0153257 | S102: 0.4827586207 | T102: 0.4827586207
B103: AP529B | C103: MAJOR METROPOLITAN AREAS | D103: Urban | E103: 557.5 | F103: 2.715771116 | G103: 4.221687829 | H103: 2.12 | I103: 0.6033843503 | J103: 0 | K103: 1 | L103: 49.96053812 | M103: 49.96053812 | N103: 0.9775784753 | O103: 0.9775784753 | Q103: 0 | R103: 0 | S103: 0 | T103: 0
B104: AP529C | C104: MAJOR METROPOLITAN AREAS | D104: Urban | E104: 737 | F104: 3.190336417 | G104: 0.33728 | H104: 2.44 | I104: 0.02604634235 | J104: 2.666065006 | K104: 4 | L104: 1.631387739 | M104: 1.631387739 | N104: 0.02758930367 | O104: 0.02758930367 | P104: 5 | Q104: 166.9864315 | R104: 166.9864315 | S104: 0.447761194 | T104: 0.447761194
B105: AP529D | C105: MAJOR METROPOLITAN AREAS | D105: Urban | E105: 1502.5 | F105: 9.337558883 | G105: 2.298588904 | H105: 4.04 | I105: 0.6971496331 | J105: 0.5087379486 | K105: 11 | L105: 21.41852008 | M105: 21.41852008 | N105: 0.1415418647 | O105: 0.1415418647 | P105: 3 | Q105: 15.62995008 | R105: 15.62995008 | S105: 0.1677204659 | T105: 0.1677204659
B106: AP529E | C106: MAJOR METROPOLITAN AREAS | D106: Urban | E106: 1677 | F106: 6.348031458 | G106: 1.323 | H106: 6.05 | I106: 0.1002787638 | J106: 3.351292823 | K106: 12 | L106: 2.760284497 | M106: 2.760284497 | N106: 0.02067182511 | O106: 0.02067182511 | P106: 5 | Q106: 92.24806202 | R106: 92.24806202 | S106: 0.2969588551 | T106: 0.2969588551
B107: BM11 | C107: BAROSSA/MID NORTH & YORKE PENINSULA/RIVE | D107: Rural Short | E107: 464.5 | F107: 43.49269 | G107: 0.32878 | H107: 1.6 | I107: 0.04364350227 | J107: 0.06370588778 | K107: 5 | L107: 4.833155243 | M107: 4.833155243 | N107: 0.02368138193 | O107: 0.02368138193 | P107: 5 | Q107: 7.05489774 | R107: 7.05489774 | S107: 0.04305705059 | T107: 0.04305705059
B108: BM12 | C108: BAROSSA/MID NORTH & YORKE PENINSULA/RIVE | D108: Rural Short | E108: 436 | F108: 51.45973 | G108: 4.30006 | H108: 3.62 | I108: 0.05767939244 | J108: 0.2534821699 | K108: 6 | L108: 6.805045872 | M108: 6.805045872 | N108: 0.0871559633 | O108: 0.0871559633 | P108: 5 | Q108: 29.9059633 | R108: 29.9059633 | S108: 0.130733945 | T108: 0.130733945
B109: BM13 | C109: BAROSSA/MID NORTH & YORKE PENINSULA/RIVE | D109: Rural Short | E109: 690 | F109: 32.15353 | G109: 0.61058 | H109: 5.68 | I109: 0.1820909017 | J109: 0.4638457377 | K109: 7 | L109: 13.5748808 | M109: 13.5748808 | N109: 0.09903383393 | O109: 0.09903383393 | P109: 10 | Q109: 34.57971014 | R109: 34.57971014 | S109: 1.133333333 | T109: 1.133333333
B110: BM14 | C110: BAROSSA/MID NORTH & YORKE PENINSULA/RIVE | D110: Urban | E110: 12.5 | F110: 2.60293 | G110: 0.88516 | H110: 2.65 | I110: 0.09696436118 | J110: 0.0801754023 | K110: 1 | L110: 358.08 | M110: 358.08 | N110: 0.96 | O110: 0.96 | P110: 2 | Q110: 296.08 | R110: 296.08 | S110: 0.96 | T110: 0.96
B111: BM15 | C111: BAROSSA/MID NORTH & YORKE PENINSULA/RIVE | D111: Rural Short | E111: 492.5 | F111: 61.56701 | G111: 0.89176 | H111: 2.67 | I111: 0.5125631507 | J111: 0.1970469571 | K111: 9 | L111: 53.53502563 | M111: 53.53502563 | N111: 0.4162436568 | O111: 0.4162436568 | P111: 3 | Q111: 20.58071066 | R111: 20.58071066 | S111: 0.1157360406 | T111: 0.1157360406
B112: BM21 | C112: BAROSSA/MID NORTH & YORKE PENINSULA/RIVE | D112: Rural Short | E112: 1013.5 | F112: 12.54544 | G112: 4.0057 | H112: 2.51 | I112: 0.02381437673 | J112: 0.3088092851 | K112: 4 | L112: 1.208682782 | M112: 1.208682782 | N112: 0.00394671929 | O112: 0.00394671929 | P112: 5 | Q112: 15.67340898 | R112: 15.67340898 | S112: 0.994573261 | T112: 0.994573261
B113: BM31 | C113: BAROSSA/MID NORTH & YORKE PENINSULA/RIVE | D113: Rural Short | E113: 470.5 | F113: 36.36361 | G113: 0.40513 | H113: 1.56 | I113: 0.08946429526 | J113: 0.137112489 | K113: 2 | L113: 9.781083953 | M113: 9.781083953 | N113: 0.08926673751 | O113: 0.08926673751 | P113: 4 | Q113: 14.99043571 | R113: 14.99043571 | S113: 1.003188098 | T113: 1.003188098
B114: BM32 | C114: BAROSSA/MID NORTH & YORKE PENINSULA/RIVE | D114: Rural Short | E114: 68 | F114: 5.74598 | G114: 0.83336 | H114: 0.7 | I114: 0.1120344923 | J114: 0.005676569799 | K114: 1 | L114: 84.75 | M114: 84.75 | N114: 0.75 | O114: 0.75 | P114: 1 | Q114: 4.294117647 | R114: 4.294117647 | S114: 0.01470588235 | T114: 0.01470588235
B115: BM33 | C115: BAROSSA/MID NORTH & YORKE PENINSULA/RIVE | D115: Rural Short | E115: 454 | F115: 32.40394 | G115: 2.17271 | H115: 4.52 | I115: 0.03886117683 | J115: 0.08291291162 | K115: 4 | L115: 4.403083936 | M115: 4.403083936 | N115: 0.03303965178 | O115: 0.03303965178 | P115: 2 | Q115: 9.394273128 | R115: 9.394273128 | S115: 0.02202643172 | T115: 0.02202643172
B116: BM34 | C116: BAROSSA/MID NORTH & YORKE PENINSULA/RIVE | D116: Rural Short | E116: 490 | F116: 47.31695 | G116: 1.350824154 | H116: 4.04 | I116: 0.09975471307 | J116: 2.565420743 | K116: 6 | L116: 10.47211042 | M116: 10.47211042 | N116: 0.1034013748 | O116: 0.1034013748 | P116: 3 | Q116: 269.3142857 | R116: 269.3142857 | S116: 0.9428571429 | T116: 0.9428571429
B117: BM41 | C117: BAROSSA/MID NORTH & YORKE PENINSULA/RIVE | D117: Urban | E117: 533 | F117: 8.2245 | G117: 3.1466 | H117: 3.81 | I117: 0.06867228402 | J117: 0.9828581471 | K117: 3 | L117: 5.947469457 | M117: 5.947469457 | N117: 0.05628519971 | O117: 0.05628519971 | P117: 4 | Q117: 85.12195122 | R117: 85.12195122 | S117: 0.287054409 | T117: 0.287054409
B118: BM42 | C118: BAROSSA/MID NORTH & YORKE PENINSULA/RIVE | D118: Rural Short | E118: 179 | F118: 14.91476459 | G118: 0.82223 | H118: 1.26 | I118: 0 | J118: 0.02842172961 | L118: 0 | M118: 0 | N118: 0 | O118: 0 | P118: 1 | Q118: 8.167597765 | R118: 8.167597765 | S118: 0.09497206704 | T118: 0.09497206704
B119: BM43 | C119: BAROSSA/MID NORTH & YORKE PENINSULA/RIVE | D119: Rural Short | E119: 1431.5 | F119: 10.05044332 | G119: 9.75386 | H119: 4.97 | I119: 0.07085992095 | J119: 2.031201092 | K119: 3 | L119: 2.546280126 | M119: 2.546280126 | N119: 0.5518686692 | O119: 0.5518686692 | P119: 4 | Q119: 72.9891722 | R119: 72.9891722 | S119: 0.2850157178 | T119: 0.2850157178
B120: BM44 | C120: BAROSSA/MID NORTH & YORKE PENINSULA/RIVE | D120: Rural Short | E120: 991.5 | F120: 47.06488 | G120: 5.13698 | H120: 3.39 | I120: 0.8029819026 | J120: 0.0606731998 | K120: 7 | L120: 41.65910237 | M120: 41.65910237 | N120: 0.2259203227 | O120: 0.2259203227 | P120: 4 | Q120: 3.147755925 | R120: 3.147755925 | S120: 0.0262228946 | T120: 0.0262228946
B121: BM51 | C121: BAROSSA/MID NORTH & YORKE PENINSULA/RIVE | D121: Rural Short | E121: 863 | F121: 6.00384 | G121: 6.65267 | H121: 3.72 | I121: 0.001924590446 | J121: 2.807783057 | K121: 1 | L121: 0.1147161066 | M121: 0.1147161066 | N121: 0.001158748552 | O121: 0.001158748552 | P121: 4 | Q121: 167.3592121 | R121: 167.3592121 | S121: 0.6454229432 | T121: 0.6454229432
B122: BM52 | C122: BAROSSA/MID NORTH & YORKE PENINSULA/RIVE | D122: Urban | E122: 1277 | F122: 7.9359 | G122: 5.59492 | H122: 4.93 | I122: 0.004180992338 | J122: 0.7315003538 | K122: 1 | L122: 0.1511354738 | M122: 0.1511354738 | N122: 0.0007830853563 | O122: 0.0007830853563 | P122: 5 | Q122: 26.44244323 | R122: 26.44244323 | S122: 0.1190289742 | T122: 0.1190289742
B123: BM53 | C123: BAROSSA/MID NORTH & YORKE PENINSULA/RIVE | D123: Rural Short | E123: 1007 | F123: 28.06955 | G123: 6.76774 | H123: 5.39 | I123: 1.294931824 | J123: 0.1826611296 | K123: 4 | L123: 66.14763216 | M123: 66.14763216 | N123: 1.016550804 | O123: 1.016550804 | P123: 4 | Q123: 9.330685204 | R123: 9.330685204 | S123: 0.0685203575 | T123: 0.0685203575
B124: BM54 | C124: BAROSSA/MID NORTH & YORKE PENINSULA/RIVE | D124: Rural Short | E124: 274 | F124: 33.4656 | G124: 3.14338 | H124: 1.15 | I124: 0.3283273539 | J124: 0.3800774525 | K124: 2 | L124: 61.63868613 | M124: 61.63868613 | N124: 0.9598540146 | O124: 0.9598540146 | P124: 5 | Q124: 71.3540146 | R124: 71.3540146 | S124: 0.2554744526 | T124: 0.2554744526
B125: BM55 | C125: BAROSSA/MID NORTH & YORKE PENINSULA/RIVE | D125: Rural Short | E125: 597 | F125: 33.56402 | G125: 1.48427 | H125: 2.48 | I125: 1.845507294 | J125: 0.1963082254 | K125: 11 | L125: 159.015077 | M125: 159.015077 | N125: 1.91903965 | O125: 1.91903965 | P125: 4 | Q125: 16.91457286 | R125: 16.91457286 | S125: 0.07537688442 | T125: 0.07537688442
B126: BM56 | C126: BAROSSA/MID NORTH & YORKE PENINSULA/RIVE | D126: Rural Short | E126: 817 | F126: 81.55917 | G126: 0.5402 | H126: 2.76 | I126: 0.7974219746 | J126: 0.3954936164 | K126: 6 | L126: 50.20685435 | M126: 50.20685435 | N126: 1.012239902 | O126: 1.012239902 | P126: 11 | Q126: 24.90085679 | R126: 24.90085679 | S126: 0.1370869033 | T126: 0.1370869033
B127: BM57 | C127: BAROSSA/MID NORTH & YORKE PENINSULA/RIVE | D127: Rural Short | E127: 97 | F127: 16.59567 | G127: 0.01188 | H127: 1.6 | I127: 0 | J127: 0.01259731928 | L127: 0 | M127: 0 | N127: 0 | O127: 0 | P127: 1 | Q127: 6.680412371 | R127: 6.680412371 | S127: 0.03092783505 | T127: 0.03092783505
B128: BT01 | C128: SOUTH EAST | D128: Rural Long | E128: 763.5 | F128: 24.67100517 | G128: 0.8347 | H128: 2.44 | I128: 3.60671892 | J128: 0.01787692942 | K128: 5 | L128: 268.2108691 | M128: 268.2108691 | N128: 2.8417376 | O128: 2.8417376 | P128: 2 | Q128: 1.32940406 | R128: 1.32940406 | S128: 0.01440733464 | T128: 0.01440733464
B129: BT02 | C129: SOUTH EAST | D129: Rural Long | E129: 391 | F129: 191.1743254 | G129: 7.80132 | H129: 2.61 | I129: 3.796995356 | J129: 0.9951901674 | K129: 24 | L129: 551.3614848 | M129: 551.3614848 | N129: 3.956521886 | O129: 3.956521886 | P129: 10 | Q129: 144.511509 | R129: 144.511509 | S129: 0.5115089514 | T129: 0.5115089514
B130: BT03 | C130: SOUTH EAST | D130: Rural Long | E130: 363.5 | F130: 100.141294 | G130: 2.562375601 | H130: 3.14 | I130: 2.982558778 | J130: 0.005495174363 | K130: 8 | L130: 465.8624569 | M130: 465.8624569 | N130: 5.117835928 | O130: 5.117835928 | P130: 2 | Q130: 0.8583218707 | R130: 0.8583218707 | S130: 0.008253094911 | T130: 0.008253094911
B131: BT04 | C131: SOUTH EAST | D131: Rural Long | E131: 1007 | F131: 120.0740628 | G131: 2.82074 | H131: 3.39 | I131: 4.942187218 | J131: 0.11712471 | K131: 9 | L131: 278.652433 | M131: 278.652433 | N131: 2.24428997 | O131: 2.24428997 | P131: 3 | Q131: 6.603773585 | R131: 6.603773585 | S131: 0.02482621648 | T131: 0.02482621648
B132: BT06 | C132: SOUTH EAST | D132: Rural Long | E132: 929.5 | F132: 111.436932 | G132: 3.32213 | H132: 4.27 | I132: 3.465728975 | J132: 0.1456925716 | K132: 3 | L132: 211.6987628 | M132: 211.6987628 | N132: 1.963421194 | O132: 1.963421194 | P132: 4 | Q132: 8.899408284 | R132: 8.899408284 | S132: 0.03335126412 | T132: 0.03335126412
B133: BT07 | C133: SOUTH EAST | D133: Rural Long | E133: 74 | F133: 63.35470715 | G133: 0.07383 | H133: 0.07 | I133: 0.1509059421 | J133: 0.8953611665 | K133: 2 | L133: 115.7837838 | M133: 115.7837838 | N133: 1.837837838 | O133: 1.837837838 | P133: 7 | Q133: 686.972973 | R133: 686.972973 | S133: 3.77027027 | T133: 3.77027027
B134: BT08 | C134: SOUTH EAST | D134: Rural Long | E134: 65 | F134: 50.95258446 | G134: 0.09547 | H134: 0.13 | I134: 1.115203366 | J134: 0.00553039984 | K134: 4 | L134: 974.1230769 | M134: 974.1230769 | N134: 3.753846154 | O134: 3.753846154 | P134: 1 | Q134: 4.830769231 | R134: 4.830769231 | S134: 0.03076923077 | T134: 0.03076923077
B135: BT10 | C135: SOUTH EAST | D135: Rural Long | E135: 38 | F135: 24.58626391 | G135: 0.75027 | H135: 0.06 | I135: 0.2226250129 | J135: 0.02624298013 | K135: 4 | L135: 332.6315793 | M135: 332.6315793 | N135: 3.815789649 | O135: 3.815789649 | P135: 1 | Q135: 39.21052632 | R135: 39.21052632 | S135: 0.2631578947 | T135: 0.2631578947
B136: BT11 | C136: SOUTH EAST | D136: Rural Long | E136: 55.5 | F136: 42.13603888 | G136: 0 | H136: 0.12 | I136: 0.8873297578 | J136: 0 | K136: 3 | L136: 907.7477477 | M136: 907.7477477 | N136: 2.972972973 | O136: 2.972972973 | Q136: 0 | R136: 0 | S136: 0 | T136: 0
B137: BT12 | C137: SOUTH EAST | D137: Rural Long | E137: 71 | F137: 59.81247824 | G137: 0 | H137: 0.09 | I137: 0 | J137: 0.06238431921 | L137: 0 | M137: 0 | N137: 0 | O137: 0 | P137: 1 | Q137: 49.88732394 | R137: 49.88732394 | S137: 1 | T137: 1
B138: BT13 | C138: SOUTH EAST | D138: Rural Long | E138: 83.5 | F138: 89.47139256 | G138: 0 | H138: 0.15 | I138: 1.65228621 | J138: 0 | K138: 4 | L138: 1123.497006 | M138: 1123.497006 | N138: 2.826347305 | O138: 2.826347305 | Q138: 0 | R138: 0 | S138: 0 | T138: 0
B139: BT14 | C139: SOUTH EAST | D139: Rural Long | E139: 95 | F139: 105.0132355 | G139: 0.05255 | H139: 0.12 | I139: 0.7545297107 | J139: 0.04716691329 | K139: 3 | L139: 450.9473684 | M139: 450.9473684 | N139: 2.842105263 | O139: 2.842105263 | P139: 2 | Q139: 28.18947368 | R139: 28.18947368 | S139: 0.1368421053 | T139: 0.1368421053
B140: BT15 | C140: SOUTH EAST | D140: Rural Long | E140: 259.5 | F140: 122.7505713 | G140: 0.24428 | H140: 1.94 | I140: 1.795988542 | J140: 0.002501008845 | K140: 5 | L140: 392.9518304 | M140: 392.9518304 | N140: 3.206165703 | O140: 3.206165703 | P140: 1 | Q140: 0.5472061657 | R140: 0.5472061657 | S140: 0.007707129094 | T140: 0.007707129094
B141: BT18 | C141: SOUTH EAST | D141: Rural Long | E141: 70.5 | F141: 112.110759 | G141: 0.1165 | H141: 0.04 | I141: 0.7808783672 | J141: 0.2994165518 | K141: 3 | L141: 628.8794326 | M141: 628.8794326 | N141: 2.893617021 | O141: 2.893617021 | P141: 1 | Q141: 241.1347518 | R141: 241.1347518 | S141: 0.9645390071 | T141: 0.9645390071
B142: BT19 | C142: SOUTH EAST | D142: Rural Short | E142: 4 | F142: 3.74262 | G142: 0 | H142: 0.63 | I142: 0.008553735314 | J142: 0 | K142: 1 | L142: 110 | M142: 110 | N142: 1 | O142: 1 | Q142: 0 | R142: 0 | S142: 0 | T142: 0
B143: BT20 | C143: SOUTH EAST | D143: Rural Long | E143: 66 | F143: 95.75457051 | G143: 0.15045 | H143: 0.16 | I143: 0.5582357418 | J143: 0.007326899151 | K143: 3 | L143: 480.2272727 | M143: 480.2272727 | N143: 2.045454545 | O143: 2.045454545 | P143: 1 | Q143: 6.303030303 | R143: 6.303030303 | S143: 0.0303030303 | T143: 0.0303030303
B144: BT22 | C144: SOUTH EAST | D144: Rural Long | E144: 76 | F144: 51.21605288 | G144: 0.27622 | H144: 0.57 | I144: 0.4014295323 | J144: 0.08302644855 | K144: 3 | L144: 299.8947368 | M144: 299.8947368 | N144: 2.921052632 | O144: 2.921052632 | P144: 2 | Q144: 62.02631579 | R144: 62.02631579 | S144: 1.184210526 | T144: 1.184210526
B145: BT23 | C145: SOUTH EAST | D145: Rural Long | E145: 93.5 | F145: 162.0602922 | G145: 0 | H145: 0.16 | I145: 0.9854620599 | J145: 0 | K145: 5 | L145: 598.4135442 | M145: 598.4135442 | N145: 2.552584652 | O145: 2.552584652 | Q145: 0 | R145: 0 | S145: 0 | T145: 0
B146: BT25 | C146: SOUTH EAST | D146: Rural Long | E146: 14 | F146: 9.51088 | G146: 0 | H146: 0.03 | I146: 0.2838116657 | J146: 0 | K146: 3 | L146: 1151 | M146: 1151 | N146: 3 | O146: 3 | Q146: 0 | R146: 0 | S146: 0 | T146: 0
B147: BT26 | C147: SOUTH EAST | D147: Rural Long | E147: 147 | F147: 91.25800512 | G147: 2.07879 | H147: 2.46 | I147: 1.359034116 | J147: 0.004491248278 | K147: 9 | L147: 524.9115646 | M147: 524.9115646 | N147: 2.795918367 | O147: 2.795918367 | P147: 1 | Q147: 1.734693878 | R147: 1.734693878 | S147: 0.02040816327 | T147: 0.02040816327
B148: BT27 | C148: SOUTH EAST | D148: Rural Long | E148: 61.5 | F148: 47.51623463 | G148: 0 | H148: 0.09 | I148: 0.8624429305 | J148: 0.3106887044 | K148: 6 | L148: 796.2113563 | M148: 796.2113563 | N148: 3.365853608 | O148: 3.365853608 | P148: 1 | Q148: 286.8292683 | R148: 286.8292683 | S148: 1.024390244 | T148: 1.024390244
B149: BT28 | C149: SOUTH EAST | D149: Rural Long | E149: 39 | F149: 30.13450221 | G149: 0 | H149: 0.06 | I149: 0.07925732255 | J149: 0 | K149: 2 | L149: 115.3846154 | M149: 115.3846154 | N149: 1.846153846 | O149: 1.846153846 | Q149: 0 | R149: 0 | S149: 0 | T149: 0
B150: BT29 | C150: SOUTH EAST | D150: Rural Long | E150: 56 | F150: 70.29118371 | G150: 0.11515 | H150: 0.09 | I150: 0.5204564181 | J150: 0.07133159029 | K150: 4 | L150: 527.6785714 | M150: 527.6785714 | N150: 2.946428571 | O150: 2.946428571 | P150: 2 | Q150: 72.32142857 | R150: 72.32142857 | S150: 0.375 | T150: 0.375
B151: BT30 | C151: SOUTH EAST | D151: Rural Long | E151: 33 | F151: 30.16670806 | G151: 0.08003 | H151: 0.07 | I151: 0.6319450518 | J151: 0 | K151: 3 | L151: 1087.272727 | M151: 1087.272727 | N151: 2.727272727 | O151: 2.727272727 | Q151: 0 | R151: 0 | S151: 0 | T151: 0
B152: BT31 | C152: SOUTH EAST | D152: Rural Long | E152: 62 | F152: 53.0575064 | G152: 0 | H152: 0.09 | I152: 0.1331523019 | J152: 0.05563864043 | K152: 2 | L152: 121.9354839 | M152: 121.9354839 | N152: 1.935483871 | O152: 1.935483871 | P152: 1 | Q152: 50.9516129 | R152: 50.9516129 | S152: 0.2096774194 | T152: 0.2096774194
B153: BT33 | C153: SOUTH EAST | D153: Rural Long | E153: 67.5 | F153: 52.47671417 | G153: 0.122397815 | H153: 0.11 | I153: 0.3975195044 | J153: 0 | K153: 4 | L153: 334.3703704 | M153: 334.3703704 | N153: 3.17037037 | O153: 3.17037037 | Q153: 0 | R153: 0 | S153: 0 | T153: 0
B154: BT34 | C154: SOUTH EAST | D154: Rural Long | E154: 60.5 | F154: 50.60888879 | G154: 0.21587 | H154: 0.09 | I154: 1.297336694 | J154: 0.2106131251 | K154: 3 | L154: 1217.504132 | M154: 1217.504132 | N154: 2.280991736 | O154: 2.280991736 | P154: 2 | Q154: 197.6528926 | R154: 197.6528926 | S154: 0.7768595041 | T154: 0.7768595041
B155: BT37 | C155: SOUTH EAST | D155: Rural Long | E155: 63 | F155: 66.77853423 | G155: 0 | H155: 0.09 | I155: 0.7145664074 | J155: 0.07355079532 | K155: 5 | L155: 643.984127 | M155: 643.984127 | N155: 4.571428571 | O155: 4.571428571 | P155: 1 | Q155: 66.28571429 | R155: 66.28571429 | S155: 0.9206349206 | T155: 0.9206349206
B156: BU02 | C156: BAROSSA/MID NORTH & YORKE PENINSULA/RIVE | D156: Rural Long | E156: 112.5 | F156: 109.61775 | G156: 0.23786 | H156: 0.11 | I156: 5.641888474 | J156: 0.06661137642 | K156: 16 | L156: 2847.377778 | M156: 2847.377778 | N156: 10.55111111 | O156: 10.55111111 | P156: 4 | Q156: 33.61777778 | R156: 33.61777778 | S156: 1.191111111 | T156: 1.191111111
B157: BU03 | C157: BAROSSA/MID NORTH & YORKE PENINSULA/RIVE | D157: Rural Long | E157: 51 | F157: 44.25772 | G157: 0.4941 | H157: 0.12 | I157: 0.4396139491 | J157: 0 | K157: 3 | L157: 489.4117647 | M157: 489.4117647 | N157: 2.823529412 | O157: 2.823529412 | Q157: 0 | R157: 0 | S157: 0 | T157: 0
B158: BU04 | C158: BAROSSA/MID NORTH & YORKE PENINSULA/RIVE | D158: Rural Long | E158: 130 | F158: 38.34473 | G158: 0 | H158: 0.12 | I158: 1.233930836 | J158: 0.9046606923 | K158: 4 | L158: 538.9153846 | M158: 538.9153846 | N158: 3.530769231 | O158: 3.530769231 | P158: 3 | Q158: 395.1076923 | R158: 395.1076923 | S158: 1.907692308 | T158: 1.907692308
B159: BU05 | C159: BAROSSA/MID NORTH & YORKE PENINSULA/RIVE | D159: Rural Long | E159: 97.5 | F159: 80.38361 | G159: 0.6613 | H159: 0.1 | I159: 0.8180412422 | J159: 0 | K159: 4 | L159: 476.369229 | M159: 476.369229 | N159: 2.748717938 | O159: 2.748717938 | Q159: 0 | R159: 0 | S159: 0 | T159: 0
B160: BU06 | C160: BAROSSA/MID NORTH & YORKE PENINSULA/RIVE | D160: Rural Long | E160: 48 | F160: 33.85143 | G160: 0 | H160: 0.89 | I160: 0.4772699836 | J160: 0.1700862142 | K160: 5 | L160: 564.5416667 | M160: 564.5416667 | N160: 3.604166667 | O160: 3.604166667 | P160: 1 | Q160: 201.1875 | R160: 201.1875 | S160: 0.7708333333 | T160: 0.7708333333
B161: BU08 | C161: BAROSSA/MID NORTH & YORKE PENINSULA/RIVE | D161: Rural Long | E161: 88 | F161: 161.56432 | G161: 0 | H161: 0.11 | I161: 0.8637991393 | J161: 0.3947014663 | K161: 5 | L161: 557.3181818 | M161: 557.3181818 | N161: 4.261363636 | O161: 4.261363636 | P161: 3 | Q161: 254.6590909 | R161: 254.6590909 | S161: 1.068181818 | T161: 1.068181818
B162: BU09 | C162: BAROSSA/MID NORTH & YORKE PENINSULA/RIVE | D162: Rural Long | E162: 106 | F162: 73.02673 | G162: 0.70821 | H162: 0.12 | I162: 0.3990870381 | J162: 0.0417069644 | K162: 2 | L162: 213.7641509 | M162: 213.7641509 | N162: 1.933962264 | O162: 1.933962264 | P162: 2 | Q162: 22.33962264 | R162: 22.33962264 | S162: 0.1320754717 | T162: 0.1320754717
B163: BU10 | C163: BAROSSA/MID NORTH & YORKE PENINSULA/RIVE | D163: Rural Long | E163: 55 | F163: 45.02829 | G163: 0 | H163: 0.06 | I163: 0.5325035311 | J163: 0.2364862377 | K163: 5 | L163: 549.7090909 | M163: 549.7090909 | N163: 3.581818182 | O163: 3.581818182 | P163: 4 | Q163: 244.1272727 | R163: 244.1272727 | S163: 1.054545455 | T163: 1.054545455
B164: BU11 | C164: BAROSSA/MID NORTH & YORKE PENINSULA/RIVE | D164: Rural Short | E164: 25 | F164: 74.76785 | G164: 0.40931 | H164: 0.07 | I164: 0.1493598828 | J164: 0.3303297056 | K164: 4 | L164: 307.32 | M164: 294.84 | N164: 2.96 | O164: 1.04 | P164: 5 | Q164: 679.68 | R164: 679.68 | S164: 4.12 | T164: 4.12
B165: BU13 | C165: BAROSSA/MID NORTH & YORKE PENINSULA/RIVE | D165: Rural Long | E165: 83 | F165: 78.72242 | G165: 0 | H165: 0.09 | I165: 0.6699885666 | J165: 0.005125306858 | K165: 4 | L165: 458.313253 | M165: 458.313253 | N165: 2.987951807 | O165: 2.987951807 | P165: 1 | Q165: 3.506024096 | R165: 3.506024096 | S165: 0.03614457831 | T165: 0.03614457831
B166: CBD103A | C166: MAJOR METROPOLITAN AREAS | D166: Urban | E166: 1019 | F166: 1.787270212 | G166: 3.661504327 | H166: 4.88 | I166: 0.00823200564 | J166: 0 | K166: 2 | L166: 0.3729146222 | M166: 0.3729146222 | N166: 0.001962708538 | O166: 0.001962708538 | Q166: 0 | R166: 0 | S166: 0 | T166: 0
B167: CBD103B | C167: MAJOR METROPOLITAN AREAS | D167: Urban | E167: 297 | F167: 0.134711208 | G167: 3.219089457 | H167: 3.73 | I167: 0.8873885449 | J167: 0.2613661791 | K167: 1 | L167: 137.9225589 | M167: 137.9225589 | N167: 0.9696969697 | O167: 0.9696969697 | P167: 3 | Q167: 40.62289562 | R167: 40.62289562 | S167: 0.09764309764 | T167: 0.09764309764
B168: CBD103C | C168: MAJOR METROPOLITAN AREAS | D168: Urban | E168: 2071 | F168: 5.713681967 | G168: 3.86781 | H168: 6.59 | I168: 3.04335786 | J168: 2.397268358 | K168: 12 | L168: 67.83453641 | M168: 67.83453641 | N168: 1.057621077 | O168: 1.057621077 | P168: 6 | Q168: 53.43360695 | R168: 53.43360695 | S168: 0.2438435538 | T168: 0.2438435538
B169: CBD103E | C169: MAJOR METROPOLITAN AREAS | D169: Urban | E169: 830 | F169: 0.668080466 | G169: 4.90781426 | H169: 3.14 | I169: 1.481241099 | J169: 0.07556114651 | K169: 1 | L169: 82.38072289 | M169: 82.38072289 | N169: 0.9927710843 | O169: 0.9927710843 | P169: 1 | Q169: 4.202409639 | R169: 4.202409639 | S169: 0.06265060241 | T169: 0.06265060241
B170: CBD155B | C170: ADELAIDE BUSINESS AREA | D170: CBD | E170: 39.5 | F170: 0 | G170: 0.13878 | H170: 0.93 | I170: 0 | J170: 0.4805308833 | L170: 0 | M170: 0 | N170: 0 | O170: 0 | P170: 1 | Q170: 69.03797468 | R170: 69.03797468 | S170: 0.2278481013 | T170: 0.2278481013
B171: CBD27B | C171: ADELAIDE BUSINESS AREA | D171: CBD | E171: 362 | F171: 0 | G171: 3.44251 | H171: 3.6 | I171: 0.06555096757 | J171: 0 | K171: 2 | L171: 1.027624309 | M171: 1.027624309 | N171: 0.8867403315 | O171: 0.8867403315 | Q171: 0 | R171: 0 | S171: 0 | T171: 0
B172: CBD27C | C172: ADELAIDE BUSINESS AREA | D172: CBD | E172: 460.5 | F172: 0 | G172: 3.20159 | H172: 2.06 | I172: 0.108194339 | J172: 0 | K172: 2 | L172: 1.333333333 | M172: 1.333333333 | N172: 0.008686210641 | O172: 0.008686210641 | Q172: 0 | R172: 0 | S172: 0 | T172: 0
B173: CBD27F | C173: ADELAIDE BUSINESS AREA | D173: CBD | E173: 103 | F173: 0 | G173: 4.40076325 | H173: 1.54 | I173: 0.6381815847 | J173: 0 | K173: 4 | L173: 35.16178198 | M173: 35.16178198 | N173: 0.2459544626 | O173: 0.2459544626 | Q173: 0 | R173: 0 | S173: 0 | T173: 0
B174: CBD27G | C174: ADELAIDE BUSINESS AREA | D174: CBD | E174: 31 | F174: 0 | G174: 2.49682 | H174: 1.89 | I174: 0 | J174: 0.4884604358 | L174: 0 | M174: 0 | N174: 0 | O174: 0 | P174: 1 | Q174: 89.41935484 | R174: 89.41935484 | S174: 0.6774193548 | T174: 0.6774193548
B175: CBD27M | C175: ADELAIDE BUSINESS AREA | D175: CBD | E175: 460.5 | F175: 0 | G175: 2.85377 | H175: 4.63 | I175: 1.862563783 | J175: 0 | K175: 2 | L175: 22.95331162 | M175: 22.95331162 | N175: 0.6210640608 | O175: 0.6210640608 | Q175: 0 | R175: 0 | S175: 0 | T175: 0
B176: CBD27S | C176: ADELAIDE BUSINESS AREA | D176: CBD | E176: 29 | F176: 0 | G176: 3.19403 | H176: 0.29 | I176: 0 | J176: 0.02026441202 | L176: 0 | M176: 0 | N176: 0 | O176: 0 | P176: 1 | Q176: 3.965517241 | R176: 3.965517241 | S176: 0.03448275862 | T176: 0.03448275862
B177: CBD353A | C177: ADELAIDE BUSINESS AREA | D177: CBD | E177: 29.5 | F177: 0 | G177: 4.4982 | H177: 0.93 | I177: 0 | J177: 0.09497841807 | L177: 0 | M177: 0 | N177: 0 | O177: 0 | P177: 2 | Q177: 18.27118644 | R177: 18.27118644 | S177: 0.06779661017 | T177: 0.06779661017
B178: CBD353B | C178: MAJOR METROPOLITAN AREAS | D178: Urban | E178: 249.5 | F178: 0.03628 | G178: 2.10476 | H178: 2.76 | I178: 0.1752983938 | J178: 0 | K178: 1 | L178: 32.43286573 | M178: 32.43286573 | N178: 0.4769539078 | O178: 0.4769539078 | Q178: 0 | R178: 0 | S178: 0 | T178: 0
B179: CBD353B | C179: MAJOR METROPOLITAN AREAS | D179: Urban | E179: 249.5 | F179: 0.03628 | G179: 2.10476 | H179: 2.76 | I179: 0 | J179: 0.004874213866 | L179: 0 | M179: 0 | N179: 0 | O179: 0 | P179: 1 | Q179: 0.9018036072 | R179: 0.9018036072 | S179: 0.004008016032 | T179: 0.004008016032
B180: CBD353C | C180: MAJOR METROPOLITAN AREAS | D180: Urban | E180: 135.5 | F180: 0 | G180: 1.83481 | H180: 3.07 | I180: 0.1965282938 | J180: 0 | K180: 2 | L180: 66.95202637 | M180: 66.95202637 | N180: 0.6273062581 | O180: 0.6273062581 | Q180: 0 | R180: 0 | S180: 0 | T180: 0
B181: CBD353D | C181: ADELAIDE BUSINESS AREA | D181: CBD | E181: 20 | F181: 0 | G181: 2.04123 | H181: 2.8 | I181: 0 | J181: 0.6713687808 | L181: 0 | M181: 0 | N181: 0 | O181: 0 | P181: 1 | Q181: 190.5 | R181: 190.5 | S181: 0.75 | T181: 0.75
B182: CBD353E | C182: ADELAIDE BUSINESS AREA | D182: CBD | E182: 26 | F182: 0 | G182: 3.78224 | H182: 1.37 | I182: 0 | J182: 0.05057292391 | L182: 0 | M182: 0 | N182: 0 | O182: 0 | P182: 1 | Q182: 11.03846154 | R182: 11.03846154 | S182: 0.03846153846 | T182: 0.03846153846
B183: CBD353F | C183: ADELAIDE BUSINESS AREA | D183: CBD | E183: 165.5 | F183: 0 | G183: 1.75589 | H183: 3.03 | I183: 0 | J183: 0.7656423497 | L183: 0 | M183: 0 | N183: 0 | O183: 0 | P183: 1 | Q183: 26.25377644 | R183: 26.25377644 | S183: 0.0664652568 | T183: 0.0664652568
B184: CBD353L | C184: ADELAIDE BUSINESS AREA | D184: CBD | E184: 15 | F184: 0.23733 | G184: 2.23013 | H184: 1.51 | I184: 0.1334514716 | J184: 0 | K184: 1 | L184: 50.48890381 | M184: 50.48890381 | N184: 0.711111323 | O184: 0.711111323 | Q184: 0 | R184: 0 | S184: 0 | T184: 0
B185: CBD353L | C185: MAJOR METROPOLITAN AREAS | D185: Urban | E185: 15 | F185: 0.23733 | G185: 2.23013 | H185: 1.51 | I185: 0.3380034375 | J185: 0 | K185: 1 | L185: 1040.178314 | M185: 1040.178314 | N185: 5.511113675 | O185: 5.511113675 | Q185: 0 | R185: 0 | S185: 0 | T185: 0
B186: CBD353L | C186: ADELAIDE BUSINESS AREA | D186: CBD | E186: 15 | F186: 0.23733 | G186: 2.23013 | H186: 1.51 | I186: 0 | J186: 0.03788563986 | L186: 0 | M186: 0 | N186: 0 | O186: 0 | P186: 1 | Q186: 14.33333333 | R186: 14.33333333 | S186: 0.06666666667 | T186: 0.06666666667
B187: CBD353M | C187: ADELAIDE BUSINESS AREA | D187: CBD | E187: 75.5 | F187: 0 | G187: 2.34615 | H187: 3.32 | I187: 0 | J187: 0.1000885741 | L187: 0 | M187: 0 | N187: 0 | O187: 0 | P187: 2 | Q187: 7.523178808 | R187: 7.523178808 | S187: 0.05298013245 | T187: 0.05298013245
B188: CBD353M | C188: MAJOR METROPOLITAN AREAS | D188: Urban | E188: 75.5 | F188: 0 | G188: 2.34615 | H188: 3.32 | I188: 0 | J188: 0.1234800846 | L188: 0 | M188: 0 | N188: 0 | O188: 0 | P188: 2 | Q188: 75.49668874 | R188: 75.49668874 | S188: 0.3973509934 | T188: 0.3973509934
B189: CBD353N | C189: ADELAIDE BUSINESS AREA | D189: CBD | E189: 35.5 | F189: 0 | G189: 1.40281 | H189: 2.32 | I189: 0 | J189: 0.03030851189 | L189: 0 | M189: 0 | N189: 0 | O189: 0 | P189: 1 | Q189: 4.845070423 | R189: 4.845070423 | S189: 0.02816901408 | T189: 0.02816901408
B190: CBD353P | C190: ADELAIDE BUSINESS AREA | D190: CBD | E190: 60.5 | F190: 0 | G190: 3.73826 | H190: 2 | I190: 0.4910443806 | J190: 0 | K190: 1 | L190: 46.06055898 | M190: 46.06055898 | N190: 0.3030299983 | O190: 0.3030299983 | Q190: 0 | R190: 0 | S190: 0 | T190: 0
B191: CBD353P | C191: ADELAIDE BUSINESS AREA | D191: CBD | E191: 60.5 | F191: 0 | G191: 3.73826 | H191: 2 | I191: 0 | J191: 0.06643202896 | L191: 0 | M191: 0 | N191: 0 | O191: 0 | P191: 4 | Q191: 6.231404959 | R191: 6.231404959 | S191: 0.09917355372 | T191: 0.09917355372
B192: CBD353P | C192: MAJOR METROPOLITAN AREAS | D192: Urban | E192: 60.5 | F192: 0 | G192: 3.73826 | H192: 2 | I192: 0 | J192: 0.0008881900823 | L192: 0 | M192: 0 | N192: 0 | O192: 0 | P192: 4 | Q192: 0.6776859504 | R192: 0.6776859504 | S192: 0.6776859504 | T192: 0.6776859504
B193: CBD353Q | C193: ADELAIDE BUSINESS AREA | D193: CBD | E193: 8 | F193: 0 | G193: 1.99659 | H193: 0 | I193: 0 | J193: 0.01973577518 | L193: 0 | M193: 0 | N193: 0 | O193: 0 | P193: 1 | Q193: 14 | R193: 14 | S193: 0.125 | T193: 0.125
B194: CBD353R | C194: ADELAIDE BUSINESS AREA | D194: CBD | E194: 7.5 | F194: 0.27471 | G194: 2.891403505 | H194: 3.43 | I194: 0 | J194: 0.3954203528 | L194: 0 | M194: 0 | N194: 0 | O194: 0 | P194: 2 | Q194: 299.2 | R194: 299.2 | S194: 0.5333333333 | T194: 0.5333333333
B195: CBD353R | C195: MAJOR METROPOLITAN AREAS | D195: Urban | E195: 484 | F195: 0.27471 | G195: 2.891403505 | H195: 3.43 | I195: 0 | J195: 1.749474504 | L195: 0 | M195: 0 | N195: 0 | O195: 0 | P195: 2 | Q195: 166.8553719 | R195: 166.8553719 | S195: 0.3078512397 | T195: 0.3078512397
B196: CBD366A | C196: ADELAIDE BUSINESS AREA | D196: CBD | E196: 424 | F196: 0 | G196: 3.07321 | H196: 1.68 | I196: 0 | J196: 0.06185050973 | L196: 0 | M196: 0 | N196: 0 | O196: 0 | P196: 1 | Q196: 0.8278301887 | R196: 0.8278301887 | S196: 0.002358490566 | T196: 0.002358490566
B197: CBD366B | C197: ADELAIDE BUSINESS AREA | D197: CBD | E197: 14.5 | F197: 0 | G197: 1.86966 | H197: 0.63 | I197: 0.3859048897 | J197: 0 | K197: 1 | L197: 151.0344828 | M197: 151.0344828 | N197: 1.034482759 | O197: 1.034482759 | Q197: 0 | R197: 0 | S197: 0 | T197: 0
B198: CBD366E | C198: MAJOR METROPOLITAN AREAS | D198: Urban | E198: 768.5 | F198: 0.564512335 | G198: 3.96488 | H198: 4.57 | I198: 0.8383790437 | J198: 0 | K198: 4 | L198: 50.35869643 | M198: 50.35869643 | N198: 1.122099328 | O198: 1.122099328 | Q198: 0 | R198: 0 | S198: 0 | T198: 0
B199: CBD366E | C199: MAJOR METROPOLITAN AREAS | D199: Urban | E199: 768.5 | F199: 0.564512335 | G199: 3.96488 | H199: 4.57 | I199: 0 | J199: 0.371220128 | L199: 0 | M199: 0 | N199: 0 | O199: 0 | P199: 1 | Q199: 22.29798308 | R199: 22.29798308 | S199: 0.08197787899 | T199: 0.08197787899
B200: CBD366H | C200: ADELAIDE BUSINESS AREA | D200: CBD | E200: 99.5 | F200: 0 | G200: 2.73641 | H200: 2 | I200: 0 | J200: 0.07154218504 | L200: 0 | M200: 0 | N200: 0 | O200: 0 | P200: 2 | Q200: 4.08040201 | R200: 4.08040201 | S200: 0.1407035176 | T200: 0.1407035176
B201: CBD366J | C201: ADELAIDE BUSINESS AREA | D201: CBD | E201: 195 | F201: 0 | G201: 5.704166476 | H201: 1.94 | I201: 0.006872278858 | J201: 0 | K201: 1 | L201: 0.2 | M201: 0.2 | N201: 0.005128205128 | O201: 0.005128205128 | Q201: 0 | R201: 0 | S201: 0 | T201: 0
B202: CBD366J | C202: ADELAIDE BUSINESS AREA | D202: CBD | E202: 195 | F202: 0 | G202: 5.704166476 | H202: 1.94 | I202: 0 | J202: 0.4921608936 | L202: 0 | M202: 0 | N202: 0 | O202: 0 | P202: 2 | Q202: 14.32307692 | R202: 14.32307692 | S202: 0.09743589744 | T202: 0.09743589744
B203: CBD366J | C203: MAJOR METROPOLITAN AREAS | D203: Urban | E203: 195 | F203: 0 | G203: 5.704166476 | H203: 1.94 | I203: 0 | J203: 0.005719077603 | L203: 0 | M203: 0 | N203: 0 | O203: 0 | P203: 2 | Q203: 1.353846154 | R203: 1.353846154 | S203: 0.005128205128 | T203: 0.005128205128
B204: CBD366L | C204: ADELAIDE BUSINESS AREA | D204: CBD | E204: 89 | F204: 0 | G204: 2.65157 | H204: 2.31 | I204: 1.358596667 | J204: 0 | K204: 1 | L204: 86.62921348 | M204: 86.62921348 | N204: 0.9325842697 | O204: 0.9325842697 | Q204: 0 | R204: 0 | S204: 0 | T204: 0
... 1311 more rows

Sheet 3.6.9 Network-reliability
B1: =IF(dms_DataQuality="backcast",INDEX(dms_Worksheet_List,MATCH(dms_Model,dms_Model_List))&" BACKCAST",INDEX(dms_Worksheet_List,MATCH(dms_Model,dms_Model_List))) -> ANNUAL REPORTING STATEMENT
B2: =INDEX(dms_TradingNameFull_List,MATCH(dms_TradingName,dms_TradingName_List)) -> SA Power Networks
B3: =CONCATENATE("Annual Reporting RIN Response ",IF(SUM(dms_SingleYear_Model)>0,CONCATENATE(CRY),CONCATENATE(FRCP_y1," to ",dms_MultiYear_FinalYear_Result))) -> Annual Reporting RIN Response 2017-18
B4: 3.6 QUALITY OF SERVICES
B7: 3.6.9 - NETWORK FEEDER RELIABILITY - PLANNED OUTAGES
C8: =CRY -> 2017-18
B9: 3.6.9.1 - PLANNED MINUTES OFF SUPPLY (SAIDI)
B10: =INDEX(dms_FeederName_1,MATCH(dms_TradingName,dms_TradingName_List)) -> CBD | C10: 11.29
B11: =INDEX(dms_FeederName_2,MATCH(dms_TradingName,dms_TradingName_List)) -> Urban | C11: 38.13
B12: =INDEX(dms_FeederName_3,MATCH(dms_TradingName,dms_TradingName_List)) -> Short rural | C12: 117.32
B13: =INDEX(dms_FeederName_4,MATCH(dms_TradingName,dms_TradingName_List)) -> Long rural | C13: 140.91
B14: =IF((INDEX(dms_FeederName_5,MATCH(dms_TradingName,dms_TradingName_List))=0),"",(INDEX(dms_FeederName_5,MATCH(dms_TradingName,dms_TradingName_List)))) -> 
C16: =CRY -> 2017-18
B17: 3.6.9.2 - PLANNED INTERRUPTIONS TO SUPPLY (SAIFI)
B18: =INDEX(dms_FeederName_1,MATCH(dms_TradingName,dms_TradingName_List)) -> CBD | C18: 0.054
B19: =INDEX(dms_FeederName_2,MATCH(dms_TradingName,dms_TradingName_List)) -> Urban | C19: 0.205
B20: =INDEX(dms_FeederName_3,MATCH(dms_TradingName,dms_TradingName_List)) -> Short rural | C20: 0.547
B21: =INDEX(dms_FeederName_4,MATCH(dms_TradingName,dms_TradingName_List)) -> Long rural | C21: 0.676
B22: =IF((INDEX(dms_FeederName_5,MATCH(dms_TradingName,dms_TradingName_List))=0),"",(INDEX(dms_FeederName_5,MATCH(dms_TradingName,dms_TradingName_List)))) -> 

Sheet 4.1 Public lighting
B1: =IF(dms_DataQuality="backcast",INDEX(dms_Worksheet_List,MATCH(dms_Model,dms_Model_List))&" BACKCAST",INDEX(dms_Worksheet_List,MATCH(dms_Model,dms_Model_List))) -> ANNUAL REPORTING STATEMENT
B2: =INDEX(dms_TradingNameFull_List,MATCH(dms_TradingName,dms_TradingName_List)) -> SA Power Networks
B3: =CONCATENATE("Annual Reporting RIN Response ",IF(SUM(dms_SingleYear_Model)>0,CONCATENATE(CRY),CONCATENATE(FRCP_y1," to ",dms_MultiYear_FinalYear_Result))) -> Annual Reporting RIN Response 2017-18
B4: 4.1 PUBLIC LIGHTING
B6: Tables 4.1.1 - 4.1.3 deliberately omitted.
B8: 4.1.4 - PUBLIC LIGHTING METRICS BY TARIFF
C9: Number of Lights | D9: Public Lighting Revenue
B10: Tariff categories | C10: 0's | D10: $0's, nominal
B51: To enter further tariff categories - please insert new rows above this row.
B52: Total | C52: =SUM(C11:C50) -> 0 | D52: =SUM(D11:D50) -> 0

Sheet 6.2 STPIS Reliability
B1: =IF(dms_DataQuality="backcast",INDEX(dms_Worksheet_List,MATCH(dms_Model,dms_Model_List))&" BACKCAST",INDEX(dms_Worksheet_List,MATCH(dms_Model,dms_Model_List))) -> ANNUAL REPORTING STATEMENT
B2: =INDEX(dms_TradingNameFull_List,MATCH(dms_TradingName,dms_TradingName_List)) -> SA Power Networks
B3: =CONCATENATE("Annual Reporting RIN Response ",IF(SUM(dms_SingleYear_Model)>0,CONCATENATE(CRY),CONCATENATE(FRCP_y1," to ",dms_MultiYear_FinalYear_Result))) -> Annual Reporting RIN Response 2017-18
B4: 6.2 RELIABILITY AND CUSTOMER SERVICE PERFORMANCE
B6: Did the MAIFI parameter of the STPIS apply during the period? NB:This flag is set from the response on worksheet 3.6.8 Network feeders | D6: =dms_MAIFI_Flag -> No
B9: 6.2.1 - UNPLANNED MINUTES OFF SUPPLY (SAIDI)
D10: =CRY -> 2017-18
B11: Total sustained minutes off supply | C11: =INDEX(dms_FeederName_1,MATCH(dms_TradingName,dms_TradingName_List)) -> CBD | D11: 42.56
C12: =INDEX(dms_FeederName_2,MATCH(dms_TradingName,dms_TradingName_List)) -> Urban | D12: 96.79
C13: =INDEX(dms_FeederName_3,MATCH(dms_TradingName,dms_TradingName_List)) -> Short rural | D13: 163.61
C14: =INDEX(dms_FeederName_4,MATCH(dms_TradingName,dms_TradingName_List)) -> Long rural | D14: 293.98
C15: =IF((INDEX(dms_FeederName_5,MATCH(dms_TradingName,dms_TradingName_List))=0),"",(INDEX(dms_FeederName_5,MATCH(dms_TradingName,dms_TradingName_List)))) -> 
C16: Whole Network | D16: 137.29
B17: Total of excluded events* *see 3.3 of STPIS | C17: =INDEX(dms_FeederName_1,MATCH(dms_TradingName,dms_TradingName_List)) -> CBD | D17: 0
C18: =INDEX(dms_FeederName_2,MATCH(dms_TradingName,dms_TradingName_List)) -> Urban | D18: 0.68
C19: =INDEX(dms_FeederName_3,MATCH(dms_TradingName,dms_TradingName_List)) -> Short rural | D19: 8.53
C20: =INDEX(dms_FeederName_4,MATCH(dms_TradingName,dms_TradingName_List)) -> Long rural | D20: 24.74
C21: =IF((INDEX(dms_FeederName_5,MATCH(dms_TradingName,dms_TradingName_List))=0),"",(INDEX(dms_FeederName_5,MATCH(dms_TradingName,dms_TradingName_List)))) -> 
C22: Whole Network | D22: 5.62
B23: Total sustained minutes off supply after removing excluded events | C23: =INDEX(dms_FeederName_1,MATCH(dms_TradingName,dms_TradingName_List)) -> CBD | D23: 42.56
C24: =INDEX(dms_FeederName_2,MATCH(dms_TradingName,dms_TradingName_List)) -> Urban | D24: 96.11
C25: =INDEX(dms_FeederName_3,MATCH(dms_TradingName,dms_TradingName_List)) -> Short rural | D25: 155.08
C26: =INDEX(dms_FeederName_4,MATCH(dms_TradingName,dms_TradingName_List)) -> Long rural | D26: 269.23
C27: =IF((INDEX(dms_FeederName_5,MATCH(dms_TradingName,dms_TradingName_List))=0),"",(INDEX(dms_FeederName_5,MATCH(dms_TradingName,dms_TradingName_List)))) -> 
C28: Whole Network | D28: 131.68
B31: 6.2.2 - UNPLANNED INTERRUPTIONS TO SUPPLY (SAIFI)
D32: =CRY -> 2017-18
B33: Total sustained interruptions | C33: =INDEX(dms_FeederName_1,MATCH(dms_TradingName,dms_TradingName_List)) -> CBD | D33: 0.407
C34: =INDEX(dms_FeederName_2,MATCH(dms_TradingName,dms_TradingName_List)) -> Urban | D34: 1.083
C35: =INDEX(dms_FeederName_3,MATCH(dms_TradingName,dms_TradingName_List)) -> Short rural | D35: 1.266
C36: =INDEX(dms_FeederName_4,MATCH(dms_TradingName,dms_TradingName_List)) -> Long rural | D36: 1.629
C37: =IF((INDEX(dms_FeederName_5,MATCH(dms_TradingName,dms_TradingName_List))=0),"",(INDEX(dms_FeederName_5,MATCH(dms_TradingName,dms_TradingName_List)))) -> 
C38: Whole Network | D38: 1.192
B39: Total of excluded events* *see 3.3 of STPIS | C39: =INDEX(dms_FeederName_1,MATCH(dms_TradingName,dms_TradingName_List)) -> CBD | D39: 0
C40: =INDEX(dms_FeederName_2,MATCH(dms_TradingName,dms_TradingName_List)) -> Urban | D40: 0.024
C41: =INDEX(dms_FeederName_3,MATCH(dms_TradingName,dms_TradingName_List)) -> Short rural | D41: 0.066
C42: =INDEX(dms_FeederName_4,MATCH(dms_TradingName,dms_TradingName_List)) -> Long rural | D42: 0.15
C43: =IF((INDEX(dms_FeederName_5,MATCH(dms_TradingName,dms_TradingName_List))=0),"",(INDEX(dms_FeederName_5,MATCH(dms_TradingName,dms_TradingName_List)))) -> 
C44: Whole Network | D44: 0.05
B45: Total sustained interruptions after removing excluded events | C45: =INDEX(dms_FeederName_1,MATCH(dms_TradingName,dms_TradingName_List)) -> CBD | D45: 0.407
C46: =INDEX(dms_FeederName_2,MATCH(dms_TradingName,dms_TradingName_List)) -> Urban | D46: 1.059
C47: =INDEX(dms_FeederName_3,MATCH(dms_TradingName,dms_TradingName_List)) -> Short rural | D47: 1.2
C48: =INDEX(dms_FeederName_4,MATCH(dms_TradingName,dms_TradingName_List)) -> Long rural | D48: 1.48
C49: =IF((INDEX(dms_FeederName_5,MATCH(dms_TradingName,dms_TradingName_List))=0),"",(INDEX(dms_FeederName_5,MATCH(dms_TradingName,dms_TradingName_List)))) -> 
C50: Whole Network | D50: 1.142
B53: 6.2.3 - UNPLANNED MOMENTARY INTERRUPTIONS TO SUPPLY (MAIFI)
D54: =CRY -> 2017-18
B55: Total momentary interruptions | C55: =INDEX(dms_FeederName_1,MATCH(dms_TradingName,dms_TradingName_List)) -> CBD
C56: =INDEX(dms_FeederName_2,MATCH(dms_TradingName,dms_TradingName_List)) -> Urban
C57: =INDEX(dms_FeederName_3,MATCH(dms_TradingName,dms_TradingName_List)) -> Short rural
C58: =INDEX(dms_FeederName_4,MATCH(dms_TradingName,dms_TradingName_List)) -> Long rural
C59: =IF((INDEX(dms_FeederName_5,MATCH(dms_TradingName,dms_TradingName_List))=0),"",(INDEX(dms_FeederName_5,MATCH(dms_TradingName,dms_TradingName_List)))) -> 
C60: Whole Network
B61: Total of excluded events* *see 3.3 of STPIS | C61: =INDEX(dms_FeederName_1,MATCH(dms_TradingName,dms_TradingName_List)) -> CBD
C62: =INDEX(dms_FeederName_2,MATCH(dms_TradingName,dms_TradingName_List)) -> Urban
C63: =INDEX(dms_FeederName_3,MATCH(dms_TradingName,dms_TradingName_List)) -> Short rural
C64: =INDEX(dms_FeederName_4,MATCH(dms_TradingName,dms_TradingName_List)) -> Long rural
C65: =IF((INDEX(dms_FeederName_5,MATCH(dms_TradingName,dms_TradingName_List))=0),"",(INDEX(dms_FeederName_5,MATCH(dms_TradingName,dms_TradingName_List)))) -> 
C66: Whole Network
B67: Total momentary interruptions after removing excluded events | C67: =INDEX(dms_FeederName_1,MATCH(dms_TradingName,dms_TradingName_List)) -> CBD
C68: =INDEX(dms_FeederName_2,MATCH(dms_TradingName,dms_TradingName_List)) -> Urban
C69: =INDEX(dms_FeederName_3,MATCH(dms_TradingName,dms_TradingName_List)) -> Short rural
C70: =INDEX(dms_FeederName_4,MATCH(dms_TradingName,dms_TradingName_List)) -> Long rural
C71: =IF((INDEX(dms_FeederName_5,MATCH(dms_TradingName,dms_TradingName_List))=0),"",(INDEX(dms_FeederName_5,MATCH(dms_TradingName,dms_TradingName_List)))) -> 
C72: Whole Network
B75: 6.2.4 - DISTRIBUTION CUSTOMER NUMBERS
D76: =CRY -> 2017-18
B77: Customer numbers at the start of the period | C77: =INDEX(dms_FeederName_1,MATCH(dms_TradingName,dms_TradingName_List)) -> CBD | D77: 5231
C78: =INDEX(dms_FeederName_2,MATCH(dms_TradingName,dms_TradingName_List)) -> Urban | D78: 618869
C79: =INDEX(dms_FeederName_3,MATCH(dms_TradingName,dms_TradingName_List)) -> Short rural | D79: 125407
C80: =INDEX(dms_FeederName_4,MATCH(dms_TradingName,dms_TradingName_List)) -> Long rural | D80: 142278
C81: =IF((INDEX(dms_FeederName_5,MATCH(dms_TradingName,dms_TradingName_List))=0),"",(INDEX(dms_FeederName_5,MATCH(dms_TradingName,dms_TradingName_List)))) -> 
C82: Whole Network | D82: 891785
B83: Customer numbers at the end of the period | C83: =INDEX(dms_FeederName_1,MATCH(dms_TradingName,dms_TradingName_List)) -> CBD | D83: 5123
C84: =INDEX(dms_FeederName_2,MATCH(dms_TradingName,dms_TradingName_List)) -> Urban | D84: 622795
C85: =INDEX(dms_FeederName_3,MATCH(dms_TradingName,dms_TradingName_List)) -> Short rural | D85: 126456
C86: =INDEX(dms_FeederName_4,MATCH(dms_TradingName,dms_TradingName_List)) -> Long rural | D86: 142633
C87: =IF((INDEX(dms_FeederName_5,MATCH(dms_TradingName,dms_TradingName_List))=0),"",(INDEX(dms_FeederName_5,MATCH(dms_TradingName,dms_TradingName_List)))) -> 
C88: Whole Network | D88: 897007
B89: Average customer numbers | C89: =INDEX(dms_FeederName_1,MATCH(dms_TradingName,dms_TradingName_List)) -> CBD | D89: =IFERROR(ROUND(AVERAGE(D77,D83),0),"") -> 5177
C90: =INDEX(dms_FeederName_2,MATCH(dms_TradingName,dms_TradingName_List)) -> Urban | D90: =IFERROR(ROUND(AVERAGE(D78,D84),0),"") -> 620832
C91: =INDEX(dms_FeederName_3,MATCH(dms_TradingName,dms_TradingName_List)) -> Short rural | D91: =IFERROR(ROUND(AVERAGE(D79,D85),0),"") -> 125932
C92: =INDEX(dms_FeederName_4,MATCH(dms_TradingName,dms_TradingName_List)) -> Long rural | D92: =IFERROR(ROUND(AVERAGE(D80,D86),0),"") -> 142456
C93: =IF((INDEX(dms_FeederName_5,MATCH(dms_TradingName,dms_TradingName_List))=0),"",(INDEX(dms_FeederName_5,MATCH(dms_TradingName,dms_TradingName_List)))) -> 
C94: Whole Network | D94: =IFERROR(ROUND(AVERAGE(D82,D88),0),"") -> 894396

Sheet 6.6 STPIS Customer Service
B1: =IF(dms_DataQuality="backcast",INDEX(dms_Worksheet_List,MATCH(dms_Model,dms_Model_List))&" BACKCAST",INDEX(dms_Worksheet_List,MATCH(dms_Model,dms_Model_List))) -> ANNUAL REPORTING STATEMENT
B2: =INDEX(dms_TradingNameFull_List,MATCH(dms_TradingName,dms_TradingName_List)) -> SA Power Networks
B3: =CONCATENATE("Annual Reporting RIN Response ",IF(SUM(dms_SingleYear_Model)>0,CONCATENATE(CRY),CONCATENATE(FRCP_y1," to ",dms_MultiYear_FinalYear_Result))) -> Annual Reporting RIN Response 2017-18
B4: 6.6 STPIS CUSTOMER SERVICE
B7: 6.6.1 - TELEPHONE ANSWERING
C8: Number of calls after removing excluded events | D8: Total number of calls
C9: =CRY -> 2017-18 | D9: =CRY -> 2017-18
B10: Number of calls received | C10: 100331 | D10: 218016
B11: Number of calls answered within 30 seconds | C11: 80026
B12: Percentage of calls answered within 30 seconds | C12: =IFERROR(C11/C10,"") -> 0.7976198782

Sheet 6.7 STPIS Daily Performance
B1: =IF(dms_DataQuality="backcast",INDEX(dms_Worksheet_List,MATCH(dms_Model,dms_Model_List))&" BACKCAST",INDEX(dms_Worksheet_List,MATCH(dms_Model,dms_Model_List))) -> ANNUAL REPORTING STATEMENT | I1: 1-Jul-2016
B2: =INDEX(dms_TradingNameFull_List,MATCH(dms_TradingName,dms_TradingName_List)) -> SA Power Networks
B3: =CONCATENATE("Annual Reporting RIN Response ",IF(SUM(dms_SingleYear_Model)>0,CONCATENATE(CRY),CONCATENATE(FRCP_y1," to ",dms_MultiYear_FinalYear_Result))) -> Annual Reporting RIN Response 2017-18
B4: 6.7 STPIS DAILY PERFORMANCE
B7: Did the MAIFI parameter of the STPIS apply during the period? This flag is set from the response on worksheet 3.6.8 Network feeders | G7: =dms_MAIFI_Flag -> No
B9: The excluded events to be removed from the data refer only to events listed in clause 3.3(a) of the STPIS, with respect to reliability data, and in clause 5.4 of the STPIS with respect to customer service parameters. *Customer service information must be reported as per the definitions in the STPIS, that is excluding: • calls to payment lines and automated interactive services • calls abandoned by the customer within 30 seconds of the call being queued for response by a human operator (where the time in which a telephone call is abandoned is not measured, then an estimate of the number of calls abandoned within 30 seconds will be determined by taking 20 per cent of all calls abadoned).
B11: 6.7.1 - DAILY PERFORMANCE DATA - UNPLANNED
B12: Date | C12: Customer service* | E12: MAIFI
C13: Number of calls received (after removing excluded events) | D13: Number of calls answered in 30 seconds (after removing excluded events) | E13: =INDEX(dms_FeederName_1,MATCH(dms_TradingName,dms_TradingName_List)) -> CBD | G13: =INDEX(dms_FeederName_2,MATCH(dms_TradingName,dms_TradingName_List)) -> Urban | I13: =INDEX(dms_FeederName_3,MATCH(dms_TradingName,dms_TradingName_List)) -> Short rural | K13: =INDEX(dms_FeederName_4,MATCH(dms_TradingName,dms_TradingName_List)) -> Long rural | M13: =IF((INDEX(dms_FeederName_5,MATCH(dms_TradingName,dms_TradingName_List))=0),"Network",(INDEX(dms_FeederName_5,MATCH(dms_TradingName,dms_TradingName_List)))) ->  | O13: Network
E14: All events | F14: After removing excluded events | G14: All events | H14: After removing excluded events | I14: All events | J14: After removing excluded events | K14: All events | L14: After removing excluded events | M14: All events | N14: After removing excluded events | O14: All events | P14: After removing excluded events
B15: =dms_060701_StartDateTxt -> 1-Jul-2017 | C15: 194 | D15: 146
B16: =B15+1 -> 2017-07-02 | C16: 81 | D16: 66
B17: 2017-07-03 | C17: 385 | D17: 312
B18: 2017-07-04 | C18: 324 | D18: 251
B19: 2017-07-05 | C19: 370 | D19: 308
B20: 2017-07-06 | C20: 289 | D20: 208
B21: 2017-07-07 | C21: 286 | D21: 226
B22: 2017-07-08 | C22: 215 | D22: 141
B23: 2017-07-09 | C23: 101 | D23: 85
B24: 2017-07-10 | C24: 292 | D24: 241
B25: 2017-07-11 | C25: 309 | D25: 237
B26: 2017-07-12 | C26: 243 | D26: 213
B27: 2017-07-13 | C27: 233 | D27: 199
B28: 2017-07-14 | C28: 304 | D28: 225
B29: 2017-07-15 | C29: 245 | D29: 175
B30: 2017-07-16 | C30: 127 | D30: 110
B31: 2017-07-17 | C31: 359 | D31: 276
B32: 2017-07-18 | C32: 411 | D32: 272
B33: 2017-07-19 | C33: 316 | D33: 261
B34: 2017-07-20 | C34: 252 | D34: 216
B35: 2017-07-21 | C35: 277 | D35: 230
B36: 2017-07-22 | C36: 183 | D36: 147
B37: 2017-07-23 | C37: 121 | D37: 112
B38: 2017-07-24 | C38: 261 | D38: 230
B39: 2017-07-25 | C39: 213 | D39: 120
B40: 2017-07-26 | C40: 213 | D40: 149
B41: 2017-07-27 | C41: 304 | D41: 214
B42: 2017-07-28 | C42: 228 | D42: 191
B43: 2017-07-29 | C43: 354 | D43: 212
B44: 2017-07-30 | C44: 136 | D44: 120
B45: 2017-07-31 | C45: 351 | D45: 269
B46: 2017-08-01 | C46: 242 | D46: 176
B47: 2017-08-02 | C47: 247 | D47: 161
B48: 2017-08-03 | C48: 306 | D48: 206
B49: 2017-08-04 | C49: 770 | D49: 241
B50: 2017-08-05 | C50: 249 | D50: 197
B51: 2017-08-06 | C51: 406 | D51: 290
B52: 2017-08-07 | C52: 834 | D52: 395
B53: 2017-08-08 | C53: 272 | D53: 223
B54: 2017-08-09 | C54: 272 | D54: 189
B55: 2017-08-10 | C55: 317 | D55: 226
B56: 2017-08-11 | C56: 225 | D56: 158
B57: 2017-08-12 | C57: 112 | D57: 83
B58: 2017-08-13 | C58: 130 | D58: 103
B59: 2017-08-14 | C59: 232 | D59: 160
B60: 2017-08-15 | C60: 330 | D60: 203
B61: 2017-08-16 | C61: 226 | D61: 168
B62: 2017-08-17 | C62: 453 | D62: 312
B63: 2017-08-18 | C63: 333 | D63: 207
B64: 2017-08-19 | C64: 213 | D64: 190
B65: 2017-08-20 | C65: 237 | D65: 198
B66: 2017-08-21 | C66: 363 | D66: 263
B67: 2017-08-22 | C67: 283 | D67: 180
B68: 2017-08-23 | C68: 294 | D68: 225
B69: 2017-08-24 | C69: 276 | D69: 250
B70: 2017-08-25 | C70: 240 | D70: 183
B71: 2017-08-26 | C71: 155 | D71: 130
B72: 2017-08-27 | C72: 159 | D72: 134
B73: 2017-08-28 | C73: 346 | D73: 213
B74: 2017-08-29 | C74: 247 | D74: 185
B75: 2017-08-30 | C75: 259 | D75: 171
B76: 2017-08-31 | C76: 195 | D76: 160
B77: 2017-09-01 | C77: 223 | D77: 181
B78: 2017-09-02 | C78: 234 | D78: 196
B79: 2017-09-03 | C79: 338 | D79: 276
B80: =B79+1 -> 2017-09-04 | C80: 688 | D80: 426
B81: 2017-09-05 | C81: 508 | D81: 282
B82: 2017-09-06 | C82: 279 | D82: 172
B83: 2017-09-07 | C83: 271 | D83: 190
B84: 2017-09-08 | C84: 210 | D84: 122
B85: 2017-09-09 | C85: 181 | D85: 153
B86: 2017-09-10 | C86: 110 | D86: 94
B87: 2017-09-11 | C87: 287 | D87: 196
B88: 2017-09-12 | C88: 260 | D88: 174
B89: 2017-09-13 | C89: 367 | D89: 225
B90: 2017-09-14 | C90: 220 | D90: 177
B91: 2017-09-15 | C91: 329 | D91: 185
B92: 2017-09-16 | C92: 154 | D92: 142
B93: 2017-09-17 | C93: 77 | D93: 68
B94: 2017-09-18 | C94: 361 | D94: 266
B95: 2017-09-19 | C95: 287 | D95: 266
B96: 2017-09-20 | C96: 305 | D96: 218
B97: 2017-09-21 | C97: 207 | D97: 175
B98: 2017-09-22 | C98: 219 | D98: 170
B99: 2017-09-23 | C99: 228 | D99: 177
B100: 2017-09-24 | C100: 158 | D100: 139
B101: 2017-09-25 | C101: 226 | D101: 167
B102: 2017-09-26 | C102: 225 | D102: 151
B103: 2017-09-27 | C103: 197 | D103: 186
B104: 2017-09-28 | C104: 202 | D104: 158
B105: 2017-09-29 | C105: 256 | D105: 227
B106: 2017-09-30 | C106: 201 | D106: 195
B107: 2017-10-01 | C107: 83 | D107: 82
B108: 2017-10-02 | C108: 55 | D108: 45
B109: 2017-10-03 | C109: 255 | D109: 179
B110: 2017-10-04 | C110: 253 | D110: 199
B111: 2017-10-05 | C111: 180 | D111: 142
B112: 2017-10-06 | C112: 241 | D112: 165
B113: 2017-10-07 | C113: 196 | D113: 152
B114: 2017-10-08 | C114: 65 | D114: 58
B115: 2017-10-09 | C115: 212 | D115: 145
B116: 2017-10-10 | C116: 269 | D116: 213
B117: 2017-10-11 | C117: 337 | D117: 288
B118: 2017-10-12 | C118: 204 | D118: 175
B119: 2017-10-13 | C119: 228 | D119: 213
B120: 2017-10-14 | C120: 117 | D120: 89
B121: 2017-10-15 | C121: 91 | D121: 87
B122: 2017-10-16 | C122: 314 | D122: 289
B123: 2017-10-17 | C123: 304 | D123: 243
B124: 2017-10-18 | C124: 342 | D124: 302
B125: 2017-10-19 | C125: 186 | D125: 154
B126: 2017-10-20 | C126: 196 | D126: 179
B127: 2017-10-21 | C127: 248 | D127: 211
B128: 2017-10-22 | C128: 117 | D128: 112
B129: 2017-10-23 | C129: 294 | D129: 256
B130: 2017-10-24 | C130: 259 | D130: 220
B131: 2017-10-25 | C131: 556 | D131: 475
B132: 2017-10-26 | C132: 282 | D132: 261
B133: 2017-10-27 | C133: 316 | D133: 275
B134: 2017-10-28 | C134: 198 | D134: 158
B135: 2017-10-29 | C135: 460 | D135: 280
B136: 2017-10-30 | C136: 522 | D136: 373
B137: 2017-10-31 | C137: 252 | D137: 225
B138: 2017-11-01 | C138: 308 | D138: 263
B139: 2017-11-02 | C139: 202 | D139: 176
B140: 2017-11-03 | C140: 210 | D140: 191
B141: 2017-11-04 | C141: 195 | D141: 178
B142: 2017-11-05 | C142: 206 | D142: 181
B143: 2017-11-06 | C143: 308 | D143: 283
B144: =B143+1 -> 2017-11-07 | C144: 290 | D144: 279
B145: 2017-11-08 | C145: 216 | D145: 190
B146: 2017-11-09 | C146: 216 | D146: 213
B147: 2017-11-10 | C147: 385 | D147: 319
B148: 2017-11-11 | C148: 130 | D148: 110
B149: 2017-11-12 | C149: 95 | D149: 92
B150: 2017-11-13 | C150: 332 | D150: 294
B151: 2017-11-14 | C151: 674 | D151: 347
B152: 2017-11-15 | C152: 701 | D152: 583
B153: 2017-11-16 | C153: 297 | D153: 203
B154: 2017-11-17 | C154: 320 | D154: 291
B155: 2017-11-18 | C155: 152 | D155: 114
B156: 2017-11-19 | C156: 148 | D156: 111
B157: 2017-11-20 | C157: 949 | D157: 675
B158: 2017-11-21 | C158: 392 | D158: 348
B159: 2017-11-22 | C159: 462 | D159: 405
B160: 2017-11-23 | C160: 686 | D160: 556
B161: 2017-11-24 | C161: 325 | D161: 294
B162: 2017-11-25 | C162: 177 | D162: 161
B163: 2017-11-26 | C163: 106 | D163: 88
B164: 2017-11-27 | C164: 253 | D164: 220
B165: 2017-11-28 | C165: 332 | D165: 314
B166: 2017-11-29 | C166: 541 | D166: 424
B167: 2017-11-30 | C167: 887 | D167: 500
B168: 2017-12-01 | C168: 700 | D168: 548
B169: 2017-12-02 | C169: 153 | D169: 134
B170: 2017-12-03 | C170: 94 | D170: 85
B171: 2017-12-04 | C171: 238 | D171: 214
B172: 2017-12-05 | C172: 295 | D172: 231
B173: 2017-12-06 | C173: 226 | D173: 202
B174: 2017-12-07 | C174: 293 | D174: 243
B175: 2017-12-08 | C175: 243 | D175: 201
B176: 2017-12-09 | C176: 182 | D176: 138
B177: 2017-12-10 | C177: 130 | D177: 125
B178: 2017-12-11 | C178: 279 | D178: 226
B179: 2017-12-12 | C179: 316 | D179: 275
B180: 2017-12-13 | C180: 311 | D180: 258
B181: 2017-12-14 | C181: 302 | D181: 245
B182: 2017-12-15 | C182: 286 | D182: 260
B183: 2017-12-16 | C183: 183 | D183: 158
B184: 2017-12-17 | C184: 100 | D184: 97
B185: 2017-12-18 | C185: 429 | D185: 314
B186: 2017-12-19 | C186: 398 | D186: 294
B187: 2017-12-20 | C187: 267 | D187: 216
B188: 2017-12-21 | C188: 202 | D188: 179
B189: 2017-12-22 | C189: 156 | D189: 141
B190: 2017-12-23 | C190: 215 | D190: 141
B191: 2017-12-24 | C191: 213 | D191: 181
B192: 2017-12-25 | C192: 85 | D192: 83
B193: 2017-12-26 | C193: 88 | D193: 87
B194: 2017-12-27 | C194: 297 | D194: 242
B195: 2017-12-28 | C195: 213 | D195: 205
B196: 2017-12-29 | C196: 166 | D196: 157
B197: 2017-12-30 | C197: 92 | D197: 89
B198: 2017-12-31 | C198: 101 | D198: 98
B199: 2018-01-01 | C199: 92 | D199: 91
B200: 2018-01-02 | C200: 212 | D200: 197
B201: 2018-01-03 | C201: 238 | D201: 224
B202: 2018-01-04 | C202: 268 | D202: 250
B203: 2018-01-05 | C203: 401 | D203: 313
B204: 2018-01-06 | C204: 274 | D204: 205
... 176 more rows

Sheet 6.8 STPIS Exclusions
B1: =IF(dms_DataQuality="backcast",INDEX(dms_Worksheet_List,MATCH(dms_Model,dms_Model_List))&" BACKCAST",INDEX(dms_Worksheet_List,MATCH(dms_Model,dms_Model_List))) -> ANNUAL REPORTING STATEMENT
B2: =INDEX(dms_TradingNameFull_List,MATCH(dms_TradingName,dms_TradingName_List)) -> SA Power Networks
B3: =CONCATENATE("Annual Reporting RIN Response ",IF(SUM(dms_SingleYear_Model)>0,CONCATENATE(CRY),CONCATENATE(FRCP_y1," to ",dms_MultiYear_FinalYear_Result))) -> Annual Reporting RIN Response 2017-18
B4: 6.8 STPIS EXCLUSIONS
B7: This information is collected to inform the application of the STPIS to Australian Distribution Co. in future regulatory periods. The information is also collected to monitor network performance, and may be used in performance reports.
B9: 6.8.1 - STPIS EXCLUSIONS
B10: Date of event | C10: Outage ID | D10: Feeder ID / name | E10: Feeder classification (drop down) | F10: Cause of event (drop down) | G10: Unplanned | J10: Event category | K10: Effect on unplanned MAIFI | L10: Please provide separate explanation to confirm the outage was not due to inadequate transmission connection planning
B11: DD/MM/YYYY | G11: Number of interruptions | H11: Duration of interruption (mins) | I11: Total unplanned minutes off supply | J11: Use exclusion categories listed in section 3.3(a) of the STPIS (drop down) | K11: by feeder classification
B12: 2017-08-01 | C12: 5802183107177 | D12: SSD442 | E12: Short rural | F12: Transmission failure | G12: 1 | H12: 4 | I12: 168 | J12: 5 | K12: N/A
B13: 2017-08-15 | C13: 2735171408171 | D13: SSD443 | E13: Short rural | F13: Transmission failure | G13: 1 | H13: 3 | I13: 144 | J13: 5 | K13: N/A
B14: 2017-09-08 | C14: 0456140809171 | D14: HH428D | E14: Urban | F14: Other | G14: 1 | H14: 105 | I14: 7980 | J14: 7 | K14: N/A
B15: 2017-09-15 | C15: 3034181509170 | D15: SSD339 | E15: Urban | F15: Transmission failure | G15: 1 | H15: 13 | I15: 78793 | J15: 5 | K15: N/A
B16: 2017-09-15 | C16: 3034181509170 | D16: SSD339 | E16: Short rural | F16: Transmission failure | G16: 1 | H16: 13 | I16: 39286 | J16: 5 | K16: N/A
B17: 2017-09-15 | C17: 3034181509170 | D17: SSD339 | E17: Long rural | F17: Transmission failure | G17: 1 | H17: 13 | I17: 44551 | J17: 5 | K17: N/A
B18: 2017-10-29 | C18: 1112122810176 | D18: SSD742 | E18: Short rural | F18: Transmission failure | G18: 1 | H18: 463 | I18: 988042 | J18: 5 | K18: N/A
B19: 2017-10-29 | C19: 1112122810176 | D19: SSD742 | E19: Long rural | F19: Transmission failure | G19: 1 | H19: 463 | I19: 3285448 | J19: 5 | K19: N/A
B20: 2017-11-14 | C20: 0050171411175 | D20: SSD310 | E20: Long rural | F20: Transmission failure | G20: 1 | H20: 144 | I20: 10224 | J20: 5 | K20: N/A
B21: 2017-11-23 | C21: 2405012311173 | D21: SSD262 | E21: Urban | F21: Transmission failure | G21: 1 | H21: 30 | I21: 336855 | J21: 5 | K21: N/A
B22: 2017-11-23 | C22: 2405012311173 | D22: SSD262 | E22: Long rural | F22: Transmission failure | G22: 1 | H22: 30 | I22: 61582 | J22: 5 | K22: N/A
B23: 2018-01-25 | C23: 3714122501187 | D23: GA19 | E23: Long rural | F23: Other | G23: 1 | H23: 9854 | I23: 19708 | J23: 7 | K23: N/A
B24: 2018-06-15 | C24: 4222141506184 | D24: SSD457 | E24: Short rural | F24: Transmission failure | G24: 1 | H24: 15 | I24: 46875 | J24: 5 | K24: N/A
B25: 2018-06-15 | C25: 4222141506184 | D25: SSD457 | E25: Long rural | F25: Transmission failure | G25: 1 | H25: 15 | I25: 101985 | J25: 5 | K25: N/A
B26: 2018-06-28 | C26: 4832132806187 | D26: R17 | E26: Long rural | F26: Other | G26: 1 | H26: 1434 | I26: 1434 | J26: 7 | K26: N/A
B403: To enter further events - please insert new lines above this line.

Sheet 6.9 STPIS - GSL
B1: =IF(dms_DataQuality="backcast",INDEX(dms_Worksheet_List,MATCH(dms_Model,dms_Model_List))&" BACKCAST",INDEX(dms_Worksheet_List,MATCH(dms_Model,dms_Model_List))) -> ANNUAL REPORTING STATEMENT
B2: =INDEX(dms_TradingNameFull_List,MATCH(dms_TradingName,dms_TradingName_List)) -> SA Power Networks
B3: =CONCATENATE("Annual Reporting RIN Response ",IF(SUM(dms_SingleYear_Model)>0,CONCATENATE(CRY),CONCATENATE(FRCP_y1," to ",dms_MultiYear_FinalYear_Result))) -> Annual Reporting RIN Response 2017-18
B4: 6.9 STPIS - GUARANTEED SERVICE LEVEL
B6: Did the AER's GSL Scheme apply at any time during the regulatory year? | D6: No | E6: **IMPORTANT Please ensure this flag is set. Conditional formatting on this worksheet is dependant on this response.
B8: Instructions: Table 6.9.1 collects information relating to jurisdiction GSL scheme parameters. These parameters can be found in the jurisdictonal scheme relevant to NSP. Please identify each parameter in the relevant sub-tables and provide the volume and value of GSL payments. For GSL parameters that do not fit within the provided sub-tables provided, please enter a heading and identify the relevant parameter(s).
B10: 6.9.1 - GUARANTEED SERVICE LEVELS - JURISDICTIONAL GSL SCHEME
D11: =CRY -> 2017-18 | E11: =CRY -> 2017-18
D12: Volume | E12: Value of GSL payments
D13: 0's | E13: $0's
B14: Appointments
B15: Number of appointments for period | D15: 29729
B16: Number of appointments where more than 15 minutes late | D16: 2 | E16: 50
B19: To enter further GSL parameters relating to appointments - please copy a row from above and "insert copied cells" above this row.
B21: Connections
B22: Total number of new supply addresses connected | D22: 11789
B23: Number where connection not made on date agreed or within 6 business days | D23: 215 | E23: 60975
B27: To enter further GSL parameters relating to connections - please copy a row from above and "insert copied cells" above this row.
B29: Reliability of supply
B30: Long Duration Interruptions:
B31: - Long Duration interruption greater than 12 hours & no more than 15 hours | D31: 2898 | E31: 289750
B32: - Long Duration interruption greater than 15 hours & no more than 18 hours | D32: 2211 | E32: 331590
B33: - Long Duration interruption greater than 18 hours & no more than 24 hours | D33: 1117 | E33: 223355
B34: - Long Duration interruption greater than 24 hours & no more than 48 hours | D34: 460 | E34: 186265
B35: - Long Duration interruption greater than 48 hours | D35: 68 | E35: 41140
B36: Frequency of Interruptions (1 July to 30 June):
B37: - Number of interruptions p.a. more than 9 & no more than 12 | D37: 525 | E37: 52500
B38: - Number of interruptions p.a. more than 12 & no more than 15 | D38: 19 | E38: 2850
B39: - Number of interruptions p.a. more than 15 | D39: 0 | E39: 0
B41: To enter further GSL parameters relating to reliability of supply - please copy a row from above and "insert copied cells" above this row.
B43: Street lights
B44: Metropolitan Areas:
B45: - Number of street lights | D45: 172128
B46: - Number of street light "outs" during period | D46: 26589
B47: - Average number of business days to repair | D47: 4.55
B48: - Number of street lights not repaired within 5 business days | D48: 1022 | E48: 154585
B49: Country Areas:
B50: - Number of street lights | D50: 44317
B51: - Number of street light "outs" during period | D51: 4356
B52: - Average number of business days to repair | D52: 3.39
B53: - Number of street lights not repaired within 10 business days | D53: 23 | E53: 1950
B55: To enter further GSL parameters relating to street lights - please copy a row from above and "insert copied cells" above this row.
B57: Planned interruptions
B58: N/A
B61: To enter further GSL parameters relating to planned interruptions - please copy a row from above and "insert copied cells" above this row.
B63: <NSP defined parameter category>
B67: To enter further GSL parameters - please identify the parameter and if insufficient rows please copy a row from above and "insert copied cells" above this row.
B69: <NSP defined parameter category>
B73: To enter further GSL parameters - please identify the parameter and if insufficient rows please copy a row from above and "insert copied cells" above this row.
B75: <NSP defined parameter category>
B79: To enter further GSL parameters - please identify the parameter and if insufficient rows please copy a row from above and "insert copied cells" above this row.
B81: <NSP defined parameter category>
B85: To enter further GSL parameters - please identify the parameter and if insufficient rows please copy a row from above and "insert copied cells" above this row.
B88: 6.9.2 - GUARANTEED SERVICE LEVELS - AER GSL SCHEME
B90: Complete Table 6.9.2 if the AER's GSL scheme applied at any time during the regulatory year. Do not complete Table 6.9.2 if the AER's GSL scheme did not apply during the regulatory year.
D92: =CRY -> 2017-18 | E92: =CRY -> 2017-18
D93: Volume | E93: Value of GSL payments
D94: 0's | E94: $0's
B95: New connections
B96: Number of connections made
B97: Number of connections not made on or before the day agreed
B98: Connections - GSL payments – 1-6 day delay
B99: Connections - GSL payments – 7+ day delay
B100: Reliability of supply
B101: Frequency of interruptions – CBD feeders – 9 interruptions
B102: Frequency of interruptions – Urban feeders – 9 interruptions
B103: Frequency of interruptions – Rural (short and long) feeders – 15 interruptions
B104: Interruptions – CBD feeders – 12 hours duration
B105: Interruptions – Urban feeders – 12 hours duration
B106: Interruptions – Rural (short and long) feeders – 18 hours duration
B107: Total duration of interruptions Level 1 – 20 hours
B108: Total duration of interruptions Level 2 – 30 hours
B109: Total duration of interruptions Level 3 – 60 hours
B110: Street lights
B111: Streetlight repair 5 days – GSL payments
B112: Planned interruptions
B113: Notice of planned interruptions – 4 business days notice not given
B114: Total | E114: =SUM(E113,E111,E101:E109,E98:E99) -> 0

Sheet 7.8 Avoided TUOS Payments
B1: =IF(dms_DataQuality="backcast",INDEX(dms_Worksheet_List,MATCH(dms_Model,dms_Model_List))&" BACKCAST",INDEX(dms_Worksheet_List,MATCH(dms_Model,dms_Model_List))) -> ANNUAL REPORTING STATEMENT
B2: =INDEX(dms_TradingNameFull_List,MATCH(dms_TradingName,dms_TradingName_List)) -> SA Power Networks
B3: =CONCATENATE("Annual Reporting RIN Response ",IF(SUM(dms_SingleYear_Model)>0,CONCATENATE(CRY),CONCATENATE(FRCP_y1," to ",dms_MultiYear_FinalYear_Result))) -> Annual Reporting RIN Response 2017-18
B4: 7.8 - AVOIDED TUOS PAYMENTS
B6: 7.8.1 - AVOIDED TUOS PAYMENTS
C7: Avoided TUOS Payment
C8: $0's, nominal
B9: Embedded generators | C9: 0
B10: Market network service providers | C10: 0
B11: Other | C11: 0

Sheet 7.10 Juris Scheme
B1: =IF(dms_DataQuality="backcast",INDEX(dms_Worksheet_List,MATCH(dms_Model,dms_Model_List))&" BACKCAST",INDEX(dms_Worksheet_List,MATCH(dms_Model,dms_Model_List))) -> ANNUAL REPORTING STATEMENT
B2: =INDEX(dms_TradingNameFull_List,MATCH(dms_TradingName,dms_TradingName_List)) -> SA Power Networks
B3: =CONCATENATE("Annual Reporting RIN Response ",IF(SUM(dms_SingleYear_Model)>0,CONCATENATE(CRY),CONCATENATE(FRCP_y1," to ",dms_MultiYear_FinalYear_Result))) -> Annual Reporting RIN Response 2017-18
B4: 7.10 - JURISDICTIONAL SCHEMES
B6: Instructions Business must list each relevant jurisdictional scheme individually and report information for each scheme separately from other schemes.
B8: 7.10.1 - JURISDICTIONAL SCHEME PAYMENTS
B9: Jurisdictional Scheme Name | C9: Description | D9: Date DNSP Became Subject to Scheme | E9: Description of Cost Recovery Method | F9: Total Scheme Payments
F10: $0's, nominal
B11: PV Incentive Scheme Payments for export PV - 2028 Scheme | C11: "44 cent Scheme" | D11: 2008-07-01 | E11: Recovered through tariffs as uniform percentage uplift across all customer groups on each component of their DUoS charge. | F11: 14603631.56
B12: PV Incentive Scheme Payments for export PV - 2028S Scheme | C12: "44 cent Scheme" | D12: 2010-12-01 | E12: Recovered through tariffs as uniform percentage uplift across all customer groups on each component of their DUoS charge. | F12: 66704349.99
E17: Total | F17: =SUM(F11:F16) -> 81307981.55

Sheet 7.11 DMIS-DMIA
B1: =IF(dms_DataQuality="backcast",INDEX(dms_Worksheet_List,MATCH(dms_Model,dms_Model_List))&" BACKCAST",INDEX(dms_Worksheet_List,MATCH(dms_Model,dms_Model_List))) -> ANNUAL REPORTING STATEMENT
B2: =INDEX(dms_TradingNameFull_List,MATCH(dms_TradingName,dms_TradingName_List)) -> SA Power Networks
B3: =CONCATENATE("Annual Reporting RIN Response ",IF(SUM(dms_SingleYear_Model)>0,CONCATENATE(CRY),CONCATENATE(FRCP_y1," to ",dms_MultiYear_FinalYear_Result))) -> Annual Reporting RIN Response 2017-18
B4: 7.11 - DEMAND MANAGEMENT INCENTIVE SCHEME
B6: 7.11.1 - DMIA - PROJECTS SUBMITTED FOR APPROVAL
C7: =CONCATENATE("Total amount of the DMIA spent in ", CRY) -> Total amount of the DMIA spent in 2017-18
C8: Operating expenditure | D8: Capital expenditure | E8: Total
B9: Name of project | C9: $0's, nominal
B10: Grid Side Storage | C10: -279589.35 | E10: =SUM(C10:D10) -> -279589.35
B11: Residential Energy Storage | C11: 266178.49 | E11: 266178.49
E12: 0
E13: 0
E14: 0
E15: 0
E16: =SUM(C16:D16) -> 0
E17: 0
E18: 0
E19: 0
E20: 0
E21: 0
E22: 0
E23: 0
E24: 0
E25: 0
E26: 0
E27: 0
E28: 0
E29: 0
E30: 0
E31: 0
E32: 0
E33: 0
E34: 0
E35: 0
E36: 0
E37: 0
E38: 0
E39: 0
E40: 0
E41: 0
E42: 0
E43: 0
E44: 0
B45: To enter additional projects - please copy an existing row and insert above this row.
B46: Total | C46: =SUM(C10:C45) -> -13410.86 | D46: =SUM(D10:D45) -> 0 | E46: =SUM(E10:E45) -> -13410.86

Sheet 7.12 Safety and Bushfire
B1: =IF(dms_DataQuality="backcast",INDEX(dms_Worksheet_List,MATCH(dms_Model,dms_Model_List))&" BACKCAST",INDEX(dms_Worksheet_List,MATCH(dms_Model,dms_Model_List))) -> ANNUAL REPORTING STATEMENT
B2: =INDEX(dms_TradingNameFull_List,MATCH(dms_TradingName,dms_TradingName_List)) -> SA Power Networks
B3: =CONCATENATE("Annual Reporting RIN Response ",IF(SUM(dms_SingleYear_Model)>0,CONCATENATE(CRY),CONCATENATE(FRCP_y1," to ",dms_MultiYear_FinalYear_Result))) -> Annual Reporting RIN Response 2017-18
B4: 7.12 SAFETY AND BUSHFIRE RELATED EXPENDITURE
B6: These templates collect information from Victorian businesses only. Bushfire and safety related expenditure information is used by the AER to monitor the expenditures throughout the regulatory control period.
B8: CPI applied to convert expected expenditure in real $ to nominal based on lagged September CPI index
B10: Instructions
B11: For "Exclusive of Margins & Overheads" reported expenditure is to EXCLUDE any overheads, profit margins or management fees paid directly or indirectly to related party contractors (not including actual incurred expense of the related party contractor) for the reporting period.
B12: For "Value of Margins & Overheads" reported expenditure is to COMPRISE ONLY the sum of overheads, profit margins or management fees paid directly or indirectly to related party contractors (not including actual incurred expenses of the related party contractor) for the reporting period.
B14: Australian Distribution Co. is to specify each activity in this table in accordance with the definition in Appendix F of the RIN.
B15: All activities must be reported but the Reason for Difference is only required if there is a 10 per cent difference between the expected value and the actual value. Use median unit costs. Where unit costs are not recorded at the asset category level - provide the best estimates of the unit cost using the cost allocation method identified in this table. (As a transitional measure, the unit cost may be based on a statistically significant annual sample of actual work orders at a 5% or better confidence interval.) Provide basis of allocation where applicable.
B17: 7.12.1 - SAFETY AND BUSHFIRE RELATED ASSET GROUP DEFINITIONS AND ALLOCATION BASIS
B18: Activity | C18: Definitions | G18: Basis for allocation of cost to activity
B19: Planned non-preferred services replacements
B20: Planned replacement of non-preferred services due to height
B21: Removal of public lighting switchwire
B22: Replacement of existing SWER lines with 22kV overhead bare conductor
B23: Installation of GFN and associated equipment at zone substations
B24: Replacement of crossarms/insulator sets – pole top fire mitigation
B25: Replacement of crossarms – based on age and condition
B26: Replacement of poles – based on age and condition
B27: Stake poles – based on age and condition
B28: Replacement of undersized poles
B29: Stake undersized poles
B30: Replacement of overhead conductor – mainly steel
B31: Service line clearance – overhead services requiring relocation
B32: Service line clearance – overhead services requiring undergrounding
B33: Replacement of 22kV distribution feeders with ABC/underground cabling
B34: Replacement of SWER with covered carbon core conductor or equivalent
B35: Replacement of SWER with ABC
B36: Replacement of SWER with underground
B37: Replacement of surge diverters (neptune configuration)
B38: Replacement of surge diverters (single phase or three phase)
B46: To enter further activities - please copy row from above and "insert copied cells" into a row above this row.
B49: 7.12.2 - BUSHFIRE RELATED
B51: 7.12.2.1 - NUMBER OF ACTIVITIES
B52: Activity | C52: Units | D52: Number of Activities
B53: Planned non-preferred services replacements | C53: number of services
B54: Planned replacement of non-preferred services due to height | C54: number of services
B55: Removal of public lighting switchwire | C55: number of spans removed
B56: Replacement of existing SWER lines with 22kV overhead bare conductor | C56: kms of SWER
B57: Installation of GFN and associated equipment at zone substations | C57: number of zone substations
B58: Replacement of crossarms/insulator sets – pole top fire mitigation | C58: number of crossarms/sets
B59: Replacement of crossarms – based on age and condition | C59: number of crossarms
B60: Replacement of poles – based on age and condition | C60: number of poles
B61: Stake poles – based on age and condition | C61: number of poles
B62: Replacement of undersized poles | C62: number of poles
B63: Stake undersized poles | C63: number of poles
B64: Replacement of overhead conductor – mainly steel | C64: kms
B65: Service line clearance – overhead services requiring relocation | C65: number of services
B66: Service line clearance – overhead services requiring undergrounding | C66: number of services
B67: Replacement of 22kV distribution feeders with ABC/underground cabling | C67: number of feeders
B68: Replacement of SWER with covered carbon core conductor or equivalent | C68: kms
B69: Replacement of SWER with ABC | C69: kms
B70: Replacement of SWER with underground | C70: kms
B71: Replacement of surge diverters (neptune configuration) | C71: number of units
B72: Replacement of surge diverters (single phase or three phase) | C72: number of units
B73: =IF(ISBLANK(B39),"",B39) -> 
B80: To enter further activities - please copy row from above and "insert copied cells" into a row above this row.
B83: 7.12.2.2 - EXPENDITURE
B84: Activity | C84: Units | D84: Exclusive of Margins & Overheads | E84: Value of Margins & Overheads
D85: Actual Expenditure
D86: $0's, Nominal
B87: Planned non-preferred services replacements | C87: number of services
B88: Planned replacement of non-preferred services due to height | C88: number of services
B89: Removal of public lighting switchwire | C89: number of spans removed
B90: Replacement of existing SWER lines with 22kV overhead bare conductor | C90: kms of SWER
B91: Installation of GFN and associated equipment at zone substations | C91: number of zone substations
B92: Replacement of crossarms/insulator sets – pole top fire mitigation | C92: number of crossarms/sets
B93: Replacement of crossarms – based on age and condition | C93: number of crossarms
B94: Replacement of poles – based on age and condition | C94: number of poles
B95: Stake poles – based on age and condition | C95: number of poles
B96: Replacement of undersized poles | C96: number of poles
B97: Stake undersized poles | C97: number of poles
B98: Replacement of overhead conductor – mainly steel | C98: kms
B99: Service line clearance – overhead services requiring relocation | C99: number of services
B100: Service line clearance – overhead services requiring undergrounding | C100: number of services
B101: Replacement of 22kV distribution feeders with ABC/underground cabling | C101: number of feeders
B102: Replacement of SWER with covered carbon core conductor or equivalent | C102: kms
B103: Replacement of SWER with ABC | C103: kms
B104: Replacement of SWER with underground | C104: kms
B105: Replacement of surge diverters (neptune configuration) | C105: number of units
B106: Replacement of surge diverters (single phase or three phase) | C106: number of units
B107: =IF(ISBLANK(B39),"",B39) ->  | C107: =IF(ISBLANK(C73),"",C73) -> 
B114: To enter further activities - please copy row from above and "insert copied cells" into a row above this row.
B117: 7.12.2.3 - UNIT COSTS
B118: Activity | D118: Actual
D119: $0's, Per Unit
B120: Planned non-preferred services replacements
B121: Planned replacement of non-preferred services due to height
B122: Removal of public lighting switchwire
B123: Replacement of existing SWER lines with 22kV overhead bare conductor
B124: Installation of GFN and associated equipment at zone substations
B125: Replacement of crossarms/insulator sets – pole top fire mitigation
B126: Replacement of crossarms – based on age and condition
B127: Replacement of poles – based on age and condition
B128: Stake poles – based on age and condition
B129: Replacement of undersized poles
B130: Stake undersized poles
B131: Replacement of overhead conductor – mainly steel
B132: Service line clearance – overhead services requiring relocation
B133: Service line clearance – overhead services requiring undergrounding
B134: Replacement of 22kV distribution feeders with ABC/underground cabling
B135: Replacement of SWER with covered carbon core conductor or equivalent
B136: Replacement of SWER with ABC
B137: Replacement of SWER with underground
B138: Replacement of surge diverters (neptune configuration)
B139: Replacement of surge diverters (single phase or three phase)
B140: =IF(ISBLANK(B39),"",B39) -> 
B147: To enter further activities - please copy row from above and "insert copied cells" into a row above this row.
B150: 7.12.2.4 - CONTINGENT PROJECT APPLICATIONS - VOLUMES APPROVED
B151: Activity | C151: Units | D151: Volume approved under contingent project applications | E151: Actual volumes | F151: Difference
F152: =E152-D152 -> 0
F153: 0
F154: 0
F155: 0
F156: 0
F157: 0
F158: 0
F159: 0
B160: To enter further activities - please copy row from above and "insert copied cells" into a row above this row.
B162: 7.12.2.5 - CONTINGENT PROJECT APPLICATIONS - EXPENDITURE APPROVED
B163: Activity | C163: Exclusive of Margins & Overheads | D163: Value of Margins & Overheads
C164: Actual Expenditure
C165: $0's, Nominal
B166: =IF(ISBLANK(B152),"",B152) -> 
B167: =IF(ISBLANK(B153),"",B153) -> 
B174: To enter further activities - please copy row from above and "insert copied cells" into a row above this row.
B178: 7.12.3 - SAFETY RELATED
B180: 7.12.3.1 - NUMBER OF ACTIVITIES
B181: Activity | C181: Units | D181: Number of Activities
B182: Planned non-preferred services replacements | C182: number of services
B183: Planned replacement of non-preferred services due to height | C183: number of services
B184: Removal of public lighting switchwire | C184: number of spans removed
B185: Replacement of existing SWER lines with 22kV overhead bare conductor | C185: kms of SWER
B186: Installation of GFN and associated equipment at zone substations | C186: number of zone substations
B187: Replacement of crossarms/insulator sets – pole top fire mitigation | C187: number of crossarms/sets
B188: Replacement of crossarms – based on age and condition | C188: number of crossarms
B189: Replacement of poles – based on age and condition | C189: number of poles
B190: Stake poles – based on age and condition | C190: number of poles
B191: Replacement of undersized poles | C191: number of poles
B192: Stake undersized poles | C192: number of poles
B193: Replacement of overhead conductor – mainly steel | C193: kms
B194: Service line clearance – overhead services requiring relocation | C194: number of services
B195: Service line clearance – overhead services requiring undergrounding | C195: number of services
B196: Replacement of 22kV distribution feeders with ABC/underground cabling | C196: number of feeders
B197: Replacement of SWER with covered carbon core conductor or equivalent | C197: kms
B198: Replacement of SWER with ABC | C198: kms
B199: Replacement of SWER with underground | C199: kms
B200: Replacement of surge diverters (neptune configuration) | C200: number of units
B201: Replacement of surge diverters (single phase or three phase) | C201: number of units
B202: =IF(ISBLANK(B39),"",B39) ->  | C202: =IF(ISBLANK(C73),"",C73) -> 
B209: To enter further activities - please copy row from above and "insert copied cells" into a row above this row.
B212: 7.12.3.2 - EXPENDITURE
B213: Activity | C213: Units | D213: Exclusive of Margins & Overheads | E213: Value of Margins & Overheads
D214: Actual Expenditure
D215: $0's, Nominal
B216: Planned non-preferred services replacements | C216: number of services
B217: Planned replacement of non-preferred services due to height | C217: number of services
B218: Removal of public lighting switchwire | C218: number of spans removed
B219: Replacement of existing SWER lines with 22kV overhead bare conductor | C219: kms of SWER
B220: Installation of GFN and associated equipment at zone substations | C220: number of zone substations
B221: Replacement of crossarms/insulator sets – pole top fire mitigation | C221: number of crossarms/sets
B222: Replacement of crossarms – based on age and condition | C222: number of crossarms
B223: Replacement of poles – based on age and condition | C223: number of poles
B224: Stake poles – based on age and condition | C224: number of poles
B225: Replacement of undersized poles | C225: number of poles
B226: Stake undersized poles | C226: number of poles
B227: Replacement of overhead conductor – mainly steel | C227: kms
B228: Service line clearance – overhead services requiring relocation | C228: number of services
B229: Service line clearance – overhead services requiring undergrounding | C229: number of services
B230: Replacement of 22kV distribution feeders with ABC/underground cabling | C230: number of feeders
B231: Replacement of SWER with covered carbon core conductor or equivalent | C231: kms
B232: Replacement of SWER with ABC | C232: kms
B233: Replacement of SWER with underground | C233: kms
B234: Replacement of surge diverters (neptune configuration) | C234: number of units
B235: Replacement of surge diverters (single phase or three phase) | C235: number of units
B236: =IF(ISBLANK(B39),"",B39) ->  | C236: =IF(ISBLANK(C73),"",C73) -> 
B243: To enter further activities - please copy row from above and "insert copied cells" into a row above this row.
B246: 7.12.3.3 - UNIT COSTS
B247: Activity | C247: Units | D247: Actual
D248: $0's, Per Unit
B249: Planned non-preferred services replacements | C249: number of services
B250: Planned replacement of non-preferred services due to height | C250: number of services
B251: Removal of public lighting switchwire | C251: number of spans removed
B252: Replacement of existing SWER lines with 22kV overhead bare conductor | C252: kms of SWER
B253: Installation of GFN and associated equipment at zone substations | C253: number of zone substations
B254: Replacement of crossarms/insulator sets – pole top fire mitigation | C254: number of crossarms/sets
B255: Replacement of crossarms – based on age and condition | C255: number of crossarms
B256: Replacement of poles – based on age and condition | C256: number of poles
B257: Stake poles – based on age and condition | C257: number of poles
B258: Replacement of undersized poles | C258: number of poles
B259: Stake undersized poles | C259: number of poles
B260: Replacement of overhead conductor – mainly steel | C260: kms
B261: Service line clearance – overhead services requiring relocation | C261: number of services
B262: Service line clearance – overhead services requiring undergrounding | C262: number of services
B263: Replacement of 22kV distribution feeders with ABC/underground cabling | C263: number of feeders
B264: Replacement of SWER with covered carbon core conductor or equivalent | C264: kms
B265: Replacement of SWER with ABC | C265: kms
B266: Replacement of SWER with underground | C266: kms
... 64 more rows

Sheet 8.1 Income
B1: =IF(dms_DataQuality="backcast",INDEX(dms_Worksheet_List,MATCH(dms_Model,dms_Model_List))&" BACKCAST",INDEX(dms_Worksheet_List,MATCH(dms_Model,dms_Model_List))) -> ANNUAL REPORTING STATEMENT
B2: =INDEX(dms_TradingNameFull_List,MATCH(dms_TradingName,dms_TradingName_List)) -> SA Power Networks
B3: =CONCATENATE("Annual Reporting RIN Response ",IF(SUM(dms_SingleYear_Model)>0,CONCATENATE(CRY),CONCATENATE(FRCP_y1," to ",dms_MultiYear_FinalYear_Result))) -> Annual Reporting RIN Response 2017-18
B4: 8.1 - INCOME
B6: 8.1.1 - INCOME STATEMENT
C7: Audited Statutory Accounts | D7: Adjustments | E7: Distribution business | F7: Standard Control Services | G7: Alternative Control Services | L7: Negotiated Services
G8: Public Lighting | I8: Other
G9: =IF(dms_Jurisdiction="Vic","Energy efficient","") ->  | H9: =IF(dms_Jurisdiction="Vic","Non-energy efficient","") ->  | I9: Connection services | J9: Metering services | K9: Ancillary network services
C10: $0's, nominal
B11: 8.1.1.1 - REVENUE
B12: Distribution revenue | C12: =1047431052.07-C18+68598149.29 -> 876962832.2 | D12: =E12-C12 -> -761535.75 | E12: =SUM(F12,I12:L12) -> 876201296.5 | F12: =1026267378.87-F18 -> 787201009.7 | I12: 0 | J12: 20590251 | K12: 0 | L12: 68410035.74
B13: Cross boundary revenue | C13: 0 | D13: =E13-C13 -> 0 | E13: 0 | F13: 0 | I13: 0 | J13: 0 | K13: 0 | L13: 0
B14: Contributions | C14: 12591215.32 | D14: =E14-C14 -> 64965583.13 | E14: 77556798.45 | F14: 0 | I14: 0 | J14: 0 | K14: 0 | L14: 77556798.45
B15: Interest income | C15: 2968996.74 | D15: =E15-C15 -> -2968996.74 | E15: 0 | F15: 0 | I15: 0 | J15: 0 | K15: 0 | L15: 0
B16: Jurisdictional scheme amounts | C16: 0 | D16: =E16-C16 -> 0 | E16: 0 | F16: 0 | I16: 0 | J16: 0 | K16: 0 | L16: 0
B17: Profit from sale of fixed assets | C17: 0 | D17: 0 | E17: 0 | F17: 0 | I17: 0 | J17: 0 | K17: 0 | L17: 0
B18: TUOS revenue | C18: 239066369.2 | D18: 0 | E18: 239066369.2 | F18: =C18 -> 239066369.2 | I18: 0 | J18: 0 | K18: 0 | L18: 0
B19: Pass through revenue (F-factor)
B20: Other Revenue | C20: 204604959.5 | D20: =E20-C20 -> -204604959.5 | E20: =SUM(F20,I20:L20) -> 0 | F20: 0 | I20: 0 | J20: 0 | K20: 0 | L20: 0
B21: Total revenue | C21: =SUM(C12:C20) -> 1336194373 | D21: -143369908.9 | E21: 1192824464 | F21: 1026267379 | G21: 0 | H21: 0 | I21: 0 | J21: 20590251 | K21: 0 | L21: 145966834.2
B23: 8.1.1.2 - EXPENDITURE
B24: TUOS expenditure | C24: 239066369.2 | D24: =E24-C24 -> 0 | E24: =SUM(F24,I24:L24) -> 239066369.2 | F24: =C24 -> 239066369.2 | I24: 0 | J24: 0 | K24: 0 | L24: 0
B25: Avoided TUOS expenditure | C25: 0 | D25: 0 | E25: 0 | F25: 0 | I25: 0 | J25: 0 | K25: 0 | L25: 0
B26: Cross boundary expenditure | C26: 0 | D26: 0 | E26: 0 | F26: 0 | I26: 0 | J26: 0 | K26: 0 | L26: 0
B27: Depreciation | C27: 233730346.3 | D27: 74527968.48 | E27: 308258314.8 | F27: 293369470 | I27: 0 | J27: 9393948.98 | K27: 0 | L27: 5494895.82
B28: Finance charges | C28: 190971844.6 | D28: -190971844.6 | E28: 0 | F28: 0 | I28: 0 | J28: 0 | K28: 0 | L28: 0
B29: Impairment losses | C29: 0 | D29: 0 | E29: 0 | F29: 0 | I29: 0 | J29: 0 | K29: 0 | L29: 0
B30: Jurisdictional scheme amounts | C30: 0 | D30: 0 | E30: 0 | F30: 0 | I30: 0 | J30: 0 | K30: 0 | L30: 0
B31: Loss from sale of fixed assets | C31: 357170.38 | D31: -357170.38 | E31: 0 | F31: =-'[1]4b-DPLb'!$D$14-'[1]4b-DPLb'!$D$23 -> 0 | I31: 0 | J31: 0 | K31: 0 | L31: 0
B32: Maintenance expenditure | C32: =SUM(D32:E32) -> 131608231.2 | D32: 0 | E32: 131608231.2 | F32: 112608162.6 | I32: 0 | J32: 4748135.69 | K32: 0 | L32: 14251932.89
B33: Operating expenditure excluding maintenance expenditure | C33: =450576262.43-C32 -> 318968031.2 | D33: =E33-C33 -> -64125097.94 | E33: =SUM(F33,I33:L33) -> 254842933.3 | F33: =251215744.44-F32 -> 138607581.8 | I33: 0 | J33: =8031933.2-J32 -> 3283797.51 | K33: 0 | L33: =127203486.85-L32 -> 112951554
B34: Other | C34: 0 | D34: =E34-C34 -> 1669005.63 | E34: =SUM(F34,I34:L34) -> 1669005.63 | F34: 1669005.63 | I34: 0 | J34: 0 | K34: 0 | L34: 0
B35: Total expenditure | C35: =SUM(dms_080101_02_audited_Values) -> 1114701993 | D35: =SUM(D24:D34) -> -179257138.8 | E35: =SUM(dms_080101_02_dnsp_Values) -> 935444854 | F35: =SUM(dms_080101_02_SCS_Values) -> 785320589.2 | G35: =SUM(G24:G34) -> 0 | H35: =SUM(H24:H34) -> 0 | I35: =SUM(dms_080101_02_connection_Values) -> 0 | J35: =SUM(dms_080101_02_metering_Values) -> 17425882.18 | K35: =SUM(dms_080101_02_ancillary_Values) -> 0 | L35: =SUM(dms_080101_02_negotiated_Values) -> 132698382.7
B37: 8.1.1.3 - PROFIT
B38: Profit before tax (PBT) | C38: =C21-SUM(C24:C34) -> 221492380.2 | D38: 35887229.87 | E38: 257379610 | F38: 240946789.7 | G38: 0 | H38: 0 | I38: 0 | J38: 3164368.82 | K38: 0 | L38: 13268451.52
B39: Income tax expenses (/ benefit) | C39: 0 | D39: =dms_080101_03_dnsp_Values-C39 -> 0 | E39: =SUM(dms_080101_03_SCS_Values,I39:L39) -> 0 | F39: 0 | I39: 0 | J39: 0 | K39: 0 | L39: 0
B40: Profit after tax | C40: =C38-C39 -> 221492380.2 | D40: 35887229.87 | E40: 257379610 | F40: 240946789.7 | G40: 0 | H40: 0 | I40: 0 | J40: 3164368.82 | K40: 0 | L40: =L38-L39 -> 13268451.52

Sheet 8.2 Capex
B1: =IF(dms_DataQuality="backcast",INDEX(dms_Worksheet_List,MATCH(dms_Model,dms_Model_List))&" BACKCAST",INDEX(dms_Worksheet_List,MATCH(dms_Model,dms_Model_List))) -> ANNUAL REPORTING STATEMENT
B2: =INDEX(dms_TradingNameFull_List,MATCH(dms_TradingName,dms_TradingName_List)) -> SA Power Networks
B3: =CONCATENATE("Annual Reporting RIN Response ",IF(SUM(dms_SingleYear_Model)>0,CONCATENATE(CRY),CONCATENATE(FRCP_y1," to ",dms_MultiYear_FinalYear_Result))) -> Annual Reporting RIN Response 2017-18
B4: 8.2 - CAPEX
B6: Instructions
B7: Reported expenditure must EXCLUDE capital contributions (except tables 8.2.1 and 8.2.5 which should include all capital contributions).
B8: Forecast expenditure is to be taken from Australian Distribution Co.'s distribution determination.
B9: If allocating based on assumptions then provide method in Basis of Preparation. All adjustments must be explained in Basis of Preparation with supporting documentation attached.
B11: For tables 8.2.1 and 8.2.3: Reported expenditure must INCLUDE any profit margins or management fees paid directly or indirectly to related party contractors (not including actual incurred expenses of the related party contractor) for the regulatory reporting period. 'Related Party Margin Expenditure' must COMPRISE ONLY profit margins or management fees paid directly or indirectly to related party contractors (not including actual incurred expenses of the related party contractor) for the regulatory reporting period.
B13: 8.2.1 - CAPEX BY PURPOSE - STANDARD CONTROL SERVICES
B15: Each line item in this table must INCLUDE the capital contributions. Total capital contributions should also be identified in the last item in the table.
C17: EXPENDITURE
C18: CPI adjusted Forecast | D18: Actual | E18: Difference | F18: Related Party Margin | G18: Voltage level
G19: Subtransmission | H19: HV | I19: LV | J19: Other
B20: Description | C20: $0's, nominal | E20: (%) | F20: $0's, nominal
B21: Replacement Expenditure | C21: 144821647.1 | D21: =SUM(G21:J21) -> 143580748.9 | E21: =IF(C21=0,1,(D21-C21)/C21*1) -> -0.008568457986 | F21: 141824.59 | G21: 10392222.57 | H21: 27508597.37 | I21: 69510536.69 | J21: 36169392.26
B22: Connections | C22: 108315460.1 | D22: =SUM(G22:J22) -> 68973178.14 | E22: =IF(C22=0,1,(D22-C22)/C22*1) -> -0.3632194513 | F22: 6442.29 | G22: 175336.5855 | H22: 44639393.17 | I22: 24158448.35 | J22: 0.03999997675
B23: Augmentation Expenditure | C23: 111270589.9 | D23: 87165260.98 | E23: -0.2166370194 | F23: 26266.92 | G23: 51364830.9 | H23: 31177338.7 | I23: 2611561.482 | J23: 2011529.9
B24: Non-Network | C24: 87282072.76 | D24: 109262862.1 | E24: 0.251836244 | F24: 33060.16 | G24: 0 | H24: 0 | I24: 0 | J24: 109262862.1
B25: Capitalised Network Overheads | C25: 17557515.56 | D25: 6904976.347 | E25: -0.6067224704 | F25: 0 | G25: 1426807.844 | H25: 2380424.687 | I25: 2218125.909 | J25: 879617.9065
B26: Capitalised Corporate Overheads | C26: -9912519.779 | D26: =SUM(G26:J26) -> -6939995.236 | E26: -0.2998757743 | F26: 0 | G26: 0 | H26: 0 | I26: 0 | J26: -6939995.236
B27: Balancing Item | C27: 0 | D27: -9629009 | E27: 1 | F27: -1616.02 | H27: -9629009
D28: 0 | E28: 1
D29: 0 | E29: 1
D30: =SUM(G30:J30) -> 0 | E30: 1
D31: 0 | E31: 1
D32: 0 | E32: 1
D33: 0 | E33: 1
D34: 0 | E34: 1
D35: 0 | E35: 1
B36: Capital contributions included in the above | C36: 75827625.94 | D36: 29535992.12 | E36: -0.6104850738 | J36: 29535992.12
B37: Total | C37: =SUM(C21:C35) -> 459334765.7 | D37: 399318022.3 | E37: =IF(C37=0,1,(D37-C37)/C37*1) -> -0.1306601371 | G37: =SUM(G21:G35) -> 63359197.9 | H37: =SUM(H21:H35) -> 96076744.93 | I37: 98498672.43 | J37: 141383407
B40: 8.2.2 - CAPEX BY PURPOSE - MATERIAL DIFFERENCE EXPLANATION
B42: Where the difference between forecast and actual expenditure shown in table 8.2.1 is a Material Difference please explain the main factors driving the difference.
B44: Description | C44: Reason for material difference
B45: Connections | C45: Continued subdued economic conditions.
B46: Augmentation Expenditure | C46: Savings from KI cable installation. More prudent solution and efficient tender process.
B47: Non-Network | C47: Unforecasted expenditure associated with metering contestability to meet AEMC timeframes. Progression of IT projects that were delayed in earlier years.
B48: Capitalised Network Overheads | C48: Reduced overheads commensurate with lower than forecast capital spend in the network categories. Lower overheads associated with savings from KI cable delivery.
B49: Capitalised Corporate Overheads | C49: Represents an adjustment to total capital to report superannuation on a cash payments basis in accordance with SA Power Networks' Cost Allocation Method. Difference is due to the re-commencement of contributions paid into the superannuation defined benefit scheme, which was not assumed in the forecast.
B62: 8.2.3 - CAPEX OTHER
C63: EXPENDITURE
C64: CPI adjusted Forecast | D64: Actual | E64: Difference | F64: Related Party Margin | G64: Voltage level
G65: Subtransmission | H65: HV | I65: LV | J65: Other
C66: $0's, nominal | E66: (%) | F66: $0's, nominal
B67: Public lighting
B68: =IF(dms_Jurisdiction="Vic","Energy Efficient", "Total") -> Total | D68: =SUM(G68:J68) -> 0 | E68: =IF(C68=0,1,((D68-C68)/C68)*1) -> 1
B69: =IF(dms_Jurisdiction="Vic","Non-energy efficient", "") ->  | D69: =SUM(G69:J69) -> 0 | E69: =IF(C69=0,1,((D69-C69)/C69)*1) -> 1
B70: Alternative Control Services
B71: Connection services | C71: 0 | D71: =SUM(G71:J71) -> 0 | E71: =IF(C71=0,1,((D71-C71)/C71)*1) -> 1 | F71: 0 | G71: 0 | H71: 0 | I71: 0 | J71: 0
B72: Metering services | C72: 4350251.374 | D72: -441566.5943 | E72: =IF(C72=0,1,((D72-C72)/C72)*1) -> -1.101503696 | F72: -30.88 | G72: 0 | H72: 0 | I72: -441566.5943 | J72: 0
B73: Ancillary network services | C73: 0 | D73: 0 | E73: =IF(C73=0,1,((D73-C73)/C73)*1) -> 1 | F73: 0 | G73: 0 | H73: 0 | I73: 0 | J73: 0
B74: Negotiated Services
B75: Negotiated services | C75: 0 | D75: =SUM(G75:J75) -> 9779021.831 | E75: =IF(C75=0,1,((D75-C75)/C75)*1) -> 1 | F75: 216948.38 | I75: 9779021.831
B76: Total | C76: =SUM(C68:C69,C71:C73,C75) -> 4350251.374 | D76: =SUM(D68:D69,D71:D73,D75) -> 9337455.236 | E76: =IF(C76=0,1,((D76-C76)/C76)*1) -> 1.146417399 | G76: =SUM(G68:G69,G71:G73,G75) -> 0 | H76: =SUM(H68:H69,H71:H73,H75) -> 0 | I76: =SUM(I68:I69,I71:I73,I75) -> 9337455.236 | J76: =SUM(J68:J69,J71:J73,J75) -> 0
B80: 8.2.4 - CAPEX BY ASSET CLASS
B82: Australian Distribution Co. to enter in Table 8.2.4 each Asset Class specified in its current determination as listed in the AER's final decision in its Roll Forward Model and Post-tax Revenue Model and enter information against that Asset Class.
C84: CPI adjusted Forecast | D84: Actual | E84: Difference | F84: Movements in provisions allocated to as-incurred capex
B85: Asset class | C85: $0's, nominal | E85: (%) | F85: $0's, nominal
B86: Sub-transmission Lines | C86: 3495926.415 | D86: 1372782.875 | E86: -0.6073192876 | F86: 12240.91318
B87: Distribution Lines | C87: 219090461.5 | D87: 48740183.92 | E87: -0.7775339757 | F87: 268409.7481
B88: Substations | C88: 36232181.06 | D88: 61833521.41 | E88: 0.7065912017 | F88: 523457.1531
B89: Distribution Transformers | C89: 19877947.66 | D89: 6725231.584 | E89: -0.6616737453 | F89: 46882.00758
B90: Low Voltage Services | C90: 5644669.134 | D90: 124310687.7 | E90: 21.02267038 | F90: 1277200.023
B91: Communications | C91: 11788327.27 | D91: 29585850.35 | E91: 1.509758142 | F91: 293691.2272
B92: Substation Land | C92: 413833.4149 | D92: 43552.19328 | E92: -0.8947591187 | F92: 0
B93: Easements | C93: 613869.5958 | D93: 554835.0424 | E93: -0.09616790562 | F93: 4076.945853
B94: Land | C94: 0 | D94: 2054357.327 | E94: 1 | F94: 0
B95: Buildings | C95: 15116158.76 | D95: 0 | E95: -1 | F95: 0
B96: Heavy Vehicles - 15 Years | C96: 4620029.847 | D96: 2580448.293 | E96: -0.4414650167 | F96: 20122.07062
B97: Heavy Vehicles - 10 Years | C97: 5674932.472 | D97: 7157989.287 | E97: 0.2613347071 | F97: 56983.37859
B98: Light Vehicles | C98: 8231262.589 | D98: 8940037.58 | E98: 0.08610768798 | F98: 0
B99: Information Technology | C99: 46186262.42 | D99: 61973267.15 | E99: 0.3418116968 | F99: 495696.7162
B100: Plant and Tools / Office Furniture | C100: 6521277.443 | D100: 13909285.62 | E100: 1.132908121 | F100: 0
B101: Equity Raising Costs | C101: 0 | D101: 0 | E101: =IF(C101=0,1,((D101-C101)/C101)*1) -> 1 | F101: 0
E102: 1
E103: 1
E104: 1
E105: 1
E106: =IF(C106=0,1,((D106-C106)/C106)*1) -> 1
E107: 1
E108: 1
E109: 1
E110: 1
E111: 1
E112: 1
E113: 1
E114: 1
E115: 1
E116: =IF(C116=0,1,((D116-C116)/C116)*1) -> 1
E117: 1
E118: 1
E119: 1
E120: 1
E121: 1
E122: 1
E123: 1
E124: 1
E125: 1
E126: 1
E127: 1
E128: 1
E129: 1
E130: 1
E131: 1
E132: 1
E133: 1
E134: 1
E135: 1
B136: Total | C136: =SUM(C86:C135) -> 383507139.5 | D136: =SUM(D86:D135) -> 369782030.3 | E136: -0.03578840597 | F136: =SUM(F86:F135) -> 2998760.184
B139: 8.2.5 - CAPITAL CONTRIBUTIONS BY ASSET CLASS
C140: CPI Adjusted Forecast | D140: Actual | E140: Difference
B141: Asset class | C141: $0's, nominal | E141: (%)
B142: =IF(ISBLANK(B86),"",B86) -> Sub-transmission Lines | C142: 0 | D142: 0 | E142: =IF(C142=0,1,((D142-C142)/C142)*1) -> 1
B143: Distribution Lines | C143: 87103513.88 | D143: 28477818.82 | E143: =IF(C143=0,1,((D143-C143)/C143)*1) -> -0.6730577499
B144: Substations | C144: 0 | D144: 2799190.757 | E144: 1
B145: Distribution Transformers | C145: 0 | D145: 916120.243 | E145: 1
B146: Low Voltage Services | C146: 22561882.88 | D146: 21071910.78 | E146: -0.06603935055
B147: Communications | C147: 0 | D147: 0 | E147: 1
B148: Substation Land | C148: 0 | D148: 0 | E148: 1
B149: Easements | C149: 0 | D149: 0 | E149: 1
B150: Land | C150: 0 | D150: 0 | E150: 1
B151: Buildings | C151: 0 | D151: 0 | E151: 1
B152: Heavy Vehicles - 15 Years | C152: 0 | D152: 0 | E152: 1
B153: Heavy Vehicles - 10 Years | C153: 0 | D153: 0 | E153: 1
B154: Light Vehicles | C154: 0 | D154: 0 | E154: 1
B155: Information Technology | C155: 0 | D155: 0 | E155: 1
B156: Plant and Tools / Office Furniture | C156: 0 | D156: 0 | E156: 1
B157: Equity Raising Costs | C157: 0 | D157: 0 | E157: 1
E158: 1
E159: 1
E160: 1
E161: 1
E162: 1
E163: 1
E164: 1
E165: 1
E166: 1
E167: 1
E168: 1
E169: 1
E170: 1
E171: =IF(C171=0,1,((D171-C171)/C171)*1) -> 1
E172: 1
E173: 1
B174: =IF(ISBLANK(B118),"",B118) ->  | E174: 1
E175: 1
E176: 1
E177: 1
E178: 1
E179: 1
E180: 1
E181: =IF(C181=0,1,((D181-C181)/C181)*1) -> 1
E182: 1
E183: 1
E184: 1
E185: 1
E186: 1
E187: 1
E188: 1
E189: 1
E190: 1
E191: 1
B192: Total | C192: =SUM(C142:C191) -> 109665396.8 | D192: =SUM(D142:D191) -> 53265040.6 | E192: -0.5142949173
B195: 8.2.6 - DISPOSALS BY ASSET CLASS
C196: CPI Adjusted Forecast | D196: Actual | E196: Difference
B197: Asset class | C197: $0's, nominal | E197: (%)
B198: =IF(ISBLANK(B86),"",B86) -> Sub-transmission Lines | C198: 0 | D198: 0 | E198: =IF(C198=0,1,((D198-C198)/C198)*1) -> 1
B199: Distribution Lines | C199: 0 | D199: 0 | E199: =IF(C199=0,1,((D199-C199)/C199)*1) -> 1
B200: Substations | C200: 0 | D200: 0 | E200: 1
B201: Distribution Transformers | C201: 0 | D201: 0 | E201: 1
B202: Low Voltage Services | C202: 0 | D202: 0 | E202: 1
B203: Communications | C203: 0 | D203: 0 | E203: 1
B204: Substation Land | C204: 0 | D204: 0 | E204: 1
B205: Easements | C205: 0 | D205: 0 | E205: 1
B206: Land | C206: 0 | D206: 0 | E206: 1
B207: Buildings | C207: 0 | D207: 0 | E207: 1
B208: Heavy Vehicles - 15 Years | C208: 131449.3433 | D208: 454791.06 | E208: 2.459819946
B209: Heavy Vehicles - 10 Years | C209: 52579.73734 | D209: 119752.25 | E209: 1.277536102
B210: Light Vehicles | C210: 1919370.732 | D210: 1975453.08 | E210: 0.0292191328
B211: Information Technology | C211: 0 | D211: 0 | E211: 1
B212: Plant and Tools / Office Furniture | C212: 0 | D212: 0 | E212: 1
B213: Equity Raising Costs | C213: 0 | D213: 0 | E213: 1
E214: 1
E215: 1
E216: 1
E217: 1
E218: 1
E219: 1
E220: 1
E221: 1
E222: 1
E223: 1
E224: 1
E225: 1
E226: 1
E227: 1
E228: =IF(C228=0,1,((D228-C228)/C228)*1) -> 1
E229: 1
B230: =IF(ISBLANK(B118),"",B118) ->  | E230: 1
... 18 more rows

Sheet 8.4 Opex
B1: =IF(dms_DataQuality="backcast",INDEX(dms_Worksheet_List,MATCH(dms_Model,dms_Model_List))&" BACKCAST",INDEX(dms_Worksheet_List,MATCH(dms_Model,dms_Model_List))) -> ANNUAL REPORTING STATEMENT
B2: =INDEX(dms_TradingNameFull_List,MATCH(dms_TradingName,dms_TradingName_List)) -> SA Power Networks
B3: =CONCATENATE("Annual Reporting RIN Response ",IF(SUM(dms_SingleYear_Model)>0,CONCATENATE(CRY),CONCATENATE(FRCP_y1," to ",dms_MultiYear_FinalYear_Result))) -> Annual Reporting RIN Response 2017-18
B4: 8.4 OPEX
B6: Instructions
B7: Forecast expenditure is to be taken from Australian Distribution Co.'s distribution determination.
B8: If allocating based on assumptions then provide method in Basis of Preparation. All adjustments must be explained in Basis of Preparation with supporting documentation attached.
B10: 8.4.1 - OPERATING & MAINTENANCE EXPENDITURE - BY PURPOSE
B12: Australian Distribution Co. is to list the operating expenditure categories identified in Australian Distribution Co.'s regulatory proposal at table 3.2.1.1 current opex categories and cost allocations.
B13: Australian Distribution Co. must specify any expenditure category where the expense is more than 5 per cent of the total standard control services operating expenditure.
B14: Reported operating expenditure must INCLUDE any profit margins or management fees paid directly or indirectly to related party contractors (not including actual incurred expenditure of the related party contractor) for the regulatory reporting period.
C16: Audited Statutory Accounts | D16: Adjustments | E16: Distribution business | F16: Standard Control Services | I16: Alternative Control Services | N16: Negotiated Services
F17: CPI Adjusted Forecast | G17: Actual | H17: Difference | I17: Public Lighting | K17: Other
I18: =IF(dms_Jurisdiction="Vic","Energy efficient","") ->  | J18: =IF(dms_Jurisdiction="Vic","Non-energy efficient","") ->  | K18: Connection services | L18: Metering services | M18: Ancillary network services
B19: Opex category | C19: $0's, nominal | H19: % | I19: $0's, nominal
B20: Distribution Licence Fee | C20: =E20-D20 -> 2299110.14 | D20: 0 | E20: =SUM(G20,K20:N20) -> 2299110.14 | F20: 2588222.061 | G20: 2299110.14 | H20: =IF(F20=0,1,((G20-F20)/F20)*1) -> -0.1117029041 | K20: 0 | L20: 0 | M20: 0 | N20: 0
B21: Network Operating Costs | C21: =E21-D21 -> 35713998.7 | D21: 0 | E21: =SUM(G21,K21:N21) -> 35713998.7 | F21: 34989218.92 | G21: 35713998.7 | H21: 0.02071437441 | K21: 0 | L21: 0 | M21: 0 | N21: 0
B22: Inspections | C22: =E22-D22 -> 11939438.68 | D22: 0 | E22: =SUM(G22,K22:N22) -> 11939438.68 | F22: 14331074.65 | G22: 11939438.68 | H22: -0.1668846216 | K22: 0 | L22: 0 | M22: 0 | N22: 0
B23: Maintenance and Repair | C23: 30288182.73 | D23: 0 | E23: 30288182.73 | F23: 15566108.24 | G23: 15311648.99 | H23: -0.01634700543 | K23: 0 | L23: 1651037.653 | M23: 0 | N23: 13325496.09
B24: Substation Property Maintenance | C24: 7818000.886 | D24: 0 | E24: 7818000.886 | F24: 7508682.508 | G24: 7818000.886 | H24: 0.04119476047 | K24: 0 | L24: 0 | M24: 0 | N24: 0
B25: Vegetation Management | C25: 38365210.35 | D25: 0 | E25: 38365210.35 | F25: 37265967.29 | G25: 38365210.35 | H25: 0.02949723664 | K25: 0 | L25: 0 | M25: 0 | N25: 0
B26: Emergency Response | C26: 35434504.43 | D26: 0 | E26: 35434504.43 | F26: 37158566.62 | G26: 35434504.43 | H26: -0.04639743534 | K26: 0 | L26: 0 | M26: 0 | N26: 0
B27: Guaranteed Service Level Payments | C27: 1867082.64 | D27: 0 | E27: 1867082.64 | F27: 11073241.94 | G27: 1867082.64 | H27: -0.8313878943 | K27: 0 | L27: 0 | M27: 0 | N27: 0
B28: Network Insurance | C28: 1872276.643 | D28: 0 | E28: 1872276.643 | F28: 3346518.146 | G28: 1872276.643 | H28: -0.4405299595 | K28: 0 | L28: 0 | M28: 0 | N28: 0
B29: Call Centre | C29: 3579417.24 | D29: 0 | E29: 3579417.24 | F29: 3294214.227 | G29: 3579417.24 | H29: 0.08657694771 | K29: 0 | L29: 0 | M29: 0 | N29: 0
B30: Customer Billing (previously Full Retail Contestability) | C30: 17380048.13 | D30: 0 | E30: 17380048.13 | F30: 16560702.96 | G30: 15155255.5 | H30: -0.08486641296 | K30: 0 | L30: 2224792.63 | M30: 0 | N30: 0
B31: Meter Reading | C31: 4023534.84 | D31: 0 | E31: 4023534.84 | F31: 0 | G31: 0 | H31: 1 | K31: 0 | L31: 3097098.04 | M31: 0 | N31: 926436.8
B32: Other Customer Services | C32: 18893982.53 | D32: 0 | E32: 18893982.53 | F32: 8309838.668 | G32: 9266336.734 | H32: 0.1151042883 | K32: 0 | L32: 180815.2752 | M32: 0 | N32: 9446830.52
B33: Corporate Costs and Other Operating | C33: 241101474.5 | D33: -64125097.94 | E33: 176976376.6 | F33: 70964020.89 | G33: 72593463.51 | H33: 0.0229615318 | K33: 0 | L33: 878189.6045 | M33: 0 | N33: 103504723.5
H34: 1
H35: =IF(F35=0,1,((G35-F35)/F35)*1) -> 1
H36: 1
H37: 1
H38: 1
H39: 1
H40: 1
H41: =IF(F41=0,1,((G41-F41)/F41)*1) -> 1
H42: 1
H43: 1
H44: 1
H45: 1
H46: 1
H47: 1
H48: 1
H49: 1
H50: 1
H51: 1
H52: 1
H53: 1
H54: 1
H55: 1
H56: 1
H57: 1
H58: 1
H59: 1
H60: 1
H61: 1
H62: 1
H63: 1
H64: 1
H65: 1
H66: 1
H67: 1
H68: 1
H69: 1
B70: Total | C70: =SUM(C20:C69) -> 450576262.4 | D70: -64125097.94 | E70: 386451164.5 | F70: 262956377.1 | G70: 251215744.4 | H70: -0.04464859459 | I70: =SUM(I20:I69) -> 0 | J70: 0 | K70: 0 | L70: 8031933.203 | M70: 0 | N70: 127203486.9
B73: 8.4.2 - OPERATING & MAINTENANCE EXPENDITURE - BY PURPOSE - MARGINS ONLY
B75: "Related party margin expenditure' must COMPRISE ONLY profit margins or management fees paid directly or indirectly to related party contractors (for expenditure that is not an actual incurred expenditure of the related party contractor) for the regulatory reporting period.
C77: Audited Statutory Accounts | D77: Adjustments | E77: Distribution business | F77: Standard Control Services | I77: Alternative Control Services | N77: Negotiated Services
F78: CPI Adjusted Forecast | G78: Actual | H78: Difference | I78: Public Lighting | K78: Other
I79: =IF(dms_Jurisdiction="Vic","Energy efficient","") ->  | J79: =IF(dms_Jurisdiction="Vic","Non-energy efficient","") ->  | K79: Connection services | L79: Metering services | M79: Ancillary network services
B80: Opex category | C80: $0's, nominal | G80: $0's, nominal | H80: per cent | I80: $0's, nominal
B81: =IF(ISBLANK(B20),"",B20) -> Distribution Licence Fee | C81: =E81-D81 -> 0 | D81: 0 | E81: =SUM(G81,K81:N81) -> 0 | F81: 0 | G81: 0 | H81: =IF(F81=0,1,((G81-F81)/F81)*1) -> 1 | K81: 0 | L81: 0 | M81: 0 | N81: 0
B82: Network Operating Costs | C82: =E82-D82 -> 3076.4 | D82: 0 | E82: =SUM(G82,K82:N82) -> 3076.4 | F82: 0 | G82: 3076.4 | H82: 1 | K82: 0 | L82: 0 | M82: 0 | N82: 0
B83: Inspections | C83: =E83-D83 -> 0 | D83: 0 | E83: =SUM(G83,K83:N83) -> 0 | F83: 0 | G83: 0 | H83: 1 | K83: 0 | L83: 0 | M83: 0 | N83: 0
B84: Maintenance and Repair | C84: 257472.45 | D84: 0 | E84: 257472.45 | F84: 0 | G84: 21575.22 | H84: 1 | K84: 0 | L84: 22517.49 | M84: 0 | N84: 213379.74
B85: Substation Property Maintenance | C85: 0 | D85: 0 | E85: 0 | F85: 0 | G85: 0 | H85: 1 | K85: 0 | L85: 0 | M85: 0 | N85: 0
B86: Vegetation Management | C86: 0 | D86: 0 | E86: 0 | F86: 0 | G86: 0 | H86: 1 | K86: 0 | L86: 0 | M86: 0 | N86: 0
B87: Emergency Response | C87: 12372.22 | D87: 0 | E87: 12372.22 | F87: 0 | G87: 12372.22 | H87: 1 | K87: 0 | L87: 0 | M87: 0 | N87: 0
B88: Guaranteed Service Level Payments | C88: 0 | D88: 0 | E88: 0 | F88: 0 | G88: 0 | H88: =IF(F88=0,1,((G88-F88)/F88)*1) -> 1 | K88: 0 | L88: 0 | M88: 0 | N88: 0
B89: Network Insurance | C89: 0 | D89: 0 | E89: 0 | F89: 0 | G89: 0 | H89: 1 | K89: 0 | L89: 0 | M89: 0 | N89: 0
B90: Call Centre | C90: 0 | D90: 0 | E90: 0 | F90: 0 | G90: 0 | H90: 1 | K90: 0 | L90: 0 | M90: 0 | N90: 0
B91: Customer Billing (previously Full Retail Contestability) | C91: 0 | D91: 0 | E91: 0 | F91: 0 | G91: 0 | H91: 1 | K91: 0 | L91: 0 | M91: 0 | N91: 0
B92: Meter Reading | C92: 0 | D92: 0 | E92: 0 | F92: 0 | G92: 0 | H92: 1 | K92: 0 | L92: 0 | M92: 0 | N92: 0
B93: Other Customer Services | C93: 0 | D93: 0 | E93: 0 | F93: 0 | G93: 0 | H93: 1 | K93: 0 | L93: 0 | M93: 0 | N93: 0
B94: Corporate Costs and Other Operating | C94: 6744.63 | D94: 0 | E94: 6744.63 | F94: 0 | G94: 0 | H94: 1 | K94: 0 | L94: 0 | M94: 0 | N94: 6744.63
H95: 1
H96: 1
H97: =IF(F97=0,1,((G97-F97)/F97)*1) -> 1
H98: 1
H99: 1
H100: 1
H101: 1
H102: 1
H103: =IF(F103=0,1,((G103-F103)/F103)*1) -> 1
H104: 1
H105: 1
H106: 1
H107: 1
H108: 1
H109: 1
H110: 1
H111: 1
H112: 1
H113: 1
H114: 1
H115: 1
H116: 1
H117: 1
H118: 1
H119: 1
H120: 1
H121: 1
H122: 1
H123: 1
H124: 1
H125: 1
H126: 1
H127: 1
H128: 1
H129: 1
H130: 1
B131: Total | C131: =SUM(C81:C130) -> 279665.7 | D131: =SUM(D81:D130) -> 0 | E131: =SUM(E81:E130) -> 279665.7 | F131: =SUM(F81:F130) -> 0 | G131: =SUM(G81:G130) -> 37023.84 | H131: 1 | I131: =SUM(I81:I130) -> 0 | J131: 0 | K131: 0 | L131: 22517.49 | M131: 0 | N131: 220124.37
B134: 8.4.3 - OPERATING & MAINTENANCE EXPENDITURE - EXPLANATION OF MATERIAL DIFFERENCE
B136: Where the difference between forecast and actual expenditure shown in table 8.4.1, column I is a Material Difference please explain the main factors driving the difference.
B138: Category | C138: Explanation
B139: Distribution Licence Fee | C139: Forecast assumed CPI escalation, but this has not been applied to date by ESCoSA.
B140: Inspections | C140: Lower contractor costs through competitive tender. Timing of cyclical program.
B141: Guaranteed Service Level Payments | C141: No major weather event days in 2017/18, following 9 in the previous year, leading to lower GSL costs.
B142: Network Insurance | C142: Primarily due to favourable negotiation of insurance policy premiums.
B143: Other Customer Services | C143: Unforecasted expenditure associated with self-insurance costs for substation fire, development of customer analytics for meter contestability, and increased customer engagement.

Sheet 9.5 TUoS
B1: =IF(dms_DataQuality="backcast",INDEX(dms_Worksheet_List,MATCH(dms_Model,dms_Model_List))&" BACKCAST",INDEX(dms_Worksheet_List,MATCH(dms_Model,dms_Model_List))) -> ANNUAL REPORTING STATEMENT
B2: =INDEX(dms_TradingNameFull_List,MATCH(dms_TradingName,dms_TradingName_List)) -> SA Power Networks
B3: =CONCATENATE("Annual Reporting RIN Response ",IF(SUM(dms_SingleYear_Model)>0,CONCATENATE(CRY),CONCATENATE(FRCP_y1," to ",dms_MultiYear_FinalYear_Result))) -> Annual Reporting RIN Response 2017-18
B4: 9.5 - TUoS AUDIT (t-2)
B6: This template collects information for annual pricing proposals from Victorian businesses only.
B8: 9.5.1 - TUOS CHARGES (AEMO)
F9: =CRY -> 2017-18
E16: Total | F16: =SUM(F10:F15) -> 0
B19: 9.5.2 - TRANSMISSION CONNECTION FEES
F20: =CRY -> 2017-18
E27: Total | F27: =SUM(F21:F26) -> 0
B30: 9.5.3 - CROSS BOUNDARY NETWORK CHARGES
C31: Amount (payable)/receivable
C32: $0's, nominal
C33: HV crossings | D33: Subtransmission crossings | E33: TUoS Adjustment | F33: Total
B34: Distribution Business | F34: =CRY -> 2017-18
F35: =IF((SUM(C35:E35)=0),"",(SUM(C35:E35))) -> 
F36: =IF((SUM(C36:E36)=0),"",(SUM(C36:E36))) -> 
B43: Total
B46: 9.5.4 - PAYMENTS TO EMBEDDED GENERATORS
B47: 9.5.4.1 - AVOIDED TRANSMISSION COSTS | F47: 2016-17
B56: Total | F56: =SUM(F48:F55) -> 0
B57: 9.5.4.2 - AVOIDED TUoS USAGE CHARGES | F57: 2016-17
B66: Total | F66: =SUM(F58:F65) -> 0
B67: Total payments to embedded generators | F67: =F66+F56 -> 0
